Workbook

Sheet Quote Summary
B2: Class / Department | C2: Total | E2: Number of Classes | F2: Total Cost
B3: Nursery | C3: =Nursery!G1 -> 24434.33 | E3: 0 | F3: =E3*C3 -> 0 | I3: Contact Details
B4: Reception | C4: =Reception!G1 -> 25270.24 | E4: 0 | F4: =E4*C4 -> 0
B5: EYFS Shared Resource | C5: ='EYFS Shared'!G1 -> 98911.71 | E5: 0 | F5: 0 | I5: Your Name:
B6: EYFS Outdoor Play | C6: ='EYFS Outdoor & Play'!G1 -> 87540.47 | E6: 0 | F6: 0
I7: Phone Number:
B8: Year 1 | C8: ='Year 1'!H1 -> 30532.51 | E8: 0 | F8: 0
B9: Year 2 | C9: ='Year 2'!H1 -> 34691.64 | E9: 0 | F9: 0 | I9: Email Address:
B10: KS1 Shared Resources | C10: ='KS1 Shared'!H1 -> 57327.95 | E10: 0 | F10: 0
B11: Year 3 | C11: ='Year 3'!H1 -> 37991.95 | E11: 0 | F11: 0 | I11: School Name:
B12: Year 4 | C12: ='Year 4'!H1 -> 36407.4 | E12: 0 | F12: 0
B13: Year 5 | C13: ='Year 5'!H1 -> 36407.4 | E13: 0 | F13: 0 | I13: Attn Quote to:
B14: Year 6 | C14: ='Year 6'!H1 -> 36407.4 | E14: 0 | F14: 0
B15: KS2 Shared Resources | C15: ='KS2 Shared'!H1 -> 66932.54 | E15: 0 | F15: 0 | I15: Email:
B16: SENCO | C16: =SENCO!F1 -> 22977.51 | E16: 0 | F16: =E16*C16 -> 0
B17: Languages | C17: =Languages!F1 -> 5709.39 | E17: 0 | F17: =E17*C17 -> 0 | I17: Job Title:
B18: Primary Science | C18: ='Primary Science'!G1 -> 90102.45 | E18: 0 | F18: 0
B19: Computing | C19: =Computing!G1 -> 33747.6 | E19: 0 | F19: 0 | I19: Your Quote Ref / Purchase Order No.:
B20: Robotics | C20: =Robotics!G1 -> 70818.32 | E20: 0 | F20: =E20*C20 -> 0
B21: Whole School Games | C21: ='Whole School Games'!F1 -> 6101.09 | E21: 0 | F21: 0
B22: Design Technology | C22: ='Design Technology'!G1 -> 86359.95 | E22: 0 | F22: 0
B23: Art | C23: =Art!G1 -> 92085.08 | E23: 0 | F23: 0
B24: Sport | C24: =Sport!F1 -> 188154.82 | E24: 0 | F24: 0
B25: Office and Display | C25: ='Office and Display'!G1 -> 32995.09 | E25: 0 | F25: 0
B26: Whole School Resources | C26: ='Whole School Resources'!G1 -> 28290.98 | E26: 0 | F26: 0
B27: Secondary Maths | C27: ='Secondary Maths'!H1 -> 18754.62 | E27: 0 | F27: 0
B28: Secondary English | C28: ='Secondary English'!G1 -> 8988.67 | E28: 0 | F28: 0
B29: Secondary Science | C29: ='Secondary Science'!H1 -> 165003.93 | E29: 0 | F29: 0
B30: Science Prep Room | C30: ='Science Prep'!G1 -> 135255.93 | E30: 0 | F30: 0
B31: Secondary Humanities | C31: ='Secondary Humanities'!G1 -> 7339.65 | E31: 0 | F31: 0
B32: Total: | C32: =SUM(C3:C31) -> 1565540.62 | E32: Total: | F32: =SUM(F3:F31) -> 0

Sheet Nursery
F1: Basket Total | G1: =SUM(G4:G87) -> 24434.33
A2: Product Code | B2: Product Description | C2: Units of Measure | D2: Quantity | E2: Section | F2: Unit Price | G2: Total Price
A3: FS 1 CLASSROOM
A4: HC1778191 | B4: Group Listening Package | C4: 1 | D4: 1 | E4: Nursery CLASSROOM | F4: 1170.23 | G4: =F4*D4 -> 1170.23
A5: HC72377 | B5: Wooden Spoon | C5: 1 | D5: 15 | F5: 9.45 | G5: =F5*D5 -> 141.75
A6: HC1239842 | B6: Play Tray | C6: EA | D6: 3 | F6: 141.23 | G6: 423.69
A7: HC1239846 | B7: Tough Play Tray Stand | C7: 1 | D7: 1 | F7: 524.48 | G7: 524.48
A8: HC1556329 | B8: Recycled Clip Board Blue | C8: 5 | D8: 4 | F8: 120.75 | G8: 483
A9: HC284654 | B9: CM Address Labels 89x36mm P250 | C9: 250 | D9: 2 | F9: 24.15 | G9: 48.3
A10: CP00053887 | B10: Classmates Sticky Notes - Assorted Neon - 75 x 75mm - Pack of 12 | C10: 1 | D10: 5 | F10: 33.6 | G10: 168
A11: HC1691792 | B11: Classmates Highlighters 5 Colours Pk 48 | C11: 48 | D11: 1 | F11: 105 | G11: 105
A12: HC1691844 | B12: CM Easy Grip Triangular Pencils P72 | C12: 72 | D12: 1 | F12: 145.43 | G12: 145.43
A13: HC316244 | B13: CM Metal Sharpeners Double Hole Pk12 | C13: 12 | D13: 2 | F13: 51.45 | G13: 102.9
A14: HC131969 | B14: Staedtler Rasoplast Eraser P30 | C14: 30 | D14: 1 | F14: 96.6 | G14: 96.6
A15: HC298772 | B15: Rapesco X5-30PS Medium Duty Hole Punch | C15: 1 | D15: 1 | F15: 64.58 | G15: 64.58
A16: HC397364 | B16: Rapesco Sting Ray Half Strip Stapler | C16: 1 | D16: 1 | F16: 56.18 | G16: 56.18
A17: HC194863 | B17: Rapesco 24/6 Staples P5000 | C17: 5000 | D17: 1 | F17: 32.03 | G17: 32.03
A18: HC186556 | B18: Paper Fasteners 25mm Pack 200 | C18: 200 | D18: 1 | F18: 48.3 | G18: 48.3
A19: HC179406 | B19: Treasury Tag 51mm Yellow P100 | C19: 100 | D19: 1 | F19: 33.6 | G19: 33.6
A20: HC397442 | B20: C M Easytear Tape 24mmx66m Pk6 | C20: 6 | D20: 1 | F20: 37.28 | G20: 37.28
A21: HC1699057 | B21: Classmate Tape Dispenser | C21: 1 | D21: 1 | F21: 45.68 | G21: 45.68
A22: HC322874 | B22: Classmates Dble Sided Tape 12mmx33mm Pk6 | C22: 6 | D22: 1 | F22: 80.85 | G22: 80.85
A23: HC225517 | B23: C M Masking Tape 24mmx50mx9 | C23: 9 | D23: 1 | F23: 100.8 | G23: 100.8
A24: HC1109953 | B24: Blu Tack Original 60g | C24: 12 | D24: 1 | F24: 105 | G24: 105
A25: CP053113AB | B25: CM LtWeight Lapboard A4 Lined P35 | C25: 35 | D25: 1 | F25: 459.9 | G25: 459.9
A26: HC131969 | B26: Steadtler Rasoplast Eraser Small White P30 | C26: 30 | D26: 1 | F26: 96.6 | G26: 96.6
A27: HC1774064 | B27: Berol Colour Broad Classpack 288 | C27: 288 | D27: 1 | F27: 548.63 | G27: 548.63
A28: HC1102952 | B28: Edding 8 All Purpose Assorted, Bullet Tip - Pack of 144 | C28: 144 | D28: 1 | F28: 625.28 | G28: 625.28
A29: HC209241 | B29: Giotto Metallic Fibre Pens P24 | C29: 24 | D29: 5 | F29: 159.6 | G29: 798
A30: CP052040 | B30: Budget Stretcher Classroom Essentials Paper Pack | C30: 1 | D30: 1 | F30: 2016.53 | G30: 2016.53
A31: HC1672714 | B31: Asst Brilliant Colour Art Paper A4 PK250 | C31: 250 | D31: 1 | F31: 129.15 | G31: 129.15
A32: CP00054557 | B32: Classmates Sugar Paper Stack - A4/A3 - Pack of 3750 | C32: 3750 | D32: 1 | F32: 552.83 | G32: 552.83
A33: HC1563962 | B33: Naturals Wide Poster Paper Pack | C33: 8 | D33: 1 | F33: 469.88 | G33: 469.88
A34: HC295314 | B34: Crazy Cut Scissors Pk6 | C34: 6 | D34: 2 | F34: 86.1 | G34: 172.2
A35: HC1815197 | B35: Classmates Dual Control Scissors - Right Handed | C35: 1 | D35: 12 | F35: 28.35 | G35: 340.2
A36: HC1815195 | B36: Classmates Easy Grip Scissors - Left Handed | C36: EA | D36: 3 | F36: 48.3 | G36: 144.9
A37: HC1815193 | B37: Classmates Easy Grip Scissors - Right Handed | C37: 1 | D37: 3 | F37: 56.18 | G37: 168.54
A38: HC370844 | B38: Bulk Buy - 6 Collage Jars | C38: 6 | D38: 1 | F38: 201.6 | G38: 201.6
A39: CP057113 | B39: Assorted Bean Bag Pack Pk18 | C39: 18 | D39: 1 | F39: 129.15 | G39: 129.15
A40: CP00058415 | B40: Classmates Chunky Crayons - Pack of 40 | C40: 40 | D40: 2 | F40: 45.68 | G40: 91.36
A41: HC175974 | B41: Pompom Pack 100 | C41: 100 | D41: 3 | F41: 52.5 | G41: 157.5
A42: HC259499 | B42: Craft Pipe Cleaners 30cm P1000 | C42: 1000 | D42: 1 | F42: 145.43 | G42: 145.43
A43: HC153003 | B43: Modelling Tools Set of 18 | C43: 18 | D43: 1 | F43: 164.33 | G43: 164.33
A44: HC1817618 | B44: Pot Of Modelling Tools 35 Pc | C44: 35 | D44: 1 | F44: 82.43 | G44: 82.43
A45: HC152691 | B45: Wooden Dough Tools Set P12 | C45: 12 | D45: 1 | F45: 86.1 | G45: 86.1
A46: HC103841 | B46: Modelling Board | C46: 1 | D46: 10 | F46: 48.3 | G46: 483
A47: CP00057177 | B47: White Shells 2.5L | C47: 1 | D47: 2 | F47: 165.38 | G47: 330.76
A48: HC1574295 | B48: Wood Mix | C48: 1 | D48: 2 | F48: 78.23 | G48: 156.46
A49: HC1773398 | B49: Junior Rainbow Pebbles | C49: 36 | D49: 2 | F49: 145.43 | G49: 290.86
A50: HC88201368 | B50: Super Giant Numbers 108 Pcs | C50: 108 | D50: 1 | F50: 701.93 | G50: 701.93
A51: HC1002646 | B51: Sorting Rings | C51: 6 | D51: 2 | F51: 80.85 | G51: 161.7
A52: HC1489774 | B52: Numicon Boxed Set Of 80 Shapes | C52: 80 | D52: 2 | F52: 354.9 | G52: 709.8
A53: HC1005074 | B53: Geometric Foam Solids Set 36 | C53: 36 | D53: 1 | F53: 242.03 | G53: 242.03
A54: HC1664899 | B54: Num Operations Drawing Templates Pk30 | C54: 29 | D54: 2 | F54: 120.75 | G54: 241.5
A55: HC1664899 | B55: BIGJIGS Toys Number Operations Drawing Templates Pack | C55: 29 | D55: 1 | F55: 120.75 | G55: 120.75
A56: HC1770178 | B56: Sand Timer Class Pack 20 | C56: 20 | D56: 1 | F56: 242.03 | G56: 242.03
A57: HC1770182 | B57: Sand Timer - 1 Minute | C57: 1 | D57: 1 | F57: 84.53 | G57: 84.53
A58: HC1770186 | B58: Sand Timer - 5 Minute | C58: 1 | D58: 1 | F58: 84.53 | G58: 84.53
A59: HC181213 | B59: Tape Measure Pack of 10 | C59: 10 | D59: 2 | F59: 78.23 | G59: 156.46
A60: HC1002659 | B60: Geometric Large Shapes | C60: 17 | D60: 2 | F60: 217.88 | G60: =F60*D60 -> 435.76
A61: HC424404 | B61: Geoboards 6 Colours 230mm | C61: 6 | D61: 2 | F61: 169.58 | G61: 339.16
A62: HC1002661 | B62: Geometric Plastic Shapes Large | C62: 60 | D62: 1 | F62: 322.88 | G62: 322.88
A63: HC1002639 | B63: Geometric Plastic Shapes Small | C63: 60 | D63: 2 | F63: 266.18 | G63: 532.36
A64: HC1002807 | B64: Unbreakable Mirrors 90x65mm P10 | C64: 10 | D64: 2 | F64: 52.5 | G64: 105
A65: HC1383806 | B65: Mini Measure | C65: 1 | D65: 1 | F65: 96.6 | G65: 96.6
A66: HC1383804 | B66: Mini Callipers | C66: 1 | D66: 1 | F66: 153.3 | G66: 153.3
A67: HC1490628 | B67: Dino Bones Match And Measure | C67: 16 | D67: 1 | F67: 322.88 | G67: 322.88
A68: HC1490630 | B68: Dino Bones Activity Cards | C68: 16 | D68: 1 | F68: 153.3 | G68: 153.3
A69: HC881132 | B69: Simple Scales | C69: 1 | D69: 1 | F69: 249.9 | G69: 249.9
A70: HC1002654 | B70: Unifix Cubes - Pack 500 | C70: BXG | D70: 1 | F70: 298.73 | G70: 298.73
A71: CP00057911 | B71: Translucent Counters from Hope Education - Pack of 1000 | C71: 1000 | D71: 1 | F71: 137.03 | G71: 137.03
A72: HC363525 | B72: Pupil Counting Stick P6 | C72: 6 | D72: 5 | F72: 153.3 | G72: 766.5
A73: HC1674195 | B73: Tactile Counting Stones | C73: 1 | D73: 1 | F73: 274.58 | G73: 274.58
A74: HC165405 | B74: 1000pk Counting Sticks | C74: 1000 | D74: 1 | F74: 185.33 | G74: 185.33
A75: HC1780988 | B75: Magnetic Number Mazes 0-9 | C75: 10 | D75: 1 | F75: 403.2 | G75: 403.2
A76: HC274605 | B76: Shape Templates | C76: 5 | D76: 5 | F76: 64.58 | G76: 322.9
A77: HC1666493 | B77: Easy-grip Shape Stampers - Set Of 14 | C77: 14 | D77: 1 | F77: 155.93 | G77: 155.93
A78: HC1003345 | B78: Discovery Globe 230mm | C78: 1 | D78: 1 | F78: 274.58 | G78: 274.58
A79: CP00053148 | B79: Classmates Framed Laptop Boards - Magnetic A4 | C79: 10 | D79: 1 | F79: 371.18 | G79: 371.18
A80: HC213674 | B80: Lyra Ferby Tri Col Pencils PK96 | C80: 96 | D80: 1 | F80: 420.53 | G80: 420.53
A81: HC1499776 | B81: Jumbo Bright Buttons | C81: 1 | D81: 1 | F81: 120.75 | G81: 120.75
A82: HC1423045 | B82: Insect Class Pack | C82: 48 | D82: 1 | F82: 363.3 | G82: 363.3
A83: CP053501 | B83: Baking and Modelling Set | C83: 1 | D83: 1 | F83: 379.05 | G83: 379.05
A84: HC128550 | B84: Grocery Set from Hope Education - Pack of 60 | C84: 60 | D84: 1 | F84: 249.9 | G84: 249.9
A85: HC1111420 | B85: Non Stick Cookware Set | C85: 1 | D85: 1 | F85: 266.18 | G85: 266.18
A86: HC1798035 | B86: Sabichi White 2-Slice Toaster | C86: 1 | D86: 1 | F86: 164.33 | G86: 164.33
A87: HC101117 | B87: 100 Piece Classroom Play Food | C87: 1 | D87: 1 | F87: 968.63 | G87: 968.63

Sheet Reception
F1: Basket Total | G1: =SUM(G3:G104) -> 25270.24
A2: Product Code | B2: Product Description | C2: Units of Measure | D2: Quantity | E2: Section | F2: Unit Price | G2: Total Price
A3: MATHS
A4: HC1622425 | B4: Natural Materials | C4: 1 | D4: 2 | F4: 322.88 | G4: =F4*D4 -> 645.76
A5: CP00057177 | B5: White Shells 2.5L | C5: 1 | D5: 2 | F5: 165.38 | G5: 330.76
A6: HC1574295 | B6: Wood Mix | C6: 1 | D6: 2 | F6: 78.23 | G6: 156.46
A7: HC1773398 | B7: Junior Rainbow Pebbles | C7: 36 | D7: 2 | F7: 145.43 | G7: 290.86
A8: HC88201368 | B8: Super Giant Numbers 108 Pcs | C8: 108 | D8: 1 | F8: 701.93 | G8: 701.93
A9: HC1002646 | B9: Sorting Rings | C9: 6 | D9: 2 | F9: 80.85 | G9: 161.7
A10: HC1489774 | B10: Numicon Boxed Set Of 80 Shapes | C10: 80 | D10: 2 | F10: 354.9 | G10: 709.8
A11: HC165236 | B11: Pack Of 5 Peg Boards Plus 1000 Pegs | C11: 5 | D11: 1 | F11: 153.3 | G11: 153.3
A12: HC1005074 | B12: Geometric Foam Solids Set 36 | C12: 36 | D12: 2 | F12: 242.03 | G12: 484.06
A13: HC1664899 | B13: Num Operations Drawing Templates Pk30 | C13: 29 | D13: 5 | F13: 120.75 | G13: 603.75
A14: HC1664899 | B14: BIGJIGS Toys Number Operations Drawing Templates Pack | C14: 29 | D14: 1 | F14: 120.75 | G14: 120.75
A15: HC332676 | B15: 0-100 Table Top Number Lines Pk5 | C15: 5 | D15: 2 | F15: 80.85 | G15: 161.7
A16: HC1770178 | B16: Sand Timer Class Pack 20 | C16: 20 | D16: 1 | F16: 242.03 | G16: 242.03
A17: HC1770182 | B17: Sand Timer - 1 Minute | C17: 1 | D17: 1 | F17: 84.53 | G17: 84.53
A18: HC1770186 | B18: Sand Timer - 5 Minute | C18: 1 | D18: 1 | F18: 84.53 | G18: 84.53
A19: HC181213 | B19: Tape Measure Pack of 10 | C19: 10 | D19: 2 | F19: 78.23 | G19: 156.46
A20: HC1002659 | B20: Geometric Large Shapes | C20: 17 | D20: 2 | F20: 217.88 | G20: 435.76
A21: HC424404 | B21: Geoboards 6 Colours 230mm | C21: 6 | D21: 3 | F21: 169.58 | G21: 508.74
A22: HC1002661 | B22: Geometric Plastic Shapes Large | C22: 60 | D22: 1 | F22: 322.88 | G22: 322.88
A23: HC1002639 | B23: Geometric Plastic Shapes Small | C23: 60 | D23: 2 | F23: 266.18 | G23: 532.36
A24: HC167719 | B24: Playing Cards | C24: 1 | D24: 6 | F24: 12.08 | G24: 72.48
A25: HC167485 | B25: Multi-sided Dice | C25: 5 | D25: 6 | F25: 40.43 | G25: 242.58
A26: HC1002807 | B26: Unbreakable Mirrors 90x65mm P10 | C26: 10 | D26: 2 | F26: 52.5 | G26: 105
A27: HC373873 | B27: Jumbo Playing Cards | C27: 1 | D27: 3 | F27: 38.33 | G27: 114.99
A28: HC1383806 | B28: Mini Measure | C28: 1 | D28: 1 | F28: 96.6 | G28: 96.6
A29: HC1383804 | B29: Mini Callipers | C29: 1 | D29: 1 | F29: 153.3 | G29: 153.3
A30: HC1490628 | B30: Dino Bones Match And Measure | C30: 16 | D30: 1 | F30: 322.88 | G30: 322.88
A31: HC1490630 | B31: Dino Bones Activity Cards | C31: 16 | D31: 1 | F31: 153.3 | G31: 153.3
A32: HC881132 | B32: Simple Scales | C32: 1 | D32: 1 | F32: 249.9 | G32: =F32*D32 -> 249.9
A33: HC1002654 | B33: Unifix Cubes - Pack 500 | C33: BXG | D33: 1 | F33: 298.73 | G33: 298.73
A34: CP00057911 | B34: Translucent Counters from Hope Education - Pack of 1000 | C34: 1000 | D34: 1 | F34: 137.03 | G34: 137.03
A35: HC363525 | B35: Pupil Counting Stick P6 | C35: 6 | D35: 3 | F35: 153.3 | G35: 459.9
A36: HC1674195 | B36: Tactile Counting Stones | C36: 1 | D36: 1 | F36: 274.58 | G36: 274.58
A37: HC165405 | B37: 1000pk Counting Sticks | C37: 1000 | D37: 1 | F37: 185.33 | G37: 185.33
A38: HC1780988 | B38: Magnetic Number Mazes | C38: 10 | D38: 1 | F38: 403.2 | G38: 403.2
A39: HC1535915 | B39: Numbers 0-100 | C39: 100 | D39: 1 | F39: 44.1 | G39: 44.1
A40: HC199946 | B40: Number and Operations Moulds | C40: 1 | D40: 1 | F40: 100.8 | G40: 100.8
A41: HC1490618 | B41: Jumbo Number Pebbles | C41: 1 | D41: 1 | F41: 234.15 | G41: 234.15
A42: HC274605 | B42: Shape Templates | C42: 5 | D42: 5 | F42: 64.58 | G42: 322.9
A43: HC1666493 | B43: Easy-grip Shape Stampers - Set Of 14 | C43: 14 | D43: 1 | F43: 155.93 | G43: 155.93
A44: HC1499776 | B44: Jumbo Bright Buttons | C44: 1 | D44: 1 | F44: 120.75 | G44: 120.75
A45: HC1423045 | B45: Insect Class Pack | C45: 48 | D45: 1 | F45: 363.3 | G45: 363.3
A46: CP053501 | B46: Baking and Modelling Set | C46: 1 | D46: 1 | F46: 379.05 | G46: 379.05
A47: HC128550 | B47: Grocery Set from Hope Education - Pack of 60 | C47: 60 | D47: 1 | F47: 249.9 | G47: 249.9
A48: HC1111420 | B48: Non Stick Cookware Set | C48: 1 | D48: 1 | F48: 266.18 | G48: 266.18
A49: HC1798035 | B49: Sabichi White 2-Slice Toaster | C49: 1 | D49: 1 | F49: 164.33 | G49: 164.33
A50: HC101117 | B50: 100 Piece Classroom Play Food | C50: 1 | D50: 1 | F50: 968.63 | G50: 968.63
A51: STATIONERY
A52: HC72377 | B52: Wooden Spoon | C52: 1 | D52: 6 | E52: STATIONERY | F52: 9.45 | G52: =F52*D52 -> 56.7
A53: HC1239842 | B53: Play Tray | C53: EA | D53: 3 | F53: 141.23 | G53: 423.69
A54: HC1239846 | B54: Tough Play Tray Stand | C54: 1 | D54: 1 | F54: 524.48 | G54: 524.48
A55: HC206745 | B55: Bulky Zip Wallet A4 Assorted | C55: 100 | D55: 1 | F55: 347.03 | G55: 347.03
A56: HC255469 | B56: A5 Zip Wallets Red P25 | C56: 25 | D56: 3 | F56: 112.88 | G56: 338.64
A57: HC284654 | B57: CM Address Labels 89x36mm P250 | C57: 250 | D57: 2 | F57: 24.15 | G57: 48.3
A58: CP00053887 | B58: Classmates Sticky Notes - Assorted Neon - 75 x 75mm - Pack of 12 | C58: 1 | D58: 5 | F58: 33.6 | G58: 168
A59: HC1691792 | B59: Classmates Highlighters 5 Colours Pk 48 | C59: 48 | D59: 1 | F59: 105 | G59: 105
A60: HC337213 | B60: Staedtler Noris HB Pencils Pk150 | C60: 150 | D60: 1 | F60: 133.35 | G60: 133.35
A61: HC1691844 | B61: CM Easy Grip Triangular Pencils P72 | C61: 72 | D61: 1 | F61: 145.43 | G61: 145.43
A62: HC316244 | B62: CM Metal Sharpeners Double Hole Pk12 | C62: 12 | D62: 2 | F62: 51.45 | G62: 102.9
A63: HC131969 | B63: Staedtler Rasoplast Eraser P30 | C63: 30 | D63: 1 | F63: 96.6 | G63: 96.6
A64: CP00052794 | B64: Classmates Shatter Resistant Ruler - Clear - 300mm/30cm - Pack of 10 | C64: 10 | D64: 1 | F64: 24.15 | G64: 24.15
A65: HC298772 | B65: Rapesco X5-30PS Medium Duty Hole Punch | C65: 1 | D65: 1 | F65: 64.58 | G65: 64.58
A66: HC397364 | B66: Rapesco Sting Ray Half Strip Stapler | C66: 1 | D66: 1 | F66: 56.18 | G66: 56.18
A67: HC194863 | B67: Rapesco 24/6 Staples P5000 | C67: 5000 | D67: 1 | F67: 32.03 | G67: 32.03
A68: HC1694632 | B68: Classmate Classroom Collection | C68: 9 | D68: 1 | F68: 129.15 | G68: 129.15
A69: HC186556 | B69: Paper Fasteners 25mm Pack 200 | C69: 200 | D69: 1 | F69: 48.3 | G69: 48.3
A70: HC179406 | B70: Treasury Tag 51mm Yellow P100 | C70: 100 | D70: 1 | F70: 33.6 | G70: 33.6
A71: HC397442 | B71: C M Easytear Tape 24mmx66m Pk6 | C71: 6 | D71: 1 | F71: 37.28 | G71: 37.28
A72: HC1699057 | B72: Classmate Tape Dispenser | C72: 1 | D72: 1 | F72: 45.68 | G72: 45.68
A73: HC322874 | B73: Classmates Dble Sided Tape 12mmx33mm Pk6 | C73: 6 | D73: 1 | F73: 80.85 | G73: 80.85
A74: HC225517 | B74: C M Masking Tape 24mmx50mx9 | C74: 9 | D74: 1 | F74: 100.8 | G74: 100.8
A75: HC1109953 | B75: Blu Tack Original 60g | C75: 12 | D75: 1 | F75: 105 | G75: 105
A76: HC479745 | B76: A4 Hardboard Clipboard P12 | C76: 12 | D76: 1 | F76: 254.1 | G76: 254.1
A77: CP053113AB | B77: CM LtWeight Lapboard A4 Lined P35 | C77: 35 | D77: 1 | F77: 459.9 | G77: 459.9
A78: HC131969 | B78: Staedtler Rasoplast Eraser P30 | C78: 30 | D78: 1 | F78: 96.6 | G78: 96.6
A79: HC380893 | B79: Pencil Classpk 360 Colourthin | C79: 360 | D79: 1 | F79: 673.58 | G79: 673.58
A80: HC1774064 | B80: Berol Colour Broad Classpack 288 | C80: 288 | D80: 1 | F80: 548.63 | G80: 548.63
A81: HC1102952 | B81: Edding 8 All Purpose Assorted, Bullet Tip - Pack of 144 | C81: 12 | D81: 1 | F81: 625.28 | G81: =F81*D81 -> 625.28
A82: HC209241 | B82: Giotto Metallic Fibre Pens P24 | C82: 120 | D82: 2 | F82: 159.6 | G82: 319.2
A83: CP00055181 | B83: Classmates Vivid Card Stack (125gsm) - A4/A5 | C83: 750 | D83: 1 | F83: 298.73 | G83: 298.73
A84: HC323524 | B84: Classmates A4 Pastel Ass Card 200pk | C84: 200 | D84: 2 | F84: 80.85 | G84: 161.7
A85: HC1672714 | B85: Asst Brilliant Colour Art Paper A4 PK250 | C85: 250 | D85: 1 | F85: 129.15 | G85: 129.15
A86: CP00054557 | B86: Classmates Sugar Paper Stack - A4/A3 - Pack of 3750 | C86: 3750 | D86: 1 | F86: 552.83 | G86: 552.83
A87: HC295314 | B87: Crazy Cut Scissors Pk6 | C87: 6 | D87: 2 | F87: 86.1 | G87: 172.2
A88: HC1815197 | B88: Classmates Dual Control Scissors - Right Handed | C88: 1 | D88: 12 | F88: 28.35 | G88: 340.2
A89: HC1815195 | B89: Classmates Easy Grip Scissors - Left Handed | C89: EA | D89: 3 | F89: 48.3 | G89: 144.9
A90: HC1815193 | B90: Classmates Easy Grip Scissors - Right Handed | C90: 1 | D90: 3 | F90: 56.18 | G90: 168.54
A91: CP057113 | B91: Assorted Bean Bag Pack Pk18 | C91: 18 | D91: 1 | F91: 129.15 | G91: 129.15
A92: CP00058415 | B92: Classmates Chunky Crayons - Pack of 40 | C92: 40 | D92: 2 | F92: 45.68 | G92: 91.36
A93: HC153003 | B93: Modelling Tools Set of 18 | C93: 18 | D93: 2 | F93: 164.33 | G93: 328.66
A94: HC1817618 | B94: Pot Of Modelling Tools 35 Pc | C94: 35 | D94: 1 | F94: 82.43 | G94: 82.43
A95: HC152691 | B95: Wooden Dough Tools Set P12 | C95: 12 | D95: 1 | F95: 86.1 | G95: 86.1
A96: HC103841 | B96: Modelling Board | C96: 1 | D96: 10 | F96: 48.3 | G96: 483
A97: ENGLISH
A98: HC248683 | B98: Alphabet Pebbles | C98: 1 | D98: 1 | E98: ENGLISH | F98: 314.48 | G98: =F98*D98 -> 314.48
A99: HC48850846 | B99: A4 Phoneme Frame Whiteboards - PHONEME Frame Boards, Pens & Erasers | C99: 107 | D99: 1 | F99: 766.5 | G99: 766.5
A100: HC1545178 | B100: Tricky Word Pebbles Set 1 | C100: 1 | D100: 1 | F100: 439.95 | G100: 439.95
A101: HC1002106 | B101: Smart Chute | C101: 1 | D101: 1 | F101: 153.3 | G101: 153.3
A102: HC1490696 | B102: Phonics Pebbles | C102: 1 | D102: 1 | F102: 399.53 | G102: 399.53
A103: GEOGRAPHY
A104: HC1003345 | B104: Discovery Globe 230mm | C104: 1 | D104: 1 | E104: GEOGRAPHY | F104: 274.58 | G104: =F104*D104 -> 274.58

Sheet EYFS Shared
F1: Basket Total | G1: =SUM(G3:G124) -> 98911.71
A2: Product Code | B2: Product Description | C2: Units of Measure | D2: Quantity | E2: Section | F2: Unit Price | G2: Total Price
A3: Early Years Shared Resources (ICT, Play, Messy-Play etc.)
A4: HC1778191 | B4: Group Listening Package | C4: 1 | D4: 1 | E4: EYS Shared Resources | F4: 1170.23 | G4: =F4*D4 -> 1170.23
A5: HC1782432 | B5: King Georgeâ€™s Castle With Knights | C5: 1 | D5: 2 | F5: 887.78 | G5: =F5*D5 -> 1775.56
A6: HC1499801 | B6: Fairy And Elf Furniture Pack | C6: 15 | D6: 1 | F6: 532.35 | G6: 532.35
A7: HC168681 | B7: Floor Tessellating Shapes | C7: 1 | D7: 1 | F7: 435.75 | G7: 435.75
A8: CP00050516 | B8: Clear Plastic Buckets - Pack of 8 | C8: PK | D8: 1 | F8: 120.75 | G8: 120.75
A9: HC1773348 | B9: Desk Top Sand and Water Trays | C9: 4 | D9: 1 | F9: 564.9 | G9: 564.9
A10: HC1004189 | B10: Fairy Tale Wooden Character Set | C10: 1 | D10: 1 | F10: 726.08 | G10: 726.08
A11: HC1550184 | B11: Jumbo Eyedroppers | C11: 6 | D11: 2 | F11: 105 | G11: 210
A12: HC1808606 | B12: Rainbow Tongs | C12: 6 | D12: 2 | F12: 80.85 | G12: 161.7
A13: HC342842 | B13: Easy Grip Tweezers PK12 | C13: 12 | D13: 2 | F13: 105 | G13: 210
A14: HC1785981 | B14: Superheroes Wooden Characters | C14: 1 | D14: 1 | F14: 399.53 | G14: 399.53
A15: HC424612 | B15: Stampers Numbers And Dot X 20 Pieces | C15: 1 | D15: 1 | F15: 169.58 | G15: 169.58
A16: EWMT14586 | B16: Mini Den | C16: 1 | D16: 1 | F16: 339.15 | G16: 339.15
A17: CP00050310 | B17: Large Camo Den Pegs | C17: 20 | D17: 1 | F17: 137.03 | G17: 137.03
A18: HC102927 | B18: Ironing Set | C18: 1 | D18: 1 | F18: 266.18 | G18: 266.18
A19: HC478224 | B19: Henry Vacuum | C19: 1 | D19: 1 | F19: 274.58 | G19: 274.58
A20: HC247747 | B20: Dyson Ball | C20: 1 | D20: 1 | F20: 242.03 | G20: 242.03
A21: HC1862898 | B21: TIDLO Metal Shopping Basket - Pack of 2 | C21: 2 | D21: 4 | F21: 145.43 | G21: 581.72
A22: HC1779601 | B22: Doctors Check Up Kit | C22: 1 | D22: 1 | F22: 129.15 | G22: 129.15
A23: HC1497324 | B23: Fun Hats And Accessories | C23: 1 | D23: 1 | F23: 427.88 | G23: 427.88
A24: HC128940 | B24: People Who Help Us 3-5Yrs | C24: 5 | D24: 1 | F24: 846.83 | G24: 846.83
A25: HC247825 | B25: Jungle Capes | C25: 1 | D25: 1 | F25: 540.75 | G25: 540.75
A26: HC486648 | B26: Storytelling Masks | C26: 21 | D26: 1 | F26: 242.03 | G26: 242.03
A27: HC1822222 | B27: Tool Belt | C27: 1 | D27: 1 | F27: 153.3 | G27: 153.3
A28: HC1147253 | B28: Hard Bodied Doll - African Boy | C28: 1 | D28: 1 | F28: 242.03 | G28: 242.03
A29: HC1147254 | B29: Hard Bodied Doll - African Girl | C29: 1 | D29: 1 | F29: 242.03 | G29: 242.03
A30: HC1265589 | B30: Hard Bodied Doll - Latino Boy | C30: 1 | D30: 1 | F30: 242.03 | G30: 242.03
A31: HC1265591 | B31: Hard Bodied Doll - Latino Girl | C31: 1 | D31: 1 | F31: 242.03 | G31: 242.03
A32: HC306143 | B32: Children of the World Soft-Bodied Doll - Jian | C32: 1 | D32: 1 | F32: 242.03 | G32: 242.03
A33: HC306130 | B33: Children of the World Soft-Bodied Doll - Mei | C33: 1 | D33: 1 | F33: 242.03 | G33: 242.03
A34: HC1147255 | B34: Hard Bodied Doll - European Boy | C34: 1 | D34: 1 | F34: 242.03 | G34: 242.03
A35: HC88200537 | B35: Children of the World Soft-Bodied Doll - Sophia | C35: 1 | D35: 1 | F35: 242.03 | G35: 242.03
A36: HC128459 | B36: Newborn Baby Doll Offer | C36: 4 | D36: 1 | F36: 362.78 | G36: 362.78
A37: CP052445 | B37: Dolls Wooden Furniture Offer | C37: 1 | D37: 1 | F37: 1153.95 | G37: 1153.95
A38: HC1630412 | B38: Pretend to Bee Baby Doll Clothes | C38: 6 | D38: 1 | F38: 403.2 | G38: 403.2
A39: HC123051 | B39: Multicultural Dolls Clothes | C39: 7 | D39: 1 | F39: 484.05 | G39: 484.05
A40: HC48376104 | B40: Dolls House And Furniture Offer | C40: 1 | D40: 1 | F40: 1129.8 | G40: 1129.8
A41: HC1112078 | B41: All Seasons Play House | C41: 1 | D41: 1 | F41: 1251.08 | G41: 1251.08
A42: CP00050068 | B42: Doll Family and Furniture Set | C42: 1 | D42: 1 | F42: 581.18 | G42: 581.18
A43: HC1111393 | B43: Multicultural Dolls - White Family | C43: 4 | D43: 1 | F43: 153.3 | G43: 153.3
A44: HC1111403 | B44: Multicultural Dolls - Black Family | C44: 4 | D44: 1 | F44: 153.3 | G44: 153.3
A45: HC1111404 | B45: Multicultural Dolls - Asian Family | C45: 4 | D45: 1 | F45: 153.3 | G45: 153.3
A46: HC198802 | B46: Construction Workers | C46: 4 | D46: 1 | F46: 185.33 | G46: 185.33
A47: HC130578 | B47: Fire Fighters | C47: 4 | D47: 1 | F47: 185.33 | G47: 185.33
A48: HC123103 | B48: Family Group Special Needs Dolls Offer | C48: 1 | D48: 1 | F48: 1000.65 | G48: 1000.65
A49: HC1423045 | B49: Insect Class Pack | C49: 48 | D49: 2 | F49: 363.3 | G49: =F49*D49 -> 726.6
A50: HC1812892 | B50: Jumbo Dinosaurs | C50: 6 | D50: 2 | F50: 282.45 | G50: 564.9
A51: HC128706 | B51: Dinosaur Mountain Play Pack | C51: 36 | D51: 2 | F51: 201.6 | G51: 403.2
A52: HC1766921 | B52: Wooden Vehicle Assortment | C52: 24 | D52: 1 | F52: 548.63 | G52: 548.63
A53: HC1776257 | B53: Wooden Train Assortment | C53: 24 | D53: 2 | F53: 524.48 | G53: 1048.96
A54: HC1552185 | B54: Giant Road | C54: 1 | D54: 1 | F54: 129.15 | G54: 129.15
A55: CP00052010 | B55: Multi Storey Car Park | C55: 1 | D55: 1 | F55: 1170.23 | G55: 1170.23
A56: HC488702 | B56: Authentic Die Cast 75pc Set | C56: 75 | D56: 1 | F56: 589.05 | G56: 589.05
A57: CP00057177 | B57: White Shells 2.5L | C57: 1 | D57: 2 | F57: 165.38 | G57: 330.76
A58: HC1426800 | B58: Small Black Stones 1kg | C58: 1 | D58: 4 | F58: 38.85 | G58: 155.4
A59: HC1426801 | B59: Small White Stones 1kg | C59: 1 | D59: 4 | F59: 38.85 | G59: 155.4
A60: HC1622425 | B60: Natural Materials | C60: 1 | D60: 2 | F60: 322.88 | G60: 645.76
A61: HC1574295 | B61: Wood Mix | C61: 1 | D61: 2 | F61: 78.23 | G61: 156.46
A62: HC1622425 | B62: Natural Materials | C62: 1 | D62: 1 | F62: 322.88 | G62: 322.88
A63: HC1861653 | B63: Smooshy Sand - Blue 2.5kg Bag | C63: 1 | D63: 2 | F63: 161.18 | G63: 322.36
A64: HC1860499 | B64: Gelli Play Blue | C64: 1 | D64: 2 | F64: 161.18 | G64: 322.36
A65: HC125248 | B65: Giant Sand And Water Activity Set | C65: 1 | D65: 1 | F65: 750.23 | G65: 750.23
A66: HC1311126 | B66: Classroom Water Play Set | C66: 1 | D66: 1 | F66: 419.48 | G66: 419.48
A67: HC176104 | B67: Acrylic Gemstones 500g | C67: 1 | D67: 1 | F67: 112.88 | G67: 112.88
A68: HC259317 | B68: Popoids Animal People Set | C68: 1 | D68: 1 | F68: 1089.38 | G68: 1089.38
A69: HC1377961 | B69: POLYDRON Giant Octoplay Multibuy Offer | C69: 1 | D69: 2 | F69: 1395.98 | G69: 2791.96
A70: HC1369980 | B70: Mobilo Group Set – 120 Pieces | C70: 120 | D70: 1 | F70: 419.48 | G70: 419.48
A71: HC48753913 | B71: Kid Knex Group Set | C71: 1 | D71: 1 | F71: 443.63 | G71: 443.63
A72: HC1660105 | B72: Colours And Shape Pegboard | C72: 4 | D72: 1 | F72: 347.03 | G72: 347.03
A73: HC389096 | B73: Stainless Steel Mixing Bowl | C73: EA | D73: 3 | F73: 48.3 | G73: 144.9
A74: HC131995 | B74: I Can Puzzles | C74: 4 | D74: 1 | F74: 161.18 | G74: 161.18
A75: HC1552185 | B75: Giant Road | C75: 1 | D75: 1 | F75: 129.15 | G75: 129.15
A76: CP053504 | B76: Oldfield Farm with 36 Animals and People | C76: 36 | D76: 2 | F76: 847.35 | G76: 1694.7
A77: CP00051035 | B77: Textured sand rollers from Hope | C77: 5 | D77: 1 | F77: 161.18 | G77: 161.18
A78: HC1510000 | B78: Sand And Water Mill | C78: 1 | D78: 6 | F78: 129.15 | G78: 774.9
A79: HC1537013 | B79: Sprat Fishing 1-30 | C79: 1 | D79: 1 | F79: 330.75 | G79: 330.75
A80: HC1512401 | B80: Smart Splash Number Fun Ducks | C80: 1 | D80: 1 | F80: 201.6 | G80: 201.6
A81: HC416565 | B81: Sorting Bowls PK6 | C81: 6 | D81: 6 | F81: 64.58 | G81: 387.48
A82: HC1794249 | B82: Nylon Smocks - Small | C82: EA | D82: 10 | F82: 42.53 | G82: 425.3
A83: HC1794251 | B83: Nylon Smocks - Medium | C83: EA | D83: 10 | F83: 42.53 | G83: 425.3
A84: HC342842 | B84: Easy Grip Tweezers PK12 | C84: 12 | D84: 4 | F84: 105 | G84: 420
A85: EHMT14042 | B85: Jumbo Number Pebbles | C85: pack | D85: 6 | F85: 234.15 | G85: 1404.9
A86: HC1511962 | B86: Silishapes® Number Dots | C86: pack of 10 | D86: 6 | F86: 96.6 | G86: 579.6
A87: CP00060000 | B87: Pupil Number Fans from Hope Education Pack of 10 | C87: pack of 10 | D87: 6 | F87: 105 | G87: 630
A88: HC1579923 | B88: Relational Attribute Blocks | C88: set of 60 | D88: 6 | F88: 169.58 | G88: 1017.48
A89: HC176585 | B89: Classmates Beads Bucket | C89: tub | D89: 6 | F89: 266.18 | G89: 1597.08
A90: EFMT14074 | B90: Box of 80 Numicon | C90: box | D90: 6 | F90: 354.9 | G90: 2129.4
A91: HC1422645 | B91: Silishapes™ Alphabet Trace | C91: pack | D91: 6 | F91: 120.75 | G91: 724.5
A92: HC1826918 | B92: Chalkboard Cubes | C92: pack of 12 | D92: 6 | F92: 225.75 | G92: 1354.5
A93: ECMT10565 | B93: Alphabet Teaching Tubs Pack 26 Sounds | C93: 26 tubs | D93: 6 | F93: 1855.88 | G93: =F93*D93 -> 11135.28
A94: HC1812882 | B94: Sealife Animals Set | C94: pack of 7 | D94: 6 | F94: 290.33 | G94: 1741.98
A95: HC1819492 | B95: Loose Parts Special Offer Bundle | C95: bundle | D95: 2 | F95: 1015.88 | G95: 2031.76
A96: HC1773396 | B96: Large Hollow Blocks | C96: P28 | D96: 4 | F96: 2098.43 | G96: 8393.72
A97: HC1002642 | B97: Dinosaur counters | C97: tub pack 128 | D97: 1 | F97: 88.73 | G97: 88.73
A98: HC1769817 | B98: Plum Discovery Mud Kitchen | C98: 1 | D98: 1 | F98: 2622.9 | G98: 2622.9
A99: HC1674447 | B99: Mud Kitchen Bowls | C99: 1 | D99: 1 | F99: 210 | G99: 210
A100: CP00057915 | B100: Large Metal Ladles from Hope Education - Set of 6 | C100: 6 | D100: 1 | F100: 161.18 | G100: 161.18
A101: HC1290746 | B101: Number Construction | C101: box | D101: 1 | F101: 234.15 | G101: 234.15
A102: EFMT13249 | B102: Superior Sorting Set | C102: set | D102: 1 | F102: 532.35 | G102: 532.35
A103: EYFS Shared role play
A104: HC101117 | B104: 100 Piece Classroom Play Food | D104: 1 | F104: 968.63 | G104: 968.63
A105: HC128550 | B105: Grocery Set | D105: 3 | F105: 249.9 | G105: 749.7
A106: CP00056188 | B106: Fruit and Vegetables | D106: 5 | F106: 249.9 | G106: 1249.5
A107: HC1196984 | B107: Millhouse - Outdoor Shop/Theatre | D107: 1 | F107: 3131.1 | G107: 3131.1
A108: HC123025 | B108: Multicultural Costumes Multibuy Offer - Pack of 6 | D108: 2 | F108: 1290.98 | G108: 2581.96
A109: HC1302363 | B109: Chef's Outfit - 3-5 Years | D109: 1 | F109: 193.73 | G109: 193.73
A110: HC1352446 | B110: Medic - 3-5 Years | D110: 1 | F110: 193.73 | G110: 193.73
A111: HC130760 | B111: Fire and Rescue Officer - 3-5 Years | D111: 1 | F111: 193.73 | G111: 193.73
A112: HC131020 | B112: Police Officer - 3-5 Years | D112: 1 | F112: 193.73 | G112: 193.73
A113: HC140718 | B113: Traffic Person Outfit - Age 3-5 | D113: 1 | F113: 193.73 | G113: 193.73
A114: HC247825 | B114: Jungle Capes - 3-5 Years | D114: 2 | F114: 540.75 | G114: 1081.5
A115: HC247838 | B115: Farmyard Capes | D115: 2 | F115: 540.75 | G115: 1081.5
A116: HC1675681 | B116: Space Set | D116: 2 | F116: 524.48 | G116: 1048.96
A117: HC1497324 | B117: Fun Hats and Accessories | D117: 1 | F117: 427.88 | G117: 427.88
A118: HC1497321 | B118: Occupation Accessories Pack | D118: 2 | F118: 645.75 | G118: 1291.5
A119: HC128940 | B119: People Who Help Us Dressing Up Bundle - 3-5 Years - Pack of 5 | D119: 3 | F119: 846.83 | G119: 2540.49
A120: HC129278 | B120: Medical Dressing Up Bundle - 3-5 Years - Pack of 6 | D120: 3 | F120: 959.7 | G120: 2879.1
A121: HC128420 | B121: People Who Help Us Tabards - Set 2 | D121: 3 | F121: 322.88 | G121: 968.64
A122: HC1197884 | B122: Superhero Capes | D122: 2 | F122: 484.05 | G122: 968.1
A123: HC123285 | B123: Occupational Tabards Multibuy Offer | D123: 2 | F123: 613.2 | G123: 1226.4
A124: HC1551997 | B124: Wooden Food Crate - Meat and Fish | D124: 1 | F124: 145.43 | G124: 145.43

Sheet EYFS Outdoor & Play
F1: Basket Total | G1: =SUM(G3:G50) -> 87540.47
A2: Product Code | B2: Product Description | C2: Units of Measure | D2: Quantity | E2: Section | F2: Unit Price | G2: Total Price
A3: FS Outdoor
A4: HC1775636 | B4: Wooden Spoons | C4: 3 | D4: 8 | E4: EYFS Outdoor | F4: 24.15 | G4: =F4*D4 -> 193.2
A5: HC1775654 | B5: Wooden Bowl Set | C5: 4 | D5: 3 | F5: 40.43 | G5: =F5*D5 -> 121.29
A6: HC389096 | B6: Stainless Steel Mixing Bowl | C6: EA | D6: 8 | F6: 48.3 | G6: 386.4
A7: HC1003052 | B7: Stainless Steel Sieves | C7: 3 | D7: 2 | F7: 516.6 | G7: 1033.2
A8: HC1710649 | B8: Metal Scoop Set - 4 Pack | C8: 4 | D8: 2 | F8: 201.6 | G8: 403.2
A9: HC1499795 | B9: Fairy And Elf Tree House | C9: 1 | D9: 1 | F9: 1105.65 | G9: 1105.65
A10: HC1511425 | B10: Wooden Brushes | C10: 4 | D10: 1 | F10: 274.58 | G10: 274.58
A11: HC1776194 | B11: Bamboo Channeling Set | C11: 1 | D11: 2 | F11: 435.75 | G11: 871.5
A12: HC1833603 | B12: Water Channelling Set | C12: 6 | D12: 3 | F12: 347.03 | G12: 1041.09
A13: HC1499805 | B13: Wooden Signs | C13: 4 | D13: 2 | F13: 294.53 | G13: 589.06
A14: HC1584266 | B14: 50cm Seagrass Numbers | C14: 10 | D14: 1 | F14: 524.48 | G14: 524.48
A15: HC1003776 | B15: Parachute 1.8m | C15: 1 | D15: 1 | F15: 88.73 | G15: 88.73
A16: HC1787654 | B16: Parachute 5m | C16: 1 | D16: 1 | F16: 403.2 | G16: 403.2
A17: HC1003779 | B17: Spordas Megatunnel | C17: 1 | D17: 1 | F17: 1210.65 | G17: 1210.65
A18: HC1522527 | B18: Spordas Jump Ropes 2.1m P6 | C18: 6 | D18: 1 | F18: 80.85 | G18: 80.85
A19: HC1828481 | B19: Jumping Ball - Yellow-55cm-6 Years | C19: 1 | D19: 6 | F19: 129.15 | G19: 774.9
A20: HC88201332 | B20: Budget Playground Pack 2 | C20: 1 | D20: 1 | F20: 1290.98 | G20: 1290.98
A21: HC1012185 | B21: Hula Hoop Set 760mm Pk 12 | C21: 12 | D21: 1 | F21: 234.15 | G21: 234.15
A22: CP00050516 | B22: Clear Plastic Buckets - Pack of 8 | C22: PK | D22: 4 | F22: 120.75 | G22: 483
A23: HC48850934 | B23: Traffic Signs Pk12 | C23: 12 | D23: 1 | F23: 928.2 | G23: 928.2
A24: HC118241 | B24: Ribbon Glitter Stick Set Pk 3 | C24: 3 | D24: 4 | F24: 80.85 | G24: 323.4
A25: IPEP09732 | B25: Findel Everyday Animal Beanbag Menagerie - Assorted - Pack of 38 | C25: 38 | D25: 2 | F25: 806.93 | G25: 1613.86
A26: HC101380 | B26: Jumbo Sidewalk Chalk 52 Pieces | C26: 52 | D26: 2 | F26: 47.78 | G26: 95.56
A27: HC1377961 | B27: POLYDRON Giant Octoplay Multibuy Offer | C27: 1 | D27: 2 | F27: 1395.98 | G27: 2791.96
A28: HC1003776 | B28: Parachute 1.8m | C28: 1 | D28: 1 | F28: 88.73 | G28: 88.73
A29: HC1787654 | B29: Parachute 5m | C29: 1 | D29: 1 | F29: 403.2 | G29: 403.2
A30: IPEE78099 | B30: Hula Hoop Set 460mm PK12 | C30: 12 | D30: 1 | F30: 145.43 | G30: 145.43
A31: IPEE78106 | B31: Hula Hoop Set 610mm Pk12 | C31: 12 | D31: 1 | F31: 201.6 | G31: 201.6
A32: HC1012357 | B32: Ribbon Tail Ball | C32: 6 | D32: 2 | F32: 145.43 | G32: 290.86
A33: HC1012211 | B33: Rainbow Skipping Rope | C33: EA | D33: 30 | F33: 32.03 | G33: 960.9
A34: HC1003773 | B34: Coloured Skipping Rope Pack | C34: 4 | D34: 1 | F34: 56.18 | G34: 56.18
A35: HC1674294 | B35: Chess Board Game | C35: 1 | D35: 5 | F35: 88.73 | G35: 443.65
A36: HC1674294 | B36: Chess Board Game | C36: 1 | D36: 5 | F36: 88.73 | G36: 443.65
A37: HC1013260 | B37: Spordas Super Safe Flexi Cones - Assorted - Pack of 6 | C37: 6 | D37: 4 | F37: 234.15 | G37: 936.6
A38: SCOOTERS
A39: HC48379653 | B39: RABO® 2 Wheeled Scooter | D39: 4 | E39: SCOOTERS | F39: 1484.7 | G39: =D39*F39 -> 5938.8
A40: HC48379679 | B40: RABO® Bike | D40: 4 | F40: 1646.4 | G40: 6585.6
A41: HC48124002 | B41: RABO® Chariot | D41: 2 | F41: 2477.48 | G41: 4954.96
A42: HC44013694 | B42: RABO® Taxi Trike | D42: 2 | F42: 2881.2 | G42: 5762.4
A43: HC48081196 | B43: RABO® Tricart | D43: 4 | F43: 1855.88 | G43: 7423.52
A44: HC48831601 | B44: Large Bike | D44: 4 | F44: 1735.13 | G44: 6940.52
A45: HC48379666 | B45: RABO® 3 Wheeled Wide-Based Scooter | D45: 4 | F45: 1371.83 | G45: 5487.32
A46: HC48649861 | B46: RABO® Circle Cart | D46: 2 | F46: 2058 | G46: 4116
A47: HC48831640 | B47: RABO® Large Runner | D47: 2 | F47: 1646.4 | G47: 3292.8
A48: HC48787895 | B48: RABO® Runner | D48: 4 | F48: 1412.25 | G48: 5649
A49: HC48831627 | B49: RABO® Large Pick Up | D49: 2 | F49: 2146.73 | G49: 4293.46
A50: HC1553934 | B50: RABO® Mini Scooter | D50: 4 | F50: 1565.55 | G50: 6262.2

Sheet Year 1
G1: Basket Total | H1: =SUM(H3:H115) -> 30532.51
A2: Product Code | B2: Product Description | C2: Units of Measure | D2: Quantity | E2: Section | F2: Curriculum Area | G2: Unit Price | H2: Total Price
A3: MATHS
A4: HC1489774 | B4: Numicon Boxed Set Of 80 Shapes | C4: 80 | D4: 2 | E4: Maths | F4: Number and Place Value | G4: 354.9 | H4: =G4*D4 -> 709.8
A5: CP00060000 | B5: Pupil Number Fans from Hope Education Pack of 10 | C5: pack of 10 | D5: 6 | F5: Number and Place Value | G5: 105 | H5: 630
A6: HC1664899 | B6: BIGJIGS Toys Number Operations Drawing Templates Pack | C6: 29 | D6: 1 | F6: Number and Place Value | G6: 120.75 | H6: 120.75
A7: HC332676 | B7: 0-100 Table Top Number Lines Pk5 | C7: 5 | D7: 4 | F7: Number and Place Value | G7: 80.85 | H7: 323.4
A8: HC1536010 | B8: Student Number Line from Hope Education - Pack of 30 | C8: 30 | D8: 1 | F8: Number and Place Value | G8: 152.25 | H8: 152.25
A9: HC88201368 | B9: Super Giant Numbers 108 Pcs | C9: 100 | D9: 1 | F9: Number and Place Value | G9: 701.93 | H9: 701.93
A10: HC170488 | B10: Match And Count | C10: 1 | D10: 1 | F10: Number and Place Value | G10: 105 | H10: 105
A11: HC1535915 | B11: Numbers 0-100 | C11: 100 | D11: 1 | F11: Number and Place Value | G11: 44.1 | H11: 44.1
A12: HC199946 | B12: Number and Operations Moulds | C12: 1 | D12: 1 | F12: Number and Place Value | G12: 100.8 | H12: 100.8
A13: HC373964 | B13: Number Tiles | C13: 1 | D13: 1 | F13: Number and Place Value | G13: 330.75 | H13: 330.75
A14: HC1002646 | B14: Sorting Rings | C14: 6 | D14: 2 | F14: Number and Place Value | G14: 80.85 | H14: 161.7
A15: EFMT14686 | B15: Giant Magnetic Array Set | C15: 1 | D15: 1 | F15: Multiplication and Division | G15: 137.03 | H15: 137.03
A16: HC1664901 | B16: Add and Subtract Box | C16: 1 | D16: 1 | F16: Addition and Subtraction | G16: 80.85 | H16: 80.85
A17: EGMT13629 | B17: Addition and Subtraction Cards | C17: 6 | D17: 1 | F17: Addition and Subtraction | G17: 339.15 | H17: 339.15
A18: HC425015 | B18: Giant Blank Cruncher | C18: 1 | D18: 1 | F18: Addition and Subtraction | G18: 112.88 | H18: 112.88
A19: HC1773970 | B19: Connecting Number Rods & Work Cards Set | C19: 1 | D19: 1 | F19: Addition and Subtraction | G19: 96.6 | H19: 96.6
A20: HC1866833 | B20: Magnetic Apple Fractions | C20: 1 | D20: 1 | F20: Fractions, Decimals and Percentages | G20: 234.15 | H20: 234.15
A21: CP00050533 | B21: Food Fractions | C21: 1 | D21: 1 | F21: Fractions, Decimals and Percentages | G21: 177.45 | H21: 177.45
A22: HC274605 | B22: Shape Templates | C22: 5 | D22: 5 | F22: Geometry | G22: 64.58 | H22: 322.9
A23: HC1666493 | B23: Easy-grip Shape Stampers - Set Of 14 | C23: 14 | D23: 1 | F23: Geometry | G23: 155.93 | H23: 155.93
A24: HC424404 | B24: Geoboards 6 Colours 230mm | C24: 6 | D24: 4 | F24: Geometry | G24: 169.58 | H24: 678.32
A25: HC181213 | B25: Tape Measure Pack of 10 | C25: 10 | D25: 2 | F25: Measurement | G25: 78.23 | H25: 156.46
A26: E8A73842 | B26: 1m Wood Rule - Marked CM And MM | C26: 1 | D26: 5 | F26: Measurement | G26: 37.28 | H26: 186.4
A27: EFMT14433 | B27: Class Coin Set | C27: 1 | D27: 1 | F27: Measurement | G27: 246.23 | H27: 246.23
A28: E8R09487 | B28: Dual Power Timer - Pack of 5 | C28: 5 | D28: 1 | F28: Measurement | G28: 266.18 | H28: 266.18
A29: HC169526 | B29: Grocery Store Flip | C29: 1 | D29: 1 | F29: Measurement | G29: 213.68 | H29: 213.68
A30: EDMT14144 | B30: Mini Time Tracker | C30: 1 | D30: 1 | F30: Measurement | G30: 210 | H30: 210
A31: HC1002690 | B31: Number Fishing Game | C31: 1 | D31: 1 | F31: Teaching Resource | G31: 435.75 | H31: =G31*D31 -> 435.75
A32: HC1820757 | B32: Number and Symbol's Spots | C32: 1 | D32: 1 | F32: Classroom Tools | G32: 508.2 | H32: 508.2
A33: CP00058301 | B33: Show-me Magnetic Numbers and Symbols | C33: 1 | D33: 1 | F33: Classroom Tools | G33: 185.33 | H33: 185.33
A34: HC167784 | B34: Coloured Dominoes Pk 168 | C34: 168 | D34: 1 | F34: Classroom Tools | G34: 145.43 | H34: 145.43
A35: HC1490618 | B35: Jumbo Number Pebbles | C35: 20 | D35: 1 | F35: Classroom Tools | G35: 234.15 | H35: 234.15
A36: HC167446 | B36: Foam Dice Blue | C36: 1 | D36: 5 | F36: Classroom Tools | G36: 64.58 | H36: 322.9
A37: HC312396 | B37: 100 Coloured Dice 4 Colours | C37: 100 | D37: 1 | F37: Classroom Tools | G37: 48.3 | H37: 48.3
A38: CP00057911 | B38: Translucent Counters from Hope Education - Pack of 1000 | C38: 1000 | D38: 1 | F38: Classroom Tools | G38: 137.03 | H38: 137.03
A39: HC363525 | B39: Pupil Counting Stick P6 | C39: 6 | D39: 3 | F39: Classroom Tools | G39: 153.3 | H39: 459.9
A40: HC1674195 | B40: Tactile Counting Stones | C40: 1 | D40: 1 | F40: Classroom Tools | G40: 274.58 | H40: 274.58
A41: HC165405 | B41: 1000pk Counting Sticks | C41: 1000 | D41: 1 | F41: Classroom Tools | G41: 185.33 | H41: 185.33
A42: HC1770182 | B42: Sand Timer - 1 Minute | C42: 1 | D42: 1 | F42: Classroom Tools | G42: 84.53 | H42: 84.53
A43: HC1770186 | B43: Sand Timer - 5 Minute | C43: 1 | D43: 1 | F43: Classroom Tools | G43: 84.53 | H43: 84.53
A44: CP00060270 | B44: Abacus with 100 beads | C44: 1 | D44: 1 | F44: Classroom Tools | G44: 79.8 | H44: 79.8
A45: CP00059299 | B45: Base Ten Class Set 184 pieces | C45: 184 | D45: 1 | F45: Classroom Tools | G45: 403.2 | H45: 403.2
A46: EFMT14205 | B46: Giant Magnetic Base 10 Demonstration Set | C46: 1 | D46: 1 | F46: Classroom Tools | G46: 205.8 | H46: 205.8
A47: HC167121 | B47: Write-On/Wipe-Off 100 Squares - Pack of 35 | C47: 35 | D47: 1 | F47: Classroom Tools | G47: 80.85 | H47: 80.85
A48: HC1822714 | B48: Eco Friendly 20 Bead String | C48: 1 | D48: 15 | F48: Classroom Tools | G48: 56.18 | H48: 842.7
A49: HC1822716 | B49: Eco-friendly 100 Bead String | C49: 1 | D49: 1 | F49: Classroom Tools | G49: 217.88 | H49: 217.88
A50: HC373873 | B50: Jumbo Playing Cards | C50: 1 | D50: 5 | F50: Classroom Tools | G50: 38.33 | H50: 191.65
A51: HC167719 | B51: Playing Cards | C51: 1 | D51: 15 | F51: Classroom Tools | G51: 12.08 | H51: 181.2
A52: HC167576 | B52: Polyhedron Number Dice - Pack 35 | C52: 35 | D52: 1 | F52: Classroom Tools | G52: 40.43 | H52: 40.43
A53: HC167693 | B53: Plastic Spinner Set | C53: 4 | D53: 1 | F53: Classroom Tools | G53: 40.43 | H53: 40.43
A54: EFMT14097 | B54: Foam Dice with Pockets | C54: 1 | D54: 1 | F54: Classroom Tools | G54: 32.03 | H54: 32.03
A55: EFMT14179 | B55: Teacher Whiteboard Dice | C55: 4 | D55: 1 | F55: Classroom Tools | G55: 306.6 | H55: 306.6
A56: EFMT11929 | B56: Unifix® Cubes - Pack of 500 | C56: 500 | D56: 1 | F56: Classroom Tools | G56: 298.73 | H56: =G56*D56 -> 298.73
A57: STATIONERY
A58: HC1694632 | B58: Classmate Classroom Collection | C58: 9 | D58: 1 | E58: Stationery | G58: 129.15 | H58: =G58*D58 -> 129.15
A59: HC206745 | B59: A4 Bulky Zip Wallets Asst P100 | C59: 100 | D59: 1 | G59: 347.03 | H59: =G59*D59 -> 347.03
A60: HC255469 | B60: A5 Zip Wallets Red P25 | C60: 25 | D60: 3 | G60: 112.88 | H60: 338.64
A61: HC284654 | B61: CM Address Labels 89x36mm P250 | C61: 250 | D61: 2 | G61: 24.15 | H61: 48.3
A62: CP00053887 | B62: Classmates Sticky Notes - Assorted Neon - 75 x 75mm - Pack of 12 | C62: 1 | D62: 5 | G62: 33.6 | H62: 168
A63: HC1691792 | B63: Classmates Highlighters 5 Colours Pk 48 | C63: 48 | D63: 1 | G63: 105 | H63: 105
A64: HC1691844 | B64: CM Easy Grip Triangular Pencils P72 | C64: 72 | D64: 1 | G64: 145.43 | H64: 145.43
A65: HC316244 | B65: CM Metal Sharpeners Double Hole Pk12 | C65: 12 | D65: 2 | G65: 51.45 | H65: 102.9
A66: HC131969 | B66: Staedtler Rasoplast Eraser P30 | C66: 30 | D66: 1 | G66: 96.6 | H66: 96.6
A67: CP00052794 | B67: Classmates Shatter Resistant Ruler - Clear - 300mm/30cm - Pack of 10 | C67: 10 | D67: 3 | G67: 24.15 | H67: 72.45
A68: HC298772 | B68: Rapesco X5-30PS Medium Duty Hole Punch | C68: 1 | D68: 1 | G68: 64.58 | H68: 64.58
A69: HC397364 | B69: Rapesco Sting Ray Half Strip Stapler | C69: 1 | D69: 1 | G69: 56.18 | H69: 56.18
A70: HC194863 | B70: Rapesco 24/6 Staples P5000 | C70: 5000 | D70: 1 | G70: 32.03 | H70: 32.03
A71: HC186556 | B71: Paper Fasteners 25mm Pack 200 | C71: 200 | D71: 1 | G71: 48.3 | H71: 48.3
A72: HC179406 | B72: Treasury Tag 51mm Yellow P100 | C72: 100 | D72: 1 | G72: 33.6 | H72: 33.6
A73: HC397442 | B73: C M Easytear Tape 24mmx66m Pk6 | C73: 6 | D73: 1 | G73: 37.28 | H73: 37.28
A74: HC1699057 | B74: Classmate Tape Dispenser | C74: 1 | D74: 1 | G74: 45.68 | H74: 45.68
A75: HC322874 | B75: Classmates Dble Sided Tape 12mmx33mm Pk6 | C75: 6 | D75: 1 | G75: 80.85 | H75: 80.85
A76: HC225517 | B76: C M Masking Tape 24mmx50mx9 | C76: 9 | D76: 1 | G76: 100.8 | H76: 100.8
A77: HC1109953 | B77: Blu Tack Original 60g | C77: 12 | D77: 1 | G77: 105 | H77: 105
A78: HC479745 | B78: A4 Hardboard Clipboard P12 | C78: 12 | D78: 2 | G78: 254.1 | H78: 508.2
A79: CP053113AB | B79: CM LtWeight Lapboard A4 Lined P35 | C79: 35 | D79: 1 | G79: 459.9 | H79: 459.9
A80: HC383558 | B80: Lakeland Jumbo Pencils Classpack | C80: 144 | D80: 1 | G80: 581.7 | H80: 581.7
A81: HC1774070 | B81: Berol Colour Fine Classpack 288 | C81: 288 | D81: 1 | G81: 548.63 | H81: 548.63
A82: HC1774064 | B82: Berol Colour Broad Classpack 288 | C82: 288 | D82: 1 | G82: 548.63 | H82: 548.63
A83: HC1102952 | B83: Edding 8 All Purpose Assorted, Bullet Tip - Pack of 144 | C83: 144 | D83: 1 | G83: 625.28 | H83: 625.28
A84: HC209241 | B84: Giotto Metallic Fibre Pens P24 | C84: 24 | D84: 5 | G84: 159.6 | H84: 798
A85: HC1815185 | B85: School Scissor Set P32 inc Box | C85: 32 | D85: 1 | G85: 145.43 | H85: 145.43
A86: HC295314 | B86: Crazy Cut Scissors Pk6 | C86: 6 | D86: 2 | G86: 86.1 | H86: 172.2
A87: HC370844 | B87: Bulk Buy - 6 Collage Jars | C87: 6 | D87: 1 | G87: 201.6 | H87: 201.6
A88: CP057113 | B88: Assorted Bean Bag Pack Pk18 | C88: 18 | D88: 1 | G88: 129.15 | H88: 129.15
A89: HC1239842 | B89: Tough Play Tray | C89: 1 | D89: 1 | G89: 141.23 | H89: 141.23
A90: HC1815197 | B90: Classmates Dual Control Scissors - Right Handed | C90: 1 | D90: 12 | G90: 28.35 | H90: 340.2
A91: HC1815195 | B91: Classmates Easy Grip Scissors - Left Handed | C91: EA | D91: 3 | G91: 48.3 | H91: 144.9
A92: HC1815193 | B92: Classmates Easy Grip Scissors - Right Handed | C92: 1 | D92: 3 | G92: 56.18 | H92: 168.54
A93: CP00058415 | B93: Classmates Chunky Crayons - Pack of 40 | C93: 40 | D93: 2 | G93: 45.68 | H93: 91.36
A94: ENGLISH
A95: HC248683 | B95: Alphabet Pebbles | C95: 1 | D95: 1 | E95: English | G95: 314.48 | H95: =G95*D95 -> 314.48
A96: HC1545178 | B96: Tricky Word Pebbles Set 1 | C96: 1 | D96: 1 | G96: 439.95 | H96: =G96*D96 -> 439.95
A97: HC1002106 | B97: Smart Chute | C97: 1 | D97: 1 | G97: 153.3 | H97: 153.3
A98: HC1490696 | B98: Phonics Pebbles | C98: 1 | D98: 2 | G98: 399.53 | H98: 799.06
A99: HC1536875 | B99: Reading Comprehension Cubes | C99: 1 | D99: 1 | G99: 100.8 | H99: 100.8
A100: HC1353913 | B100: A5 dictionaries | C100: 30 | D100: 1 | G100: 112.88 | H100: 112.88
A101: HC1564053 | B101: Oxford First Grammar, Punctuation and Spelling Dictionary | C101: EA | D101: 15 | G101: 88.73 | H101: 1330.95
A102: HC48834227 | B102: Reading comprehension box 1 | C102: 1 | D102: 1 | G102: 1855.88 | H102: 1855.88
A103: HC1821852 | B103: Click it sentence builder | C103: 204 | D103: 1 | G103: 564.9 | H103: 564.9
A104: HC1536830 | B104: Creative writing directory | C104: 1 | D104: 6 | G104: 105 | H104: 630
A105: HC1579204 | B105: Traditional tale book pack | C105: 6 | D105: 1 | G105: 242.03 | H105: 242.03
A106: HC1775781 | B106: Diversity picture books for KS1 | C106: 8 | D106: 1 | G106: 508.2 | H106: 508.2
A107: CP059603 | B107: Julia Donaldson book pack | C107: 8 | D107: 1 | G107: 427.88 | H107: 427.88
A108: HC1682556 | B108: Stories from around the world | C108: 10 | D108: 1 | G108: 443.63 | H108: 443.63
A109: CP00053601 | B109: LDA Pencil Grips Grippies - Pack of 10 | C109: 10 | D109: 1 | G109: 40.95 | H109: 40.95
A110: HC1677021 | B110: Talking tins and activity guide | C110: 10 | D110: 1 | G110: 725.55 | H110: 725.55
A111: GEOGRAPHY
A112: HC1003345 | B112: Discovery Globe 230mm | C112: 1 | D112: 1 | E112: GEOGRAPHY | G112: 274.58 | H112: 274.58
A113: HC1003150 | B113: Plotting Compass 16mm | C113: 10 | D113: 4 | G113: 30.45 | H113: 121.8
A114: HC1350713 | B114: Continents and oceans map | C114: 1 | D114: 1 | G114: 137.03 | H114: 137.03
A115: HC1206845 | B115: Let's Explore the UK Photo Pack | C115: 20 | D115: 2 | G115: 261.98 | H115: 523.96

Sheet Year 2
G1: Basket Total | H1: =SUM(H3:H133) -> 34691.64
A2: Product Code | B2: Product Description | C2: Units of Measure | D2: Quantity | E2: Section | F2: Curriculum Area | G2: Unit Price | H2: Total Price
A3: MATHS
A4: HC1489774 | B4: Numicon Boxed Set Of 80 Shapes | C4: 80 | D4: 2 | E4: Maths | F4: Number and Place Value | G4: 354.9 | H4: =G4*D4 -> 709.8
A5: CP00060000 | B5: Pupil Number Fans from Hope Education Pack of 10 | C5: pack of 10 | D5: 6 | F5: Number and Place Value | G5: 105 | H5: =G5*D5 -> 630
A6: HC1664899 | B6: BIGJIGS Toys Number Operations Drawing Templates Pack | C6: 29 | D6: 1 | F6: Number and Place Value | G6: 120.75 | H6: 120.75
A7: HC332676 | B7: 0-100 Table Top Number Lines Pk5 | C7: 5 | D7: 4 | F7: Number and Place Value | G7: 80.85 | H7: 323.4
A8: HC1536010 | B8: Student Number Line from Hope Education - Pack of 30 | C8: 30 | D8: 1 | F8: Number and Place Value | G8: 152.25 | H8: 152.25
A9: HC88201368 | B9: Super Giant Numbers 108 Pcs | C9: 100 | D9: 1 | F9: Number and Place Value | G9: 701.93 | H9: 701.93
A10: HC170488 | B10: Match And Count | C10: 1 | D10: 1 | F10: Number and Place Value | G10: 105 | H10: =G10*D10 -> 105
A11: HC1535915 | B11: Numbers 0-100 | C11: 100 | D11: 1 | F11: Number and Place Value | G11: 44.1 | H11: 44.1
A12: HC199946 | B12: Number and Operations Moulds | C12: 1 | D12: 1 | F12: Number and Place Value | G12: 100.8 | H12: =G12*D12 -> 100.8
A13: EFMT14690 | B13: A5 Double Sided Multiplication Grid - Pack of 35 | C13: 35 | D13: 1 | F13: Multiplication and Division | G13: 169.58 | H13: 169.58
A14: EFMT14686 | B14: Giant Magnetic Array Set | C14: 1 | D14: 1 | F14: Multiplication and Division | G14: 137.03 | H14: 137.03
A15: HC1361214 | B15: 2, 5 and 10 Times Table Bingo | C15: 1 | D15: 1 | F15: Multiplication and Division | G15: 266.18 | H15: 266.18
A16: HC1664901 | B16: Add and Subtract Box | C16: 1 | D16: 1 | F16: Multiplication and Division | G16: 80.85 | H16: 80.85
A17: HC1290940 | B17: 2, 5 and 10 Multiplication and Division Crunchers - Pack of 72 | C17: 72 | D17: 1 | F17: Multiplication and Division | G17: 261.98 | H17: 261.98
A18: HC1782355 | B18: Maths Mastery Early Division Set | C18: 1 | D18: 1 | F18: Multiplication and Division | G18: 306.6 | H18: 306.6
A19: HC1782351 | B19: Maths Mastery Early Multiplication Set | C19: 1 | D19: 1 | F19: Multiplication and Division | G19: 298.73 | H19: 298.73
A20: EGMT13629 | B20: Addition and Subtraction Cards | C20: 6 | D20: 1 | F20: Addition and Subtraction | G20: 339.15 | H20: =G20*D20 -> 339.15
A21: HC425015 | B21: Giant Blank Cruncher | C21: 1 | D21: 1 | F21: Addition and Subtraction | G21: 112.88 | H21: =G21*D21 -> 112.88
A22: HC1773970 | B22: Connecting Number Rods & Work Cards Set | C22: 1 | D22: 1 | F22: Addition and Subtraction | G22: 96.6 | H22: 96.6
A23: EFMT13242 | B23: Rainbow Fraction Tiles | C23: 1 | D23: 1 | F23: Fractions, Decimals and Percentages | G23: 117.08 | H23: =G23*D23 -> 117.08
A24: HC1002641 | B24: Rainbow Fractions Circles | C24: 1 | D24: 1 | F24: Fractions, Decimals and Percentages | G24: 84.53 | H24: 84.53
A25: HC1571283 | B25: Cubes Fraction Set | C25: 1 | D25: 1 | F25: Fractions, Decimals and Percentages | G25: 108.68 | H25: 108.68
A26: HC1536364 | B26: Fraction Bag | C26: 1 | D26: 1 | F26: Fractions, Decimals and Percentages | G26: 225.75 | H26: 225.75
A27: HC1866833 | B27: Magnetic Apple Fractions | C27: 1 | D27: 1 | F27: Fractions, Decimals and Percentages | G27: 234.15 | H27: 234.15
A28: CP00050533 | B28: Food Fractions | C28: 1 | D28: 1 | F28: Fractions, Decimals and Percentages | G28: 177.45 | H28: 177.45
A29: HC274605 | B29: Shape Templates | C29: 5 | D29: 5 | F29: Geometry | G29: 64.58 | H29: =G29*D29 -> 322.9
A30: HC1666493 | B30: Easy-grip Shape Stampers - Set Of 14 | C30: 14 | D30: 1 | F30: Geometry | G30: 155.93 | H30: 155.93
A31: HC424404 | B31: Geoboards 6 Colours 230mm | C31: 6 | D31: 4 | F31: Geometry | G31: 169.58 | H31: 678.32
A32: HC181213 | B32: Tape Measure Pack of 10 | C32: 10 | D32: 2 | F32: Measurement | G32: 78.23 | H32: =G32*D32 -> 156.46
A33: E8A73842 | B33: 1m Wood Rule - Marked CM And MM | C33: 1 | D33: 5 | F33: Measurement | G33: 37.28 | H33: =G33*D33 -> 186.4
A34: EFMT14433 | B34: Class Coin Set | C34: 1 | D34: 1 | F34: Measurement | G34: 246.23 | H34: 246.23
A35: E8R09487 | B35: Dual Power Timer - Pack of 5 | C35: 5 | D35: 1 | F35: Measurement | G35: 266.18 | H35: 266.18
A36: HC169526 | B36: Grocery Store Flip | C36: 1 | D36: 1 | F36: Measurement | G36: 213.68 | H36: 213.68
A37: EDMT14144 | B37: Mini Time Tracker | C37: 1 | D37: 1 | F37: Measurement | G37: 210 | H37: 210
A38: HC1002690 | B38: Number Fishing Game | C38: 1 | D38: 1 | F38: Teaching Resource | G38: 435.75 | H38: =G38*D38 -> 435.75
A39: HC1820757 | B39: Number and Symbol's Spots | C39: 1 | D39: 1 | F39: Classroom Tools | G39: 508.2 | H39: 508.2
A40: CP00058301 | B40: Show-me Magnetic Numbers and Symbols | C40: 1 | D40: 1 | F40: Classroom Tools | G40: 185.33 | H40: 185.33
A41: HC167784 | B41: Coloured Dominoes Pk 168 | C41: 168 | D41: 1 | F41: Classroom Tools | G41: 145.43 | H41: 145.43
A42: HC1490618 | B42: Jumbo Number Pebbles | C42: 20 | D42: 1 | F42: Classroom Tools | G42: 234.15 | H42: 234.15
A43: HC167446 | B43: Foam Dice Blue | C43: 1 | D43: 5 | F43: Classroom Tools | G43: 64.58 | H43: 322.9
A44: HC312396 | B44: 100 Coloured Dice 4 Colours | C44: 100 | D44: 1 | F44: Classroom Tools | G44: 48.3 | H44: 48.3
A45: CP00057911 | B45: Translucent Counters from Hope Education - Pack of 1000 | C45: 1000 | D45: 1 | F45: Classroom Tools | G45: 137.03 | H45: 137.03
A46: HC363525 | B46: Pupil Counting Stick P6 | C46: 6 | D46: 3 | F46: Classroom Tools | G46: 153.3 | H46: 459.9
A47: HC1674195 | B47: Tactile Counting Stones | C47: 1 | D47: 1 | F47: Classroom Tools | G47: 274.58 | H47: 274.58
A48: HC165405 | B48: 1000pk Counting Sticks | C48: 1000 | D48: 1 | F48: Classroom Tools | G48: 185.33 | H48: 185.33
A49: HC1770182 | B49: Sand Timer - 1 Minute | C49: 1 | D49: 1 | F49: Classroom Tools | G49: 84.53 | H49: 84.53
A50: HC1770186 | B50: Sand Timer - 5 Minute | C50: 1 | D50: 1 | F50: Classroom Tools | G50: 84.53 | H50: 84.53
A51: CP00060270 | B51: Abacus with 100 beads | C51: 1 | D51: 1 | F51: Classroom Tools | G51: 79.8 | H51: 79.8
A52: CP00059299 | B52: Base Ten Class Set 184 pieces | C52: 184 | D52: 1 | F52: Classroom Tools | G52: 403.2 | H52: 403.2
A53: EFMT14205 | B53: Giant Magnetic Base 10 Demonstration Set | C53: 1 | D53: 1 | F53: Classroom Tools | G53: 205.8 | H53: 205.8
A54: HC167121 | B54: Write-On/Wipe-Off 100 Squares - Pack of 35 | C54: 35 | D54: 1 | F54: Classroom Tools | G54: 80.85 | H54: 80.85
A55: HC1822714 | B55: Eco Friendly 20 Bead String | C55: 1 | D55: 15 | F55: Classroom Tools | G55: 56.18 | H55: 842.7
A56: HC1822716 | B56: Eco-friendly 100 Bead String | C56: 1 | D56: 1 | F56: Classroom Tools | G56: 217.88 | H56: 217.88
A57: HC373873 | B57: Jumbo Playing Cards | C57: 1 | D57: 5 | F57: Classroom Tools | G57: 38.33 | H57: 191.65
A58: HC167719 | B58: Playing Cards | C58: 1 | D58: 15 | F58: Classroom Tools | G58: 12.08 | H58: 181.2
A59: HC167576 | B59: Polyhedron Number Dice - Pack 35 | C59: 35 | D59: 1 | F59: Classroom Tools | G59: 40.43 | H59: 40.43
A60: HC167693 | B60: Plastic Spinner Set | C60: 4 | D60: 1 | F60: Classroom Tools | G60: 40.43 | H60: 40.43
A61: EFMT14097 | B61: Foam Dice with Pockets | C61: 1 | D61: 1 | F61: Classroom Tools | G61: 32.03 | H61: 32.03
A62: EFMT14179 | B62: Teacher Whiteboard Dice | C62: 4 | D62: 1 | F62: Classroom Tools | G62: 306.6 | H62: =G62*D62 -> 306.6
A63: EFMT11929 | B63: Unifix® Cubes - Pack of 500 | C63: 500 | D63: 1 | F63: Classroom Tools | G63: 298.73 | H63: 298.73
A64: STATIONERY
A65: HC1694632 | B65: Classmate Classroom Collection | C65: 9 | D65: 1 | E65: Stationery | G65: 129.15 | H65: =G65*D65 -> 129.15
A66: HC206745 | B66: A4 Bulky Zip Wallets Asst P100 | C66: 100 | D66: 1 | G66: 347.03 | H66: =G66*D66 -> 347.03
A67: HC255469 | B67: A5 Zip Wallets Red P25 | C67: 25 | D67: 3 | G67: 112.88 | H67: 338.64
A68: HC284654 | B68: CM Address Labels 89x36mm P250 | C68: 250 | D68: 2 | G68: 24.15 | H68: 48.3
A69: CP00053887 | B69: Classmates Sticky Notes - Assorted Neon - 75 x 75mm - Pack of 12 | C69: 1 | D69: 5 | G69: 33.6 | H69: 168
A70: HC1691792 | B70: Classmates Highlighters 5 Colours Pk 48 | C70: 48 | D70: 1 | G70: 105 | H70: 105
A71: HC1691844 | B71: CM Easy Grip Triangular Pencils P72 | C71: 72 | D71: 1 | G71: 145.43 | H71: 145.43
A72: HC316244 | B72: CM Metal Sharpeners Double Hole Pk12 | C72: 12 | D72: 2 | G72: 51.45 | H72: 102.9
A73: HC131969 | B73: Staedtler Rasoplast Eraser P30 | C73: 30 | D73: 1 | G73: 96.6 | H73: 96.6
A74: CP00052794 | B74: Classmates Shatter Resistant Ruler - Clear - 300mm/30cm - Pack of 10 | C74: 10 | D74: 3 | G74: 24.15 | H74: 72.45
A75: HC298772 | B75: Rapesco X5-30PS Medium Duty Hole Punch | C75: 1 | D75: 1 | G75: 64.58 | H75: 64.58
A76: HC397364 | B76: Rapesco Sting Ray Half Strip Stapler | C76: 1 | D76: 1 | G76: 56.18 | H76: 56.18
A77: HC194863 | B77: Rapesco 24/6 Staples P5000 | C77: 5000 | D77: 1 | G77: 32.03 | H77: 32.03
A78: HC186556 | B78: Paper Fasteners 25mm Pack 200 | C78: 200 | D78: 1 | G78: 48.3 | H78: 48.3
A79: HC179406 | B79: Treasury Tag 51mm Yellow P100 | C79: 100 | D79: 1 | G79: 33.6 | H79: 33.6
A80: HC397442 | B80: C M Easytear Tape 24mmx66m Pk6 | C80: 6 | D80: 1 | G80: 37.28 | H80: 37.28
A81: HC1699057 | B81: Classmate Tape Dispenser | C81: 1 | D81: 1 | G81: 45.68 | H81: 45.68
A82: HC322874 | B82: Classmates Dble Sided Tape 12mmx33mm Pk6 | C82: 6 | D82: 1 | G82: 80.85 | H82: 80.85
A83: HC225517 | B83: C M Masking Tape 24mmx50mx9 | C83: 9 | D83: 1 | G83: 100.8 | H83: 100.8
A84: HC1109953 | B84: Blu Tack Original 60g | C84: 12 | D84: 1 | G84: 105 | H84: 105
A85: HC479745 | B85: A4 Hardboard Clipboard P12 | C85: 12 | D85: 2 | G85: 254.1 | H85: 508.2
A86: CP053113AB | B86: CM LtWeight Lapboard A4 Lined P35 | C86: 35 | D86: 1 | G86: 459.9 | H86: 459.9
A87: HC383558 | B87: Lakeland Jumbo Pencils Classpack | C87: 144 | D87: 1 | G87: 581.7 | H87: 581.7
A88: HC1774070 | B88: Berol Colour Fine Classpack 288 | C88: 288 | D88: 1 | G88: 548.63 | H88: 548.63
A89: HC1774064 | B89: Berol Colour Broad Classpack 288 | C89: 288 | D89: 1 | G89: 548.63 | H89: 548.63
A90: HC1102952 | B90: Edding 8 All Purpose Assorted, Bullet Tip - Pack of 144 | C90: 144 | D90: 1 | G90: 625.28 | H90: 625.28
A91: HC209241 | B91: Giotto Metallic Fibre Pens P24 | C91: 24 | D91: 5 | G91: 159.6 | H91: 798
A92: HC1815185 | B92: School Scissor Set P32 inc Box | C92: 32 | D92: 1 | G92: 145.43 | H92: 145.43
A93: HC295314 | B93: Crazy Cut Scissors Pk6 | C93: 6 | D93: 2 | G93: 86.1 | H93: 172.2
A94: HC370844 | B94: Bulk Buy - 6 Collage Jars | C94: 6 | D94: 1 | G94: 201.6 | H94: 201.6
A95: CP057113 | B95: Assorted Bean Bag Pack Pk18 | C95: 18 | D95: 1 | G95: 129.15 | H95: 129.15
A96: HC1239842 | B96: Tough Play Tray | C96: 1 | D96: 1 | G96: 141.23 | H96: 141.23
A97: HC1815197 | B97: Classmates Dual Control Scissors - Right Handed | C97: 1 | D97: 12 | G97: 28.35 | H97: 340.2
A98: HC1815195 | B98: Classmates Easy Grip Scissors - Left Handed | C98: EA | D98: 3 | G98: 48.3 | H98: 144.9
A99: HC1815193 | B99: Classmates Easy Grip Scissors - Right Handed | C99: 1 | D99: 3 | G99: 56.18 | H99: 168.54
A100: CP00058415 | B100: Classmates Chunky Crayons - Pack of 40 | C100: 40 | D100: 2 | G100: 45.68 | H100: 91.36
A101: ART
A102: HC1674819 | B102: Assorted Splash Mats | C102: 4 | D102: 2 | G102: 151.73 | H102: =G102*D102 -> 303.46
A103: HC1506620 | B103: Classmates Ready Mixed Paint - 1 Litre - Assorted - Pack of 12 | C103: 1 | D103: 2 | G103: 189.53 | H103: 379.06
A104: CP00052574 | B104: Round Hog Short Brush Assortment - Pack of 100 | C104: 100 | D104: 1 | G104: 285.08 | H104: 285.08
A105: HC136402 | B105: Classmates Stable Water Pots | C105: 12 | D105: 2 | G105: 138.6 | H105: 277.2
A106: HC136376 | B106: Classmates 6 Well Paint Palette - Pack of 24 | C106: 24 | D106: 1 | G106: 183.75 | H106: 183.75
A107: HC1879314 | B107: Classmates Dispenser Bottles - 4 x 250ml | C107: 4 | D107: 2 | G107: 91.35 | H107: 182.7
A108: HC209020 | B108: Classmates Newsprint - A3 - Pack of 500 | C108: 500 | D108: 1 | G108: 153.3 | H108: 153.3
A109: HC382895 | B109: Classmates Tissue Paper Square Assortment - Pack of 480 | C109: 480 | D109: 1 | G109: 72.45 | H109: 72.45
A110: HC475884 | B110: Classmates A4 Assorted Card - Pack of 200 | C110: 200 | D110: 1 | G110: 84.53 | H110: 84.53
A111: E8R07951 | B111: Classmates PVA Glue - Blue Label - 5 Litre | C111: 1 | D111: 1 | G111: 76.65 | H111: 76.65
A112: HC149896 | B112: Classmates Plastic Glue Spreaders - Double Ended | C112: 10 | D112: 4 | G112: 21.53 | H112: 86.12
A113: HC1691856 | B113: Classmates Assorted Colouring Pencils - Pack of 504 | C113: 504 | D113: 1 | G113: 314.48 | H113: 314.48
A114: CP00056244 | B114: Classmates Broad Tip Colouring Pens - Pack of 288 | C114: 288 | D114: 1 | G114: 411.6 | H114: 411.6
A115: HC1594261 | B115: Classmates Glitter Assortment | C115: 10 | D115: 1 | G115: 147 | H115: 147
A116: HC292909 | B116: Staedtler® Tradition 110 Sketching Pencils - HB - Pack of 144 | C116: 144 | D116: 1 | G116: 264.08 | H116: 264.08
A117: HC48402825 | B117: 20 Shelf Spring Loaded Floor Drying Rack with Wheels | C117: 1 | D117: 1 | G117: 1520.4 | H117: 1520.4
A118: ENGLISH
A119: HC1353913 | B119: A5 dictionaries | C119: 30 | D119: 1 | G119: 112.88 | H119: =D119*G119 -> 112.88
A120: HC1564053 | B120: Oxford First Grammar, Punctuation and Spelling Dictionary | C120: EA | D120: 15 | G120: 88.73 | H120: 1330.95
A121: HC48834227 | B121: Reading comprehension box 1 | C121: 1 | D121: 1 | G121: 1855.88 | H121: 1855.88
A122: HC1821852 | B122: Click it sentence builder | C122: 204 | D122: 1 | G122: 564.9 | H122: 564.9
A123: HC1536830 | B123: Creative writing directory | C123: 1 | D123: 6 | G123: 105 | H123: 630
A124: HC1579204 | B124: Traditional tale book pack | C124: 6 | D124: 1 | G124: 242.03 | H124: 242.03
A125: HC1775781 | B125: Diversity picture books for KS1 | C125: 8 | D125: 1 | G125: 508.2 | H125: 508.2
A126: CP059603 | B126: Julia Donaldson book pack | C126: 8 | D126: 1 | G126: 427.88 | H126: 427.88
A127: HC1682556 | B127: Stories from around the world | C127: 10 | D127: 1 | G127: 443.63 | H127: 443.63
A128: CP00053601 | B128: LDA Pencil Grips Grippies - Pack of 10 | C128: 10 | D128: 1 | G128: 40.95 | H128: 40.95
A129: HC1677021 | B129: Talking tins and activity guide | C129: 10 | D129: 1 | G129: 725.55 | H129: 725.55
A130: GEOGRAPHY
A131: HC1003345 | B131: Discovery Globe 230mm | C131: 1 | D131: 1 | E131: GEOGRAPHY | G131: 274.58 | H131: 274.58
A132: HC1350713 | B132: Continents and oceans map | C132: 1 | D132: 1 | G132: 137.03 | H132: 137.03
A133: HC1206845 | B133: Let's Explore the UK Photo Pack | C133: 20 | D133: 2 | G133: 261.98 | H133: 523.96

Sheet KS1 Shared
G1: Basket Total | H1: =SUM(H3:H129) -> 57327.95
A2: Product Code | B2: Product Description | C2: Units of Measure | D2: Quantity | E2: Section | F2: Curriculum Area | G2: Unit Price | H2: Total Price
A3: MATHS
A4: E8R06581 | B4: Classmates Craft Sticks Plain - Pack of 1000 | D4: 1 | E4: Maths | F4: Number and Place Value | G4: 68.78 | H4: =G4*D4 -> 68.78
A5: EFMT14681 | B5: Ten Frames Classroom Set | D5: 1 | F5: Number and Place Value | G5: 234.15 | H5: 234.15
A6: HC1002642 | B6: Dinosaur Counters in Jar - Pack 128 | D6: 1 | F6: Number and Place Value | G6: 88.73 | H6: 88.73
A7: HC1579905 | B7: Farm Animal Counters - Pack 144 | D7: 1 | F7: Number and Place Value | G7: 169.58 | H7: 169.58
A8: EFMT12398 | B8: Assorted Coloured Dice - Pack 100 | D8: 1 | F8: Number and Place Value | G8: 48.3 | H8: 48.3
A9: HC1535913 | B9: Number Cards 0-10 | D9: 1 | F9: Number and Place Value | G9: 44.1 | H9: =G9*D9 -> 44.1
A10: HC424404 | B10: edx education Double-Sided Geoboards - Pack of 6 | C10: 6 | D10: 1 | F10: Number and Place Value | G10: 169.58 | H10: 169.58
A11: EFMT14432 | B11: Ten Frame Floor Mat Set | D11: 1 | F11: Number and Place Value | G11: 322.88 | H11: 322.88
A12: HC1571281 | B12: Giant Magnetic Cuisenaire Rods Demonstration Set | D12: 1 | F12: Number and Place Value | G12: 133.35 | H12: 133.35
A13: EFMT13230 | B13: Counting Sticks - Teacher | D13: 1 | F13: Number and Place Value | G13: 137.03 | H13: 137.03
A14: HC1002650 | B14: Teddy Bear Rucksack Counters - Pack 80 | D14: 1 | F14: Number and Place Value | G14: 137.03 | H14: 137.03
A15: HC1622425 | B15: Natural Materials | C15: 1 | D15: 2 | F15: Number and Place Value | G15: 322.88 | H15: =G15*D15 -> 645.76
A16: EFMT14080 | B16: Table Top Number Lines - 0 to 100 - Pack 5 | D16: 3 | F16: Number and Place Value | G16: 80.85 | H16: =G16*D16 -> 242.55
A17: HC1658864 | B17: Natural Sorting Tray | C17: 1 | D17: 2 | F17: Number and Place Value | G17: 169.58 | H17: 339.16
A18: HC1426802 | B18: Giant Polished Gems 1kg | C18: 1 | D18: 4 | F18: Number and Place Value | G18: 229.95 | H18: 919.8
A19: HC1773398 | B19: Junior Rainbow Pebbles | C19: 36 | D19: 3 | F19: Number and Place Value | G19: 145.43 | H19: 436.29
A20: HC1571299 | B20: Number Bonds Magnetic Demo | C20: 1 | D20: 1 | F20: Addition and Subtraction | G20: 185.33 | H20: 185.33
A21: HC1000007 | B21: Number Crunchers to 10 - Pack of 100 | C21: 100 | D21: 1 | F21: Addition and Subtraction | G21: 286.65 | H21: 286.65
A22: HC1687597 | B22: Mini Relational Geosolids Pack | D22: 1 | F22: Geometry | G22: 129.15 | H22: =G22*D22 -> 129.15
A23: E8A44416 | B23: Plastic Flexible Mirrors - 100 x 75mm | D23: 3 | F23: Geometry | G23: 48.3 | H23: 144.9
A24: HC1002659 | B24: Geometric Large Shapes | C24: 17 | D24: 3 | F24: Geometry | G24: 217.88 | H24: 653.64
A25: HC1002639 | B25: Geometric Plastic Shapes Small | C25: 60 | D25: 1 | F25: Geometry | G25: 266.18 | H25: 266.18
A26: HC1002807 | B26: Unbreakable Mirrors 90x65mm P10 | C26: 10 | D26: 2 | F26: Geometry | G26: 52.5 | H26: 105
A27: HC168434 | B27: 3D Geometric Shapes | C27: 1 | D27: 1 | F27: Geometry | G27: 411.6 | H27: 411.6
A28: HC168603 | B28: Polygon Allsorts | C28: 1 | D28: 1 | F28: Geometry | G28: 210 | H28: 210
A29: HC1002661 | B29: Geometric Plastic Shapes - Large - Pack of 60 | C29: 60 | D29: 1 | F29: Geometry | G29: 322.88 | H29: 322.88
A30: HC1290942 | B30: 2D Faces of 3D Shapes | C30: 1 | D30: 1 | F30: Geometry | G30: 258.3 | H30: 258.3
A31: EFMT14207 | B31: 2D Shape Bag | C31: 1 | D31: 1 | F31: Geometry | G31: 197.93 | H31: 197.93
A32: EFMT14208 | B32: 3D Shape Bag | C32: 1 | D32: 1 | F32: Geometry | G32: 234.15 | H32: 234.15
A33: EFMT11671 | B33: Geometric Shapes - Pack of 17 | C33: 17 | D33: 1 | F33: Geometry | G33: 217.88 | H33: 217.88
A34: HC1002683 | B34: 2D Shape Set | C34: EA | D34: 6 | F34: Geometry | G34: 427.88 | H34: 2567.28
A35: EFMT12668 | B35: Shape Templates | C35: 5 | D35: 1 | F35: Geometry | G35: 64.58 | H35: 64.58
A36: HC169266 | B36: Giant Money | D36: 1 | F36: Measurement | G36: 161.18 | H36: =G36*D36 -> 161.18
A37: HC881132 | B37: Simple Scales | D37: 10 | F37: Measurement | G37: 249.9 | H37: 2499
A38: HC1874988 | B38: Litre Containers - Pack of 4 | D38: 1 | F38: Measurement | G38: 177.45 | H38: 177.45
A39: HC1465747 | B39: Helix Metre Stick | D39: 10 | F39: Measurement | G39: 48.3 | H39: 483
A40: EFMT14327 | B40: Sand Timer Kit Pack of 7 | D40: 1 | F40: Measurement | G40: 592.73 | H40: 592.73
A41: HC1820797 | B41: 5-in-1 Outdoor Measure-Mate | C41: 1 | D41: 1 | F41: Measurement | G41: 290.33 | H41: 290.33
A42: E8R08153 | B42: 1kg Mechanical Scale - White | C42: 1 | D42: 1 | F42: Measurement | G42: 105 | H42: =G42*D42 -> 105
A43: EFMT11653 | B43: Write-On/Wipe-Off Clocks - Pack of 10 | C43: 10 | D43: 3 | F43: Measurement | G43: 68.78 | H43: 206.34
A44: HC1784845 | B44: Bucket Balance | C44: 1 | D44: 1 | F44: Measurement | G44: 201.6 | H44: 201.6
A45: HC1564958 | B45: ertt 24-Hour Classroom Wall Clock | C45: 1 | D45: 1 | F45: Measurement | G45: 274.58 | H45: 274.58
A46: EFMT13228 | B46: Learning Clock | C46: 1 | D46: 1 | F46: Measurement | G46: 375.38 | H46: 375.38
A47: E8A51172 | B47: Platform Scales | C47: 1 | D47: 1 | F47: Measurement | G47: 161.18 | H47: 161.18
A48: HC1816991 | B48: Dry-Wipe 100-Square Board - Teacher's Display | D48: 1 | F48: Teaching Resource | G48: 314.48 | H48: =G48*D48 -> 314.48
A49: HC1535915 | B49: Number Cards 0-100 | C49: 101 | D49: 10 | F49: Teaching Resource | G49: 44.1 | H49: 441
A50: EFMT14074 | B50: Numicon Boxed Set of 80 Shapes | D50: 1 | F50: Teaching Resource | G50: 354.9 | H50: 354.9
A51: HC1674059 | B51: 50 Base Ten Activities | C51: 50 | D51: 1 | F51: Teaching Resource | G51: 137.03 | H51: 137.03
A52: HC1673764 | B52: 50 Bead String Activities | C52: 50 | D52: 1 | F52: Teaching Resource | G52: 137.03 | H52: 137.03
A53: HC1499776 | B53: Jumbo Bright Buttons | D53: 1 | F53: Classroom Tools | G53: 120.75 | H53: =G53*D53 -> 120.75
A54: E8R06726 | B54: Sharp EL240SAB Calculator | C54: 30 | D54: 1 | F54: Classroom Tools | G54: 1048.95 | H54: 1048.95
A55: EFMT14081 | B55: Rekenrek Counting Frame | C55: 1 | D55: 15 | F55: Classroom Tools | G55: 40.43 | H55: 606.45
A56: Shared Stationery
A57: HC175974 | B57: Pompom Pack 100 | C57: 100 | D57: 3 | E57: Shared Stationery | G57: 52.5 | H57: =G57*D57 -> 157.5
A58: HC259499 | B58: Craft Pipe Cleaners 30cm P1000 | C58: 1000 | D58: 2 | G58: 145.43 | H58: 290.86
A59: HC152626 | B59: Modelling Tools Set of 32 | C59: 32 | D59: 1 | G59: 311.33 | H59: 311.33
A60: HC153003 | B60: Modelling Tools Set of 18 | C60: 18 | D60: 2 | G60: 164.33 | H60: 328.66
A61: HC346651 | B61: Modelling Tools Plastic Set 14 | C61: 14 | D61: 2 | G61: 25.73 | H61: 51.46
A62: HC152691 | B62: Wooden Dough Tools Set P12 | C62: 12 | D62: 1 | G62: 86.1 | H62: 86.1
A63: HC103841 | B63: Modelling Board | C63: 1 | D63: 10 | G63: 48.3 | H63: 483
A64: English
A65: HC1004262 | B65: SMART KIDS Phonics Board Game Set - Pack of 6 | C65: 6 | D65: 3 | E65: English | G65: 213.68 | H65: =G65*D65 -> 641.04
A66: HC1678254 | B66: Smart Phonics Special Offer | C66: 1 | D66: 6 | G66: 290.33 | H66: =G66*D66 -> 1741.98
A67: HC1004140 | B67: Alphabet Sound Teaching Tubs | C67: 1 | D67: 1 | G67: 1855.88 | H67: 1855.88
A68: HC249242 | B68: Magnetic High Frequency Words Set 2 | C68: 1 | D68: 2 | G68: 96.6 | H68: 193.2
A69: HC249255 | B69: Magnetic High Frequency Words Set 3 | C69: 1 | D69: 2 | G69: 96.6 | H69: 193.2
A70: HC249268 | B70: Magnetic High Frequency Words Set 4 | C70: 1 | D70: 2 | G70: 96.6 | H70: 193.2
A71: HC249281 | B71: Magnetic High Frequency Words Set 5 | C71: 1 | D71: 2 | G71: 96.6 | H71: 193.2
A72: HC1544346 | B72: Phonics Threading Beads- CVCC and CCVC | C72: 1 | D72: 3 | G72: 282.45 | H72: 847.35
A73: HC1664177 | B73: Cvc Bingo | C73: 1 | D73: 3 | G73: 153.3 | H73: 459.9
A74: HC1000051 | B74: Cvc Word Strips | C74: 1 | D74: 6 | G74: 210 | H74: 1260
A75: HC1000052 | B75: CCVC Word Strips | C75: 1 | D75: 6 | G75: 210 | H75: 1260
A76: HC1546490 | B76: Lower Case Letter Cutters Pack of 26 | D76: 2 | G76: 52.5 | H76: 105
A77: ECMT13576 | B77: Alphabet Tracing Boards Pack of 30 | D77: 2 | G77: 242.03 | H77: 484.06
A78: HC251062 | B78: Phonix Class Huge Bumper Box | D78: 1 | G78: 887.25 | H78: 887.25
A79: EDMT14530 | B79: Match and Spell Next Steps | D79: 1 | G79: 68.78 | H79: 68.78
A80: HC1004226 | B80: Matching Words and Pictures - Phase 2 | D80: 2 | G80: 105 | H80: 210
A81: EBMT13292 | B81: Coloured Blank Flash Cards - 1000 small cards | D81: 1 | G81: 72.45 | H81: 72.45
A82: HC1004189 | B82: Fairytale Wooden Character Set | D82: 1 | G82: 726.08 | H82: 726.08
A83: HC182240 | B83: Puppet Creation Pack of 30 | D83: 2 | G83: 242.03 | H83: 484.06
A84: HC155044 | B84: Giotto Robercolor Chalk - White Pack of 100 | D84: 1 | G84: 64.58 | H84: 64.58
A85: EDMT14513 | B85: Match and Spell | D85: 3 | G85: 64.58 | H85: 193.74
A86: ECMT11915 | B86: Kaleidoscope Sentence Strips | D86: 3 | G86: 80.85 | H86: 242.55
A87: HC1004181 | B87: Giraffes Can't Dance | D87: 1 | G87: 298.73 | H87: 298.73
A88: EGMT13883 | B88: Feels Write Letter Stones - 26 Letter Stones | D88: 3 | G88: 443.63 | H88: 1330.89
A89: EBMT14734 | B89: Write on Wipe Off Pockets | D89: 3 | G89: 225.75 | H89: 677.25
A90: EBMT13291 | B90: Coloured Blank Flash Cards - 250 large cards | D90: 1 | G90: 72.45 | H90: 72.45
A91: HC1004180 | B91: Handa's Surprise | D91: 1 | G91: 443.63 | H91: 443.63
A92: HC1004243 | B92: Alphabet Lacing Sweets Pack of 31 | D92: 4 | G92: 201.6 | H92: 806.4
A93: ECMT14449 | B93: 6 Comprehension Games | D93: 1 | G93: 173.25 | H93: 173.25
A94: EDMT14529 | B94: 6 Reading Games | D94: 1 | G94: 201.6 | H94: 201.6
A95: HC486648 | B95: Storytelling Masks Pack of 21 | D95: 2 | G95: 242.03 | H95: 484.06
A96: EBMT14138 | B96: 6 Blending Games | D96: 1 | G96: 201.6 | H96: 201.6
A97: EFMT11959 | B97: Magnetic Dry-wipe Boards | D97: 5 | G97: 242.03 | H97: 1210.15
A98: ECMT14463 | B98: Tricky Word Pebbles - Set 1 | D98: 2 | G98: 439.95 | H98: 879.9
A99: ECMT12613 | B99: Alpha Pops Pack of 26 | D99: 1 | G99: 201.6 | H99: 201.6
A100: HC248683 | B100: Alphabet Pebbles | C100: 1 | D100: 1 | G100: 314.48 | H100: 314.48
A101: HC48850846 | B101: A4 Phoneme Frame Whiteboards - PHONEME Frame Boards, Pens & Erasers | C101: 107 | D101: 1 | G101: 766.5 | H101: 766.5
A102: HC1545180 | B102: Tricky Word Pebbles Set 2 | C102: 1 | D102: 1 | G102: 439.95 | H102: 439.95
A103: HC1002106 | B103: Smart Chute | C103: 1 | D103: 1 | G103: 153.3 | H103: 153.3
A104: HC1490696 | B104: Phonics Pebbles | C104: 1 | D104: 2 | G104: 399.53 | H104: 799.06
A105: HC1536875 | B105: Reading Comprehension Cubes | C105: 1 | D105: 1 | G105: 100.8 | H105: 100.8
A106: CP00054250 | B106: Chatter Clouds from Hope Education | C106: EA | D106: 6 | G106: 80.85 | H106: 485.1
A107: ECMT14115 | B107: Roll a story dice | C107: 10 | D107: 1 | G107: 105 | H107: 105
A108: HC1759774 | B108: Bumper grammar and punctuation kit | C108: 1 | D108: 1 | G108: 1654.28 | H108: 1654.28
A109: HC1783993 | B109: Travelling tales owl babies | C109: 1 | D109: 1 | G109: 524.48 | H109: 524.48
A110: HC1783985 | B110: Travelling tale we're going on a bear hunt | C110: 1 | D110: 1 | G110: 928.2 | H110: 928.2
A111: HC1783983 | B111: Travelling tales room on the broom | C111: 1 | D111: 1 | G111: 1089.38 | H111: =G111*D111 -> 1089.38
A112: HC1783987 | B112: Travelling tales the gruffalo | C112: 1 | D112: 1 | G112: 1089.38 | H112: 1089.38
A113: HC1673581 | B113: Banded readers red | C113: 12 | D113: 1 | G113: 645.75 | H113: 645.75
A114: HC1813969 | B114: Banded readers green | C114: 10 | D114: 1 | G114: 484.05 | H114: 484.05
A115: HC1673591 | B115: Banded readers turquoise | C115: 20 | D115: 1 | G115: 1089.38 | H115: 1089.38
A116: HC1673593 | B116: Banded readers purple | C116: 20 | D116: 1 | G116: 1089.38 | H116: 1089.38
A117: HC1673595 | B117: Banded readers gold | C117: 20 | D117: 1 | G117: 1008.53 | H117: 1008.53
A118: HC1673597 | B118: Banded readers white | C118: 20 | D118: 1 | G118: 1089.38 | H118: 1089.38
A119: HC1673599 | B119: Banded readers lime | C119: 20 | D119: 1 | G119: 1048.95 | H119: 1048.95
A120: GEOGRAPHY
A121: HC1003150 | B121: Plotting Compass 16mm | C121: 10 | D121: 2 | E121: Geography | G121: 30.45 | H121: 60.9
A122: HC1003401 | B122: Collins First Atlas | C122: EA | D122: 5 | G122: 56.18 | H122: 280.9
A123: HC1206845 | B123: Let's explore the UK photo pack | C123: 20 | D123: 1 | G123: 261.98 | H123: 261.98
A124: HC1535051 | B124: World and UK desk maps | C124: 30 | D124: 1 | G124: 383.25 | H124: 383.25
A125: HC1488949 | B125: Thinking geography - physical & human | C125: 20 | D125: 1 | G125: 153.3 | H125: 153.3
A126: HC1664201 | B126: Biomes Kit | C126: 1 | D126: 1 | G126: 274.58 | H126: 274.58
A127: HC1206853 | B127: KS1 weather photo pack | C127: 20 | D127: 1 | G127: 249.9 | H127: 249.9
A128: HC48753991 | B128: Mapping and atlas skills lower primary | C128: 1 | D128: 1 | G128: 137.03 | H128: 137.03
A129: HC1210329 | B129: Local area explorers kit | C129: 1 | D129: 1 | G129: 471.98 | H129: 471.98

Sheet Year 3
G1: Basket Total | H1: =SUM(H3:H135) -> 37991.95
A2: Product Code | B2: Product Description | C2: Units of Measure | D2: Quantity | E2: Section | F2: Curriculum Area | G2: Unit Price | H2: Total Sell
A3: MATHS
A4: HC169149 | B4: Htu Dice Pack Of 60 | C4: 60 | D4: 1 | E4: Maths | F4: Number and Place Value | G4: 403.2 | H4: =G4*D4 -> 403.2
A5: HC1369266 | B5: Place Value Arrows Thousands Teacher | C5: 9 | D5: 2 | F5: Number and Place Value | G5: 108.68 | H5: =G5*D5 -> 217.36
A6: HC1002791 | B6: Place Value Arrow Cards Pupil PK6 | C6: 6 | D6: 3 | F6: Number and Place Value | G6: 290.33 | H6: =G6*D6 -> 870.99
A7: HC1489774 | B7: Numicon Boxed Set Of 80 Shapes | C7: 80 | D7: 2 | F7: Number and Place Value | G7: 354.9 | H7: =G7*D7 -> 709.8
A8: CP00060000 | B8: Pupil Number Fans from Hope Education Pack of 10 | C8: pack of 10 | D8: 6 | F8: Number and Place Value | G8: 105 | H8: 630
A9: HC332676 | B9: 0-100 Table Top Number Lines Pk5 | C9: 5 | D9: 4 | F9: Number and Place Value | G9: 80.85 | H9: 323.4
A10: HC1535915 | B10: Numbers 0-100 | C10: 100 | D10: 1 | F10: Number and Place Value | G10: 44.1 | H10: 44.1
A11: HC199946 | B11: Number and Operations Moulds | C11: 1 | D11: 1 | F11: Number and Place Value | G11: 100.8 | H11: 100.8
A12: EFMT14690 | B12: A5 Double Sided Multiplication Grid - Pack of 35 | C12: 35 | D12: 1 | F12: Multiplication and Division | G12: 169.58 | H12: 169.58
A13: EFMT14686 | B13: Giant Magnetic Array Set | C13: 1 | D13: 1 | F13: Multiplication and Division | G13: 137.03 | H13: 137.03
A14: HC1361214 | B14: 2, 5 and 10 Times Table Bingo | C14: 1 | D14: 1 | F14: Multiplication and Division | G14: 266.18 | H14: 266.18
A15: EGMT13629 | B15: Addition and Subtraction Cards | C15: 6 | D15: 1 | F15: Addition and Subtraction | G15: 339.15 | H15: =G15*D15 -> 339.15
A16: HC425015 | B16: Giant Blank Cruncher | C16: 1 | D16: 1 | F16: Addition and Subtraction | G16: 112.88 | H16: =G16*D16 -> 112.88
A17: HC421271 | B17: First Fraction Dominoes | C17: 1 | D17: 3 | F17: Fractions, Decimals and Percentages | G17: 88.73 | H17: =G17*D17 -> 266.19
A18: HC1534658 | B18: Percentages Decimals And Fractions Bingo | C18: 1 | D18: 4 | F18: Fractions, Decimals and Percentages | G18: 169.58 | H18: =G18*D18 -> 678.32
A19: EFMT13242 | B19: Rainbow Fraction Tiles | C19: 1 | D19: 1 | F19: Fractions, Decimals and Percentages | G19: 117.08 | H19: 117.08
A20: HC1002641 | B20: Rainbow Fractions Circles | C20: 1 | D20: 1 | F20: Fractions, Decimals and Percentages | G20: 84.53 | H20: 84.53
A21: HC1571283 | B21: Cubes Fraction Set | C21: 1 | D21: 1 | F21: Fractions, Decimals and Percentages | G21: 108.68 | H21: 108.68
A22: HC1536364 | B22: Fraction Bag | C22: 1 | D22: 1 | F22: Fractions, Decimals and Percentages | G22: 225.75 | H22: 225.75
A23: HC1866833 | B23: Magnetic Apple Fractions | C23: 1 | D23: 1 | F23: Fractions, Decimals and Percentages | G23: 234.15 | H23: 234.15
A24: CP00050533 | B24: Food Fractions | C24: 1 | D24: 1 | F24: Fractions, Decimals and Percentages | G24: 177.45 | H24: 177.45
A25: HC167485 | B25: Multi-sided Dice | C25: 5 | D25: 6 | F25: Classroom Tools | G25: 40.43 | H25: =G25*D25 -> 242.58
A26: HC1002807 | B26: Unbreakable Mirrors 90x65mm P10 | C26: 10 | D26: 2 | F26: Geometry | G26: 52.5 | H26: =G26*D26 -> 105
A27: HC1002659 | B27: Geometric Large Shapes | C27: 17 | D27: 2 | F27: Geometry | G27: 217.88 | H27: =G27*D27 -> 435.76
A28: HC1002639 | B28: Geometrc Plane Shapes Set 1-50mm | C28: 160 | D28: 2 | F28: Geometry | G28: 266.18 | H28: =G28*D28 -> 532.36
A29: HC274605 | B29: Shape Templates | C29: 5 | D29: 5 | F29: Geometry | G29: 64.58 | H29: 322.9
A30: HC1666493 | B30: Easy-grip Shape Stampers - Set Of 14 | C30: 14 | D30: 1 | F30: Geometry | G30: 155.93 | H30: 155.93
A31: HC424404 | B31: Geoboards 6 Colours 230mm | C31: 6 | D31: 4 | F31: Geometry | G31: 169.58 | H31: 678.32
A32: HC181213 | B32: Tape Measure Pack of 10 | C32: 10 | D32: 2 | F32: Measurement | G32: 78.23 | H32: =G32*D32 -> 156.46
A33: E8A73842 | B33: 1m Wood Rule - Marked CM And MM | C33: 1 | D33: 5 | F33: Measurement | G33: 37.28 | H33: =G33*D33 -> 186.4
A34: EFMT14433 | B34: Class Coin Set | C34: 1 | D34: 1 | F34: Measurement | G34: 246.23 | H34: 246.23
A35: E8R09487 | B35: Dual Power Timer - Pack of 5 | C35: 5 | D35: 1 | F35: Measurement | G35: 266.18 | H35: 266.18
A36: HC169526 | B36: Grocery Store Flip | C36: 1 | D36: 1 | F36: Measurement | G36: 213.68 | H36: 213.68
A37: EDMT14144 | B37: Mini Time Tracker | C37: 1 | D37: 1 | F37: Measurement | G37: 210 | H37: 210
A38: EFMT14684 | B38: 7 Maths Board Games Year 6-8 | C38: 1 | D38: 1 | F38: Classroom Tools | G38: 234.15 | H38: 234.15
A39: HC1820757 | B39: Number and Symbol's Spots | C39: 1 | D39: 1 | F39: Classroom Tools | G39: 508.2 | H39: 508.2
A40: CP00058301 | B40: Giant Magnetic Numbers and Operations | C40: 1 | D40: 1 | F40: Classroom Tools | G40: 185.33 | H40: 185.33
A41: HC167784 | B41: Coloured Dominoes Pk 168 | C41: 168 | D41: 1 | F41: Classroom Tools | G41: 145.43 | H41: 145.43
A42: HC1490618 | B42: Jumbo Number Pebbles | C42: 20 | D42: 1 | F42: Classroom Tools | G42: 234.15 | H42: 234.15
A43: HC167446 | B43: Foam Dice Blue | C43: 1 | D43: 5 | F43: Classroom Tools | G43: 64.58 | H43: 322.9
A44: HC312396 | B44: 100 Coloured Dice 4 Colours | C44: 100 | D44: 1 | F44: Classroom Tools | G44: 48.3 | H44: 48.3
A45: CP00057911 | B45: Translucent Counters from Hope Education - Pack of 1000 | C45: 1000 | D45: 1 | F45: Classroom Tools | G45: 137.03 | H45: 137.03
A46: HC363525 | B46: Pupil Counting Stick P6 | C46: 6 | D46: 3 | F46: Classroom Tools | G46: 153.3 | H46: 459.9
A47: HC1674195 | B47: Tactile Counting Stones | C47: 1 | D47: 1 | F47: Classroom Tools | G47: 274.58 | H47: 274.58
A48: HC165405 | B48: 1000pk Counting Sticks | C48: 1000 | D48: 1 | F48: Classroom Tools | G48: 185.33 | H48: 185.33
A49: HC1770182 | B49: Sand Timer - 1 Minute | C49: 1 | D49: 1 | F49: Classroom Tools | G49: 84.53 | H49: 84.53
A50: HC1770186 | B50: Sand Timer - 5 Minute | C50: 1 | D50: 1 | F50: Classroom Tools | G50: 84.53 | H50: 84.53
A51: CP00060270 | B51: Abacus with 100 beads | C51: 1 | D51: 1 | F51: Classroom Tools | G51: 79.8 | H51: 79.8
A52: CP00059299 | B52: Base Ten Class Set 184 pieces | C52: 184 | D52: 1 | F52: Classroom Tools | G52: 403.2 | H52: 403.2
A53: EFMT14205 | B53: Giant Magnetic Base 10 Demonstration Set | C53: 1 | D53: 1 | F53: Classroom Tools | G53: 205.8 | H53: 205.8
A54: HC167121 | B54: Write-On/Wipe-Off 100 Squares - Pack of 35 | C54: 35 | D54: 1 | F54: Classroom Tools | G54: 80.85 | H54: 80.85
A55: HC1822714 | B55: Eco Friendly 20 Bead String | C55: 1 | D55: 15 | F55: Classroom Tools | G55: 56.18 | H55: 842.7
A56: HC1822716 | B56: Eco-friendly 100 Bead String | C56: 1 | D56: 1 | F56: Classroom Tools | G56: 217.88 | H56: 217.88
A57: HC373873 | B57: Jumbo Playing Cards | C57: 1 | D57: 5 | F57: Classroom Tools | G57: 38.33 | H57: 191.65
A58: HC167719 | B58: Playing Cards | C58: 1 | D58: 15 | F58: Classroom Tools | G58: 12.08 | H58: 181.2
A59: HC167576 | B59: Polyhedron Number Dice - Pack 35 | C59: 35 | D59: 1 | F59: Classroom Tools | G59: 40.43 | H59: 40.43
A60: HC167693 | B60: Plastic Spinner Set | C60: 4 | D60: 1 | F60: Classroom Tools | G60: 40.43 | H60: 40.43
A61: EFMT14097 | B61: Foam Dice with Pockets | C61: 1 | D61: 1 | F61: Classroom Tools | G61: 32.03 | H61: 32.03
A62: EFMT14179 | B62: Teacher Whiteboard Dice | C62: 4 | D62: 1 | F62: Classroom Tools | G62: 306.6 | H62: 306.6
A63: EFMT11929 | B63: Unifix® Cubes - Pack of 500 | C63: 500 | D63: 1 | F63: Classroom Tools | G63: 298.73 | H63: 298.73
A64: STATIONERY
A65: HC337213 | B65: Staedtler Noris HB Pencils Pk150 | C65: 150 | D65: 1 | E65: Stationery | G65: 133.35 | H65: =G65*D65 -> 133.35
A66: HC1694632 | B66: Classmate Classroom Collection | C66: 9 | D66: 1 | G66: 129.15 | H66: =G66*D66 -> 129.15
A67: HC206745 | B67: A4 Bulky Zip Wallets Asst P100 | C67: 100 | D67: 1 | G67: 347.03 | H67: =G67*D67 -> 347.03
A68: HC255469 | B68: A5 Zip Wallets Red P25 | C68: 25 | D68: 3 | G68: 112.88 | H68: 338.64
A69: HC284654 | B69: CM Address Labels 89x36mm P250 | C69: 250 | D69: 2 | G69: 24.15 | H69: 48.3
A70: CP00053887 | B70: Classmates Sticky Notes - Assorted Neon - 75 x 75mm - Pack of 12 | C70: 1 | D70: 5 | G70: 33.6 | H70: 168
A71: HC1691792 | B71: Classmates Highlighters 5 Colours Pk 48 | C71: 48 | D71: 1 | G71: 105 | H71: 105
A72: HC1691844 | B72: CM Easy Grip Triangular Pencils P72 | C72: 72 | D72: 1 | G72: 145.43 | H72: 145.43
A73: HC316244 | B73: CM Metal Sharpeners Double Hole Pk12 | C73: 12 | D73: 2 | G73: 51.45 | H73: 102.9
A74: HC131969 | B74: Staedtler Rasoplast Eraser P30 | C74: 30 | D74: 1 | G74: 96.6 | H74: 96.6
A75: CP00052794 | B75: Classmates Shatter Resistant Ruler - Clear - 300mm/30cm - Pack of 10 | C75: 10 | D75: 3 | G75: 24.15 | H75: 72.45
A76: HC298772 | B76: Rapesco X5-30PS Medium Duty Hole Punch | C76: 1 | D76: 1 | G76: 64.58 | H76: 64.58
A77: HC397364 | B77: Rapesco Sting Ray Half Strip Stapler | C77: 1 | D77: 1 | G77: 56.18 | H77: 56.18
A78: HC194863 | B78: Rapesco 24/6 Staples P5000 | C78: 5000 | D78: 1 | G78: 32.03 | H78: 32.03
A79: HC186556 | B79: Paper Fasteners 25mm Pack 200 | C79: 200 | D79: 1 | G79: 48.3 | H79: 48.3
A80: HC179406 | B80: Treasury Tag 51mm Yellow P100 | C80: 100 | D80: 1 | G80: 33.6 | H80: 33.6
A81: HC397442 | B81: C M Easytear Tape 24mmx66m Pk6 | C81: 6 | D81: 1 | G81: 37.28 | H81: 37.28
A82: HC1699057 | B82: Classmate Tape Dispenser | C82: 1 | D82: 1 | G82: 45.68 | H82: 45.68
A83: HC322874 | B83: Classmates Dble Sided Tape 12mmx33mm Pk6 | C83: 6 | D83: 1 | G83: 80.85 | H83: 80.85
A84: HC225517 | B84: C M Masking Tape 24mmx50mx9 | C84: 9 | D84: 1 | G84: 100.8 | H84: 100.8
A85: HC1109953 | B85: Blu Tack Original 60g | C85: 12 | D85: 1 | G85: 105 | H85: 105
A86: HC479745 | B86: A4 Hardboard Clipboard P12 | C86: 12 | D86: 2 | G86: 254.1 | H86: 508.2
A87: CP053113AB | B87: CM LtWeight Lapboard A4 Lined P35 | C87: 35 | D87: 1 | G87: 459.9 | H87: 459.9
A88: HC383558 | B88: Lakeland Jumbo Pencils Classpack | C88: 144 | D88: 1 | G88: 581.7 | H88: 581.7
A89: HC1774070 | B89: Berol Colour Fine Classpack 288 | C89: 288 | D89: 1 | G89: 548.63 | H89: 548.63
A90: HC1774064 | B90: Berol Colour Broad Classpack 288 | C90: 288 | D90: 1 | G90: 548.63 | H90: 548.63
A91: HC1102952 | B91: Edding 8 All Purpose Assorted, Bullet Tip - Pack of 144 | C91: 144 | D91: 1 | G91: 625.28 | H91: 625.28
A92: HC209241 | B92: Giotto Metallic Fibre Pens P24 | C92: 24 | D92: 5 | G92: 159.6 | H92: 798
A93: HC1815185 | B93: School Scissor Set P32 inc Box | C93: 32 | D93: 1 | G93: 145.43 | H93: 145.43
A94: HC295314 | B94: Crazy Cut Scissors Pk6 | C94: 6 | D94: 2 | G94: 86.1 | H94: 172.2
A95: HC370844 | B95: Bulk Buy - 6 Collage Jars | C95: 6 | D95: 1 | G95: 201.6 | H95: 201.6
A96: HC1815197 | B96: Classmates Dual Control Scissors - Right Handed | C96: 1 | D96: 12 | G96: 28.35 | H96: 340.2
A97: HC1815195 | B97: Classmates Easy Grip Scissors - Left Handed | C97: EA | D97: 3 | G97: 48.3 | H97: 144.9
A98: HC1815193 | B98: Classmates Easy Grip Scissors - Right Handed | C98: 1 | D98: 3 | G98: 56.18 | H98: 168.54
A99: CP00058415 | B99: Classmates Chunky Crayons - Pack of 40 | C99: 40 | D99: 2 | G99: 45.68 | H99: 91.36
A100: ART
A101: HC1674819 | B101: Assorted Splash Mats | C101: 4 | D101: 2 | G101: 151.73 | H101: =G101*D101 -> 303.46
A102: HC1506620 | B102: Classmates Ready Mixed Paint - 1 Litre - Assorted - Pack of 12 | C102: 1 | D102: 2 | G102: 189.53 | H102: 379.06
A103: CP00052574 | B103: Round Hog Short Brush Assortment - Pack of 100 | C103: 100 | D103: 1 | G103: 285.08 | H103: 285.08
A104: HC136402 | B104: Classmates Stable Water Pots | C104: 12 | D104: 2 | G104: 138.6 | H104: 277.2
A105: HC136376 | B105: Classmates 6 Well Paint Palette - Pack of 24 | C105: 24 | D105: 1 | G105: 183.75 | H105: 183.75
A106: HC1879314 | B106: Classmates Dispenser Bottles - 4 x 250ml | C106: 4 | D106: 2 | G106: 91.35 | H106: 182.7
A107: HC209020 | B107: Classmates Newsprint - A3 - Pack of 500 | C107: 500 | D107: 1 | G107: 153.3 | H107: 153.3
A108: HC382895 | B108: Classmates Tissue Paper Square Assortment - Pack of 480 | C108: 480 | D108: 1 | G108: 72.45 | H108: 72.45
A109: HC475884 | B109: Classmates A4 Assorted Card - Pack of 200 | C109: 200 | D109: 1 | G109: 84.53 | H109: 84.53
A110: E8R07951 | B110: Classmates PVA Glue - Blue Label - 5 Litre | C110: 1 | D110: 1 | G110: 76.65 | H110: 76.65
A111: HC149896 | B111: Classmates Plastic Glue Spreaders - Double Ended | C111: 10 | D111: 4 | G111: 21.53 | H111: 86.12
A112: HC1691856 | B112: Classmates Assorted Colouring Pencils - Pack of 504 | C112: 504 | D112: 1 | G112: 314.48 | H112: 314.48
A113: CP00056244 | B113: Classmates Broad Tip Colouring Pens - Pack of 288 | C113: 288 | D113: 1 | G113: 411.6 | H113: 411.6
A114: HC1594261 | B114: Classmates Glitter Assortment | C114: 10 | D114: 1 | G114: 147 | H114: 147
A115: HC292909 | B115: Staedtler® Tradition 110 Sketching Pencils - HB - Pack of 144 | C115: 144 | D115: 1 | G115: 264.08 | H115: 264.08
A116: HC48402825 | B116: 20 Shelf Spring Loaded Floor Drying Rack with Wheels | C116: 1 | D116: 1 | G116: 1520.4 | H116: 1520.4
A117: ENGLISH
A118: HC342101 | B118: Oxford Junior Illustrated Dictionary | C118: 1 | D118: 10 | E118: ENGLISH | G118: 88.73 | H118: =G118*D118 -> 887.3
A119: HC363850 | B119: Oxford Junior Illustrated Thesaurus | C119: 1 | D119: 10 | G119: 88.73 | H119: =G119*D119 -> 887.3
A120: HC1536875 | B120: Reading Comprehension Cubes | C120: 6 | D120: 4 | G120: 100.8 | H120: =G120*D120 -> 403.2
A121: HC249931 | B121: Writing Prompt Cubes | C121: 6 | D121: 4 | G121: 100.8 | H121: =G121*D121 -> 403.2
A122: HC1353913 | B122: A5 dictionaries | C122: 30 | D122: 1 | G122: 112.88 | H122: =G122*D122 -> 112.88
A123: HC1564053 | B123: Oxford First Grammar, Punctuation and Spelling Dictionary | C123: EA | D123: 15 | G123: 88.73 | H123: 1330.95
A124: HC48834240 | B124: Reading comprehension box 2 | C124: 1 | D124: 1 | G124: 1855.88 | H124: 1855.88
A125: HC1821852 | B125: Click it sentence builder | C125: 204 | D125: 1 | G125: 564.9 | H125: 564.9
A126: HC1536830 | B126: Creative writing directory | C126: 1 | D126: 6 | G126: 105 | H126: 630
A127: HC1775783 | B127: Diversity picture books for KS2 | C127: 8 | D127: 1 | G127: 613.2 | H127: 613.2
A128: CP00053601 | B128: LDA Pencil Grips Grippies - Pack of 10 | C128: 10 | D128: 1 | G128: 40.95 | H128: 40.95
A129: HC1677021 | B129: Talking tins and activity guide | C129: 10 | D129: 1 | G129: 725.55 | H129: 725.55
A130: HC1685160 | B130: Spelling rules directory | C130: 1 | D130: 5 | G130: 96.6 | H130: 483
A131: GEOGRAPHY
A132: HC1003345 | B132: Discovery Globe 230mm | C132: 1 | D132: 1 | E132: GEOGRAPHY | G132: 274.58 | H132: =G132*D132 -> 274.58
A133: HC1003150 | B133: Plotting Compass 16mm | C133: 10 | D133: 2 | G133: 30.45 | H133: =G133*D133 -> 60.9
A134: HC1660162 | B134: Inflatable labelling globe | C134: 1 | D134: 1 | G134: 177.45 | H134: =G134*D134 -> 177.45
A135: HC1555759 | B135: Simple maps pack | C135: 3 | D135: 1 | G135: 379.05 | H135: 379.05

Sheet Year 4
G1: Basket Total | H1: =SUM(H3:H130) -> 36407.4
A2: Product Code | B2: Product Description | C2: Units of Measure | D2: Quantity | E2: Section | F2: Curriculum Area | G2: Unit Price | H2: Total Price
A3: MATHS
A4: HC169149 | B4: Htu Dice Pack Of 60 | C4: 60 | D4: 1 | E4: Maths | F4: Number and Place Value | G4: 403.2 | H4: =G4*D4 -> 403.2
A5: HC1369266 | B5: Place Value Arrows Thousands Teacher | C5: 9 | D5: 2 | F5: Number and Place Value | G5: 108.68 | H5: 217.36
A6: HC1002791 | B6: Place Value Arrow Cards Pupil PK6 | C6: 6 | D6: 3 | F6: Number and Place Value | G6: 290.33 | H6: 870.99
A7: HC1489774 | B7: Numicon Boxed Set Of 80 Shapes | C7: 80 | D7: 2 | F7: Number and Place Value | G7: 354.9 | H7: 709.8
A8: HC332676 | B8: 0-100 Table Top Number Lines Pk5 | C8: 5 | D8: 4 | F8: Number and Place Value | G8: 80.85 | H8: 323.4
A9: EFMT14690 | B9: A5 Double Sided Multiplication Grid - Pack of 35 | C9: 35 | D9: 1 | F9: Multiplication and Division | G9: 169.58 | H9: 169.58
A10: EFMT14686 | B10: Giant Magnetic Array Set | C10: 1 | D10: 1 | F10: Multiplication and Division | G10: 137.03 | H10: 137.03
A11: HC170930 | B11: Table Boards Class Pack | C11: 1 | D11: 1 | F11: Multiplication and Division | G11: 258.3 | H11: 258.3
A12: HC1535474 | B12: Addition, Subtraction, Multiplication and Division Poster Pack Pack of three | C12: 3 | D12: 1 | F12: Multiplication and Division | G12: 161.18 | H12: 161.18
A13: HC1537279 | B13: Double-Sided Division Magnets - Pack of 132 | C13: 132 | D13: 1 | F13: Multiplication and Division | G13: 403.2 | H13: 403.2
A14: EFMT14688 | B14: Double-Sided Multiplication Magnets - Pack of 132 | C14: 132 | D14: 1 | F14: Multiplication and Division | G14: 379.05 | H14: 379.05
A15: HC1782357 | B15: Maths Mastery Division Set | C15: 1 | D15: 1 | F15: Multiplication and Division | G15: 572.78 | H15: 572.78
A16: HC1782347 | B16: Maths Mastery Addition Set | C16: 1 | D16: 1 | F16: Addition and Subtraction | G16: 395.33 | H16: 395.33
A17: HC1782349 | B17: Maths Mastery Subtraction Set | C17: 1 | D17: 1 | F17: Addition and Subtraction | G17: 395.33 | H17: 395.33
A18: HC1630583 | B18: Equivalence Washing Line | C18: 1 | D18: 1 | F18: Fractions, Decimals and Percentages | G18: 274.58 | H18: 274.58
A19: HC1290948 | B19: Fraction and Decimal Counting Cards Pack of forty | C19: 40 | D19: 1 | F19: Fractions, Decimals and Percentages | G19: 197.4 | H19: 197.4
A20: HC1782359 | B20: Maths Mastery Fraction Set 1 | C20: 1 | D20: 1 | F20: Fractions, Decimals and Percentages | G20: 427.88 | H20: 427.88
A21: HC1782361 | B21: Maths Mastery Fraction Set 2 | C21: 1 | D21: 1 | F21: Fractions, Decimals and Percentages | G21: 508.2 | H21: 508.2
A22: HC1534658 | B22: Percentages Decimals And Fractions Bingo | C22: 1 | D22: 4 | F22: Fractions, Decimals and Percentages | G22: 169.58 | H22: 678.32
A23: EFMT13242 | B23: Rainbow Fraction Tiles | C23: 1 | D23: 1 | F23: Fractions, Decimals and Percentages | G23: 117.08 | H23: 117.08
A24: HC1002641 | B24: Rainbow Fractions Circles | C24: 1 | D24: 1 | F24: Fractions, Decimals and Percentages | G24: 84.53 | H24: 84.53
A25: HC1571283 | B25: Cubes Fraction Set | C25: 1 | D25: 1 | F25: Fractions, Decimals and Percentages | G25: 108.68 | H25: 108.68
A26: HC1536364 | B26: Fraction Bag | C26: 1 | D26: 1 | F26: Fractions, Decimals and Percentages | G26: 225.75 | H26: 225.75
A27: HC1002807 | B27: Unbreakable Mirrors 90x65mm P10 | C27: 10 | D27: 2 | F27: Geometry | G27: 52.5 | H27: 105
A28: HC1002659 | B28: Geometric Large Shapes | C28: 17 | D28: 2 | F28: Geometry | G28: 217.88 | H28: 435.76
A29: HC1002639 | B29: Geometrc Plane Shapes Set 1-50mm | C29: 160 | D29: 2 | F29: Geometry | G29: 266.18 | H29: 532.36
A30: HC388771 | B30: Helix Geometry Class Pack | C30: 1 | D30: 1 | F30: Geometry | G30: 467.78 | H30: 467.78
A31: HC424404 | B31: Geoboards 6 Colours 230mm | C31: 6 | D31: 4 | F31: Geometry | G31: 169.58 | H31: 678.32
A32: HC181213 | B32: Tape Measure Pack of 10 | C32: 10 | D32: 2 | F32: Measurement | G32: 78.23 | H32: 156.46
A33: E8A73842 | B33: 1m Wood Rule - Marked CM And MM | C33: 1 | D33: 5 | F33: Measurement | G33: 37.28 | H33: =G33*D33 -> 186.4
A34: HC88200579 | B34: Protractor - Pack of 10 Pack of ten | C34: 10 | D34: 4 | F34: Measurement | G34: 16.28 | H34: 65.12
A35: EFMT14433 | B35: Class Coin Set | C35: 1 | D35: 1 | F35: Measurement | G35: 246.23 | H35: 246.23
A36: E8R09487 | B36: Dual Power Timer - Pack of 5 | C36: 5 | D36: 1 | F36: Measurement | G36: 266.18 | H36: 266.18
A37: HC169526 | B37: Grocery Store Flip | C37: 1 | D37: 1 | F37: Measurement | G37: 213.68 | H37: 213.68
A38: EDMT14144 | B38: Mini Time Tracker | C38: 1 | D38: 1 | F38: Measurement | G38: 210 | H38: 210
A39: HC167485 | B39: Multi-sided Dice | C39: 5 | D39: 6 | F39: Classroom Tools | G39: 40.43 | H39: =G39*D39 -> 242.58
A40: HC1820757 | B40: Number and Symbol's Spots | C40: 1 | D40: 1 | F40: Classroom Tools | G40: 508.2 | H40: 508.2
A41: CP00058301 | B41: Show-me Magnetic Numbers and Symbols | C41: 1 | D41: 1 | F41: Classroom Tools | G41: 185.33 | H41: 185.33
A42: HC167784 | B42: Coloured Dominoes Pk 168 | C42: 168 | D42: 1 | F42: Classroom Tools | G42: 145.43 | H42: 145.43
A43: HC1490618 | B43: Jumbo Number Pebbles | C43: 20 | D43: 1 | F43: Classroom Tools | G43: 234.15 | H43: 234.15
A44: HC167446 | B44: Foam Dice Blue | C44: 1 | D44: 5 | F44: Classroom Tools | G44: 64.58 | H44: 322.9
A45: HC312396 | B45: 100 Coloured Dice 4 Colours | C45: 100 | D45: 1 | F45: Classroom Tools | G45: 48.3 | H45: 48.3
A46: CP00057911 | B46: Translucent Counters from Hope Education - Pack of 1000 | C46: 1000 | D46: 1 | F46: Classroom Tools | G46: 137.03 | H46: 137.03
A47: HC363525 | B47: Pupil Counting Stick P6 | C47: 6 | D47: 3 | F47: Classroom Tools | G47: 153.3 | H47: 459.9
A48: HC1674195 | B48: Tactile Counting Stones | C48: 1 | D48: 1 | F48: Classroom Tools | G48: 274.58 | H48: 274.58
A49: HC165405 | B49: 1000pk Counting Sticks | C49: 1000 | D49: 1 | F49: Classroom Tools | G49: 185.33 | H49: 185.33
A50: HC1770182 | B50: Sand Timer - 1 Minute | C50: 1 | D50: 1 | F50: Classroom Tools | G50: 84.53 | H50: 84.53
A51: HC1770186 | B51: Sand Timer - 5 Minute | C51: 1 | D51: 1 | F51: Classroom Tools | G51: 84.53 | H51: 84.53
A52: CP00060270 | B52: Abacus with 100 beads | C52: 1 | D52: 1 | F52: Classroom Tools | G52: 79.8 | H52: 79.8
A53: CP00059299 | B53: Base Ten Class Set 184 pieces | C53: 184 | D53: 1 | F53: Classroom Tools | G53: 403.2 | H53: 403.2
A54: EFMT14205 | B54: Giant Magnetic Base 10 Demonstration Set | C54: 1 | D54: 1 | F54: Classroom Tools | G54: 205.8 | H54: 205.8
A55: HC167121 | B55: Write-On/Wipe-Off 100 Squares - Pack of 35 | C55: 35 | D55: 1 | F55: Classroom Tools | G55: 80.85 | H55: 80.85
A56: HC1822714 | B56: Eco Friendly 20 Bead String | C56: 1 | D56: 15 | F56: Classroom Tools | G56: 56.18 | H56: 842.7
A57: HC1822716 | B57: Eco-friendly 100 Bead String | C57: 1 | D57: 1 | F57: Classroom Tools | G57: 217.88 | H57: 217.88
A58: HC373873 | B58: Jumbo Playing Cards | C58: 1 | D58: 5 | F58: Classroom Tools | G58: 38.33 | H58: 191.65
A59: HC167719 | B59: Playing Cards | C59: 1 | D59: 15 | F59: Classroom Tools | G59: 12.08 | H59: 181.2
A60: HC167576 | B60: Polyhedron Number Dice - Pack 35 | C60: 35 | D60: 1 | F60: Classroom Tools | G60: 40.43 | H60: 40.43
A61: HC167693 | B61: Plastic Spinner Set | C61: 4 | D61: 1 | F61: Classroom Tools | G61: 40.43 | H61: 40.43
A62: EFMT14097 | B62: Foam Dice with Pockets | C62: 1 | D62: 1 | F62: Classroom Tools | G62: 32.03 | H62: 32.03
A63: EFMT14179 | B63: Teacher Whiteboard Dice | C63: 4 | D63: 1 | F63: Classroom Tools | G63: 306.6 | H63: 306.6
A64: EFMT11929 | B64: Unifix® Cubes - Pack of 500 | C64: 500 | D64: 1 | F64: Classroom Tools | G64: 298.73 | H64: 298.73
A65: HC1564958 | B65: Easy Read Time Teacher - 24-Hour Classroom Wall Clock | C65: 1 | D65: 1 | F65: Display | G65: 274.58 | H65: 274.58
A66: STATIONERY
A67: HC337213 | B67: Staedtler Noris HB Pencils Pk150 | C67: 150 | D67: 1 | E67: Stationery | G67: 133.35 | H67: =G67*D67 -> 133.35
A68: HC1694632 | B68: Classmate Classroom Collection | C68: 9 | D68: 1 | G68: 129.15 | H68: =G68*D68 -> 129.15
A69: HC206745 | B69: A4 Bulky Zip Wallets Asst P100 | C69: 100 | D69: 1 | G69: 347.03 | H69: =G69*D69 -> 347.03
A70: HC255469 | B70: A5 Zip Wallets Red P25 | C70: 25 | D70: 3 | G70: 112.88 | H70: 338.64
A71: HC284654 | B71: CM Address Labels 89x36mm P250 | C71: 250 | D71: 2 | G71: 24.15 | H71: 48.3
A72: CP00053887 | B72: Classmates Sticky Notes - Assorted Neon - 75 x 75mm - Pack of 12 | C72: 1 | D72: 5 | G72: 33.6 | H72: 168
A73: HC1691792 | B73: Classmates Highlighters 5 Colours Pk 48 | C73: 48 | D73: 1 | G73: 105 | H73: 105
A74: HC1691844 | B74: CM Easy Grip Triangular Pencils P72 | C74: 72 | D74: 1 | G74: 145.43 | H74: 145.43
A75: HC316244 | B75: CM Metal Sharpeners Double Hole Pk12 | C75: 12 | D75: 2 | G75: 51.45 | H75: 102.9
A76: HC131969 | B76: Staedtler Rasoplast Eraser P30 | C76: 30 | D76: 1 | G76: 96.6 | H76: 96.6
A77: CP00052794 | B77: Classmates Shatter Resistant Ruler - Clear - 300mm/30cm - Pack of 10 | C77: 10 | D77: 3 | G77: 24.15 | H77: 72.45
A78: HC298772 | B78: Rapesco X5-30PS Medium Duty Hole Punch | C78: 1 | D78: 1 | G78: 64.58 | H78: 64.58
A79: HC397364 | B79: Rapesco Sting Ray Half Strip Stapler | C79: 1 | D79: 1 | G79: 56.18 | H79: 56.18
A80: HC194863 | B80: Rapesco 24/6 Staples P5000 | C80: 5000 | D80: 1 | G80: 32.03 | H80: 32.03
A81: HC186556 | B81: Paper Fasteners 25mm Pack 200 | C81: 200 | D81: 1 | G81: 48.3 | H81: 48.3
A82: HC179406 | B82: Treasury Tag 51mm Yellow P100 | C82: 100 | D82: 1 | G82: 33.6 | H82: 33.6
A83: HC397442 | B83: C M Easytear Tape 24mmx66m Pk6 | C83: 6 | D83: 1 | G83: 37.28 | H83: 37.28
A84: HC1699057 | B84: Classmate Tape Dispenser | C84: 1 | D84: 1 | G84: 45.68 | H84: 45.68
A85: HC322874 | B85: Classmates Dble Sided Tape 12mmx33mm Pk6 | C85: 6 | D85: 1 | G85: 80.85 | H85: 80.85
A86: HC225517 | B86: C M Masking Tape 24mmx50mx9 | C86: 9 | D86: 1 | G86: 100.8 | H86: 100.8
A87: HC1109953 | B87: Blu Tack Original 60g | C87: 12 | D87: 1 | G87: 105 | H87: 105
A88: HC479745 | B88: A4 Hardboard Clipboard P12 | C88: 12 | D88: 2 | G88: 254.1 | H88: 508.2
A89: CP053113AB | B89: CM LtWeight Lapboard A4 Lined P35 | C89: 35 | D89: 1 | G89: 459.9 | H89: 459.9
A90: HC383558 | B90: Lakeland Jumbo Pencils Classpack | C90: 144 | D90: 1 | G90: 581.7 | H90: 581.7
A91: HC1774070 | B91: Berol Colour Fine Classpack 288 | C91: 288 | D91: 1 | G91: 548.63 | H91: 548.63
A92: HC1774064 | B92: Berol Colour Broad Classpack 288 | C92: 288 | D92: 1 | G92: 548.63 | H92: 548.63
A93: HC1102952 | B93: Edding 8 All Purpose Assorted, Bullet Tip - Pack of 144 | C93: 144 | D93: 1 | G93: 625.28 | H93: 625.28
A94: HC209241 | B94: Giotto Metallic Fibre Pens P24 | C94: 24 | D94: 5 | G94: 159.6 | H94: 798
A95: HC1815185 | B95: School Scissor Set P32 inc Box | C95: 32 | D95: 1 | G95: 145.43 | H95: 145.43
A96: HC295314 | B96: Crazy Cut Scissors Pk6 | C96: 6 | D96: 2 | G96: 86.1 | H96: 172.2
A97: HC370844 | B97: Bulk Buy - 6 Collage Jars | C97: 6 | D97: 1 | G97: 201.6 | H97: 201.6
A98: HC1815197 | B98: Classmates Dual Control Scissors - Right Handed | C98: 1 | D98: 12 | G98: 28.35 | H98: 340.2
A99: HC1815195 | B99: Classmates Easy Grip Scissors - Left Handed | C99: EA | D99: 3 | G99: 48.3 | H99: 144.9
A100: HC1815193 | B100: Classmates Easy Grip Scissors - Right Handed | C100: 1 | D100: 3 | G100: 56.18 | H100: 168.54
A101: CP00058415 | B101: Classmates Chunky Crayons - Pack of 40 | C101: 40 | D101: 2 | G101: 45.68 | H101: 91.36
A102: ART
A103: HC1674819 | B103: Assorted Splash Mats | C103: 4 | D103: 2 | G103: 151.73 | H103: =G103*D103 -> 303.46
A104: HC1506620 | B104: Classmates Ready Mixed Paint - 1 Litre - Assorted - Pack of 12 | C104: 1 | D104: 2 | G104: 189.53 | H104: 379.06
A105: CP00052574 | B105: Round Hog Short Brush Assortment - Pack of 100 | C105: 100 | D105: 1 | G105: 285.08 | H105: 285.08
A106: HC136402 | B106: Classmates Stable Water Pots | C106: 12 | D106: 2 | G106: 138.6 | H106: 277.2
A107: HC136376 | B107: Classmates 6 Well Paint Palette - Pack of 24 | C107: 24 | D107: 1 | G107: 183.75 | H107: 183.75
A108: HC1879314 | B108: Classmates Dispenser Bottles - 4 x 250ml | C108: 4 | D108: 2 | G108: 91.35 | H108: 182.7
A109: HC209020 | B109: Classmates Newsprint - A3 - Pack of 500 | C109: 500 | D109: 1 | G109: 153.3 | H109: 153.3
A110: HC382895 | B110: Classmates Tissue Paper Square Assortment - Pack of 480 | C110: 480 | D110: 1 | G110: 72.45 | H110: 72.45
A111: HC475884 | B111: Classmates A4 Assorted Card - Pack of 200 | C111: 200 | D111: 1 | G111: 84.53 | H111: 84.53
A112: E8R07951 | B112: Classmates PVA Glue - Blue Label - 5 Litre | C112: 1 | D112: 1 | G112: 76.65 | H112: 76.65
A113: HC149896 | B113: Classmates Plastic Glue Spreaders - Double Ended | C113: 10 | D113: 4 | G113: 21.53 | H113: 86.12
A114: HC1691856 | B114: Classmates Assorted Colouring Pencils - Pack of 504 | C114: 504 | D114: 1 | G114: 314.48 | H114: 314.48
A115: CP00056244 | B115: Classmates Broad Tip Colouring Pens - Pack of 288 | C115: 288 | D115: 1 | G115: 411.6 | H115: 411.6
A116: HC1594261 | B116: Classmates Glitter Assortment | C116: 10 | D116: 1 | G116: 147 | H116: 147
A117: HC292909 | B117: Staedtler® Tradition 110 Sketching Pencils - HB - Pack of 144 | C117: 144 | D117: 1 | G117: 264.08 | H117: 264.08
A118: HC48402825 | B118: 20 Shelf Spring Loaded Floor Drying Rack with Wheels | C118: 1 | D118: 1 | G118: 1520.4 | H118: 1520.4
A119: ENGLISH
A120: HC1353913 | B120: A5 dictionaries | C120: 30 | D120: 1 | G120: 112.88 | H120: 112.88
A121: HC1564053 | B121: Oxford First Grammar, Punctuation and Spelling Dictionary | C121: EA | D121: 15 | G121: 88.73 | H121: 1330.95
A122: HC48834240 | B122: Reading comprehension box 2 | C122: 1 | D122: 1 | G122: 1855.88 | H122: 1855.88
A123: HC1536830 | B123: Creative writing directory | C123: 1 | D123: 6 | G123: 105 | H123: 630
A124: HC1775783 | B124: Diversity picture books for KS2 | C124: 8 | D124: 1 | G124: 613.2 | H124: 613.2
A125: CP00053601 | B125: LDA Pencil Grips Grippies - Pack of 10 | C125: 10 | D125: 1 | G125: 40.95 | H125: 40.95
A126: HC1677021 | B126: Talking tins and activity guide | C126: 10 | D126: 1 | G126: 725.55 | H126: 725.55
A127: HC1685160 | B127: Spelling rules directory | C127: 1 | D127: 5 | G127: 96.6 | H127: 483
A128: GEOGRAPHY
A129: HC1660162 | B129: Inflatable labelling globe | C129: 1 | D129: 1 | E129: Geography | G129: 177.45 | H129: 177.45
A130: HC1555759 | B130: Simple maps pack | C130: 3 | D130: 1 | G130: 379.05 | H130: 379.05

Sheet Year 5
G1: Basket Total | H1: =SUM(H3:H130) -> 36407.4
A2: Product Code | B2: Product Description | C2: Units of Measure | D2: Quantity | E2: Section | F2: Curriculum Area | G2: Unit Price | H2: Total Price
A3: MATHS
A4: HC169149 | B4: Htu Dice Pack Of 60 | C4: 60 | D4: 1 | E4: Maths | F4: Number and Place Value | G4: 403.2 | H4: =G4*D4 -> 403.2
A5: HC1369266 | B5: Place Value Arrows Thousands Teacher | C5: 9 | D5: 2 | F5: Number and Place Value | G5: 108.68 | H5: 217.36
A6: HC1002791 | B6: Place Value Arrow Cards Pupil PK6 | C6: 6 | D6: 3 | F6: Number and Place Value | G6: 290.33 | H6: 870.99
A7: HC1489774 | B7: Numicon Boxed Set Of 80 Shapes | C7: 80 | D7: 2 | F7: Number and Place Value | G7: 354.9 | H7: 709.8
A8: HC332676 | B8: 0-100 Table Top Number Lines Pk5 | C8: 5 | D8: 4 | F8: Number and Place Value | G8: 80.85 | H8: 323.4
A9: EFMT14690 | B9: A5 Double Sided Multiplication Grid - Pack of 35 | C9: 35 | D9: 1 | F9: Multiplication and Division | G9: 169.58 | H9: 169.58
A10: EFMT14686 | B10: Giant Magnetic Array Set | C10: 1 | D10: 1 | F10: Multiplication and Division | G10: 137.03 | H10: 137.03
A11: HC170930 | B11: Table Boards Class Pack | C11: 1 | D11: 1 | F11: Multiplication and Division | G11: 258.3 | H11: 258.3
A12: HC1535474 | B12: Addition, Subtraction, Multiplication and Division Poster Pack Pack of three | C12: 3 | D12: 1 | F12: Multiplication and Division | G12: 161.18 | H12: 161.18
A13: HC1537279 | B13: Double-Sided Division Magnets - Pack of 132 | C13: 132 | D13: 1 | F13: Multiplication and Division | G13: 403.2 | H13: 403.2
A14: EFMT14688 | B14: Double-Sided Multiplication Magnets - Pack of 132 | C14: 132 | D14: 1 | F14: Multiplication and Division | G14: 379.05 | H14: 379.05
A15: HC1782357 | B15: Maths Mastery Division Set | C15: 1 | D15: 1 | F15: Multiplication and Division | G15: 572.78 | H15: 572.78
A16: HC1782347 | B16: Maths Mastery Addition Set | C16: 1 | D16: 1 | F16: Addition and Subtraction | G16: 395.33 | H16: 395.33
A17: HC1782349 | B17: Maths Mastery Subtraction Set | C17: 1 | D17: 1 | F17: Addition and Subtraction | G17: 395.33 | H17: 395.33
A18: HC1630583 | B18: Equivalence Washing Line | C18: 1 | D18: 1 | F18: Fractions, Decimals and Percentages | G18: 274.58 | H18: =G18*D18 -> 274.58
A19: HC1290948 | B19: Fraction and Decimal Counting Cards Pack of forty | C19: 40 | D19: 1 | F19: Fractions, Decimals and Percentages | G19: 197.4 | H19: 197.4
A20: HC1782359 | B20: Maths Mastery Fraction Set 1 | C20: 1 | D20: 1 | F20: Fractions, Decimals and Percentages | G20: 427.88 | H20: 427.88
A21: HC1782361 | B21: Maths Mastery Fraction Set 2 | C21: 1 | D21: 1 | F21: Fractions, Decimals and Percentages | G21: 508.2 | H21: 508.2
A22: HC1534658 | B22: Percentages Decimals And Fractions Bingo | C22: 1 | D22: 4 | F22: Fractions, Decimals and Percentages | G22: 169.58 | H22: 678.32
A23: EFMT13242 | B23: Rainbow Fraction Tiles | C23: 1 | D23: 1 | F23: Fractions, Decimals and Percentages | G23: 117.08 | H23: 117.08
A24: HC1002641 | B24: Rainbow Fractions Circles | C24: 1 | D24: 1 | F24: Fractions, Decimals and Percentages | G24: 84.53 | H24: 84.53
A25: HC1571283 | B25: Cubes Fraction Set | C25: 1 | D25: 1 | F25: Fractions, Decimals and Percentages | G25: 108.68 | H25: 108.68
A26: HC1536364 | B26: Fraction Bag | C26: 1 | D26: 1 | F26: Fractions, Decimals and Percentages | G26: 225.75 | H26: 225.75
A27: HC1002807 | B27: Unbreakable Mirrors 90x65mm P10 | C27: 10 | D27: 2 | F27: Geometry | G27: 52.5 | H27: 105
A28: HC1002659 | B28: Geometric Large Shapes | C28: 17 | D28: 2 | F28: Geometry | G28: 217.88 | H28: 435.76
A29: HC1002639 | B29: Geometrc Plane Shapes Set 1-50mm | C29: 160 | D29: 2 | F29: Geometry | G29: 266.18 | H29: 532.36
A30: HC388771 | B30: Helix Geometry Class Pack | C30: 1 | D30: 1 | F30: Geometry | G30: 467.78 | H30: 467.78
A31: HC424404 | B31: Geoboards 6 Colours 230mm | C31: 6 | D31: 4 | F31: Geometry | G31: 169.58 | H31: 678.32
A32: HC181213 | B32: Tape Measure Pack of 10 | C32: 10 | D32: 2 | F32: Measurement | G32: 78.23 | H32: 156.46
A33: E8A73842 | B33: 1m Wood Rule - Marked CM And MM | C33: 1 | D33: 5 | F33: Measurement | G33: 37.28 | H33: 186.4
A34: EFMT14433 | B34: Class Coin Set | C34: 1 | D34: 1 | F34: Measurement | G34: 246.23 | H34: 246.23
A35: E8R09487 | B35: Dual Power Timer - Pack of 5 | C35: 5 | D35: 1 | F35: Measurement | G35: 266.18 | H35: 266.18
A36: HC169526 | B36: Grocery Store Flip | C36: 1 | D36: 1 | F36: Measurement | G36: 213.68 | H36: 213.68
A37: HC88200579 | B37: Protractor - Pack of 10 Pack of ten | C37: 10 | D37: 4 | F37: Measurement | G37: 16.28 | H37: 65.12
A38: EDMT14144 | B38: Mini Time Tracker | C38: 1 | D38: 1 | F38: Measurement | G38: 210 | H38: 210
A39: HC167485 | B39: Multi-sided Dice | C39: 5 | D39: 6 | F39: Classroom Tools | G39: 40.43 | H39: 242.58
A40: HC1820757 | B40: Number and Symbol's Spots | C40: 1 | D40: 1 | F40: Classroom Tools | G40: 508.2 | H40: 508.2
A41: CP00058301 | B41: Show-me Magnetic Numbers and Symbols | C41: 1 | D41: 1 | F41: Classroom Tools | G41: 185.33 | H41: 185.33
A42: HC167784 | B42: Coloured Dominoes Pk 168 | C42: 168 | D42: 1 | F42: Classroom Tools | G42: 145.43 | H42: 145.43
A43: HC1490618 | B43: Jumbo Number Pebbles | C43: 20 | D43: 1 | F43: Classroom Tools | G43: 234.15 | H43: 234.15
A44: HC167446 | B44: Foam Dice Blue | C44: 1 | D44: 5 | F44: Classroom Tools | G44: 64.58 | H44: =G44*D44 -> 322.9
A45: HC312396 | B45: 100 Coloured Dice 4 Colours | C45: 100 | D45: 1 | F45: Classroom Tools | G45: 48.3 | H45: 48.3
A46: CP00057911 | B46: Translucent Counters from Hope Education - Pack of 1000 | C46: 1000 | D46: 1 | F46: Classroom Tools | G46: 137.03 | H46: 137.03
A47: HC363525 | B47: Pupil Counting Stick P6 | C47: 6 | D47: 3 | F47: Classroom Tools | G47: 153.3 | H47: 459.9
A48: HC1674195 | B48: Tactile Counting Stones | C48: 1 | D48: 1 | F48: Classroom Tools | G48: 274.58 | H48: 274.58
A49: HC165405 | B49: 1000pk Counting Sticks | C49: 1000 | D49: 1 | F49: Classroom Tools | G49: 185.33 | H49: 185.33
A50: HC1770182 | B50: Sand Timer - 1 Minute | C50: 1 | D50: 1 | F50: Classroom Tools | G50: 84.53 | H50: 84.53
A51: HC1770186 | B51: Sand Timer - 5 Minute | C51: 1 | D51: 1 | F51: Classroom Tools | G51: 84.53 | H51: 84.53
A52: CP00060270 | B52: Abacus with 100 beads | C52: 1 | D52: 1 | F52: Classroom Tools | G52: 79.8 | H52: 79.8
A53: CP00059299 | B53: Base Ten Class Set 184 pieces | C53: 184 | D53: 1 | F53: Classroom Tools | G53: 403.2 | H53: 403.2
A54: EFMT14205 | B54: Giant Magnetic Base 10 Demonstration Set | C54: 1 | D54: 1 | F54: Classroom Tools | G54: 205.8 | H54: 205.8
A55: HC167121 | B55: Write-On/Wipe-Off 100 Squares - Pack of 35 | C55: 35 | D55: 1 | F55: Classroom Tools | G55: 80.85 | H55: 80.85
A56: HC1822714 | B56: Eco Friendly 20 Bead String | C56: 1 | D56: 15 | F56: Classroom Tools | G56: 56.18 | H56: 842.7
A57: HC1822716 | B57: Eco-friendly 100 Bead String | C57: 1 | D57: 1 | F57: Classroom Tools | G57: 217.88 | H57: 217.88
A58: HC373873 | B58: Jumbo Playing Cards | C58: 1 | D58: 5 | F58: Classroom Tools | G58: 38.33 | H58: 191.65
A59: HC167719 | B59: Playing Cards | C59: 1 | D59: 15 | F59: Classroom Tools | G59: 12.08 | H59: 181.2
A60: HC167576 | B60: Polyhedron Number Dice - Pack 35 | C60: 35 | D60: 1 | F60: Classroom Tools | G60: 40.43 | H60: 40.43
A61: HC167693 | B61: Plastic Spinner Set | C61: 4 | D61: 1 | F61: Classroom Tools | G61: 40.43 | H61: 40.43
A62: EFMT14097 | B62: Foam Dice with Pockets | C62: 1 | D62: 1 | F62: Classroom Tools | G62: 32.03 | H62: 32.03
A63: EFMT14179 | B63: Teacher Whiteboard Dice | C63: 4 | D63: 1 | F63: Classroom Tools | G63: 306.6 | H63: 306.6
A64: EFMT11929 | B64: Unifix® Cubes - Pack of 500 | C64: 500 | D64: 1 | F64: Classroom Tools | G64: 298.73 | H64: 298.73
A65: HC1564958 | B65: Easy Read Time Teacher - 24-Hour Classroom Wall Clock | C65: 1 | D65: 1 | F65: Display | G65: 274.58 | H65: 274.58
A66: STATIONERY
A67: HC337213 | B67: Staedtler Noris HB Pencils Pk150 | C67: 150 | D67: 1 | E67: Stationery | G67: 133.35 | H67: =G67*D67 -> 133.35
A68: HC1694632 | B68: Classmate Classroom Collection | C68: 9 | D68: 1 | G68: 129.15 | H68: =G68*D68 -> 129.15
A69: HC206745 | B69: A4 Bulky Zip Wallets Asst P100 | C69: 100 | D69: 1 | G69: 347.03 | H69: =G69*D69 -> 347.03
A70: HC255469 | B70: A5 Zip Wallets Red P25 | C70: 25 | D70: 3 | G70: 112.88 | H70: 338.64
A71: HC284654 | B71: CM Address Labels 89x36mm P250 | C71: 250 | D71: 2 | G71: 24.15 | H71: 48.3
A72: CP00053887 | B72: Classmates Sticky Notes - Assorted Neon - 75 x 75mm - Pack of 12 | C72: 1 | D72: 5 | G72: 33.6 | H72: 168
A73: HC1691792 | B73: Classmates Highlighters 5 Colours Pk 48 | C73: 48 | D73: 1 | G73: 105 | H73: 105
A74: HC1691844 | B74: CM Easy Grip Triangular Pencils P72 | C74: 72 | D74: 1 | G74: 145.43 | H74: 145.43
A75: HC316244 | B75: CM Metal Sharpeners Double Hole Pk12 | C75: 12 | D75: 2 | G75: 51.45 | H75: 102.9
A76: HC131969 | B76: Staedtler Rasoplast Eraser P30 | C76: 30 | D76: 1 | G76: 96.6 | H76: 96.6
A77: CP00052794 | B77: Classmates Shatter Resistant Ruler - Clear - 300mm/30cm - Pack of 10 | C77: 10 | D77: 3 | G77: 24.15 | H77: 72.45
A78: HC298772 | B78: Rapesco X5-30PS Medium Duty Hole Punch | C78: 1 | D78: 1 | G78: 64.58 | H78: 64.58
A79: HC397364 | B79: Rapesco Sting Ray Half Strip Stapler | C79: 1 | D79: 1 | G79: 56.18 | H79: 56.18
A80: HC194863 | B80: Rapesco 24/6 Staples P5000 | C80: 5000 | D80: 1 | G80: 32.03 | H80: 32.03
A81: HC186556 | B81: Paper Fasteners 25mm Pack 200 | C81: 200 | D81: 1 | G81: 48.3 | H81: 48.3
A82: HC179406 | B82: Treasury Tag 51mm Yellow P100 | C82: 100 | D82: 1 | G82: 33.6 | H82: 33.6
A83: HC397442 | B83: C M Easytear Tape 24mmx66m Pk6 | C83: 6 | D83: 1 | G83: 37.28 | H83: 37.28
A84: HC1699057 | B84: Classmate Tape Dispenser | C84: 1 | D84: 1 | G84: 45.68 | H84: 45.68
A85: HC322874 | B85: Classmates Dble Sided Tape 12mmx33mm Pk6 | C85: 6 | D85: 1 | G85: 80.85 | H85: 80.85
A86: HC225517 | B86: C M Masking Tape 24mmx50mx9 | C86: 9 | D86: 1 | G86: 100.8 | H86: 100.8
A87: HC1109953 | B87: Blu Tack Original 60g | C87: 12 | D87: 1 | G87: 105 | H87: 105
A88: HC479745 | B88: A4 Hardboard Clipboard P12 | C88: 12 | D88: 2 | G88: 254.1 | H88: 508.2
A89: CP053113AB | B89: CM LtWeight Lapboard A4 Lined P35 | C89: 35 | D89: 1 | G89: 459.9 | H89: 459.9
A90: HC383558 | B90: Lakeland Jumbo Pencils Classpack | C90: 144 | D90: 1 | G90: 581.7 | H90: 581.7
A91: HC1774070 | B91: Berol Colour Fine Classpack 288 | C91: 288 | D91: 1 | G91: 548.63 | H91: 548.63
A92: HC1774064 | B92: Berol Colour Broad Classpack 288 | C92: 288 | D92: 1 | G92: 548.63 | H92: 548.63
A93: HC1102952 | B93: Edding 8 All Purpose Assorted, Bullet Tip - Pack of 144 | C93: 144 | D93: 1 | G93: 625.28 | H93: 625.28
A94: HC209241 | B94: Giotto Metallic Fibre Pens P24 | C94: 24 | D94: 5 | G94: 159.6 | H94: 798
A95: HC1815185 | B95: School Scissor Set P32 inc Box | C95: 32 | D95: 1 | G95: 145.43 | H95: 145.43
A96: HC295314 | B96: Crazy Cut Scissors Pk6 | C96: 6 | D96: 2 | G96: 86.1 | H96: 172.2
A97: HC370844 | B97: Bulk Buy - 6 Collage Jars | C97: 6 | D97: 1 | G97: 201.6 | H97: 201.6
A98: HC1815197 | B98: Classmates Dual Control Scissors - Right Handed | C98: 1 | D98: 12 | G98: 28.35 | H98: 340.2
A99: HC1815195 | B99: Classmates Easy Grip Scissors - Left Handed | C99: EA | D99: 3 | G99: 48.3 | H99: 144.9
A100: HC1815193 | B100: Classmates Easy Grip Scissors - Right Handed | C100: 1 | D100: 3 | G100: 56.18 | H100: 168.54
A101: CP00058415 | B101: Classmates Chunky Crayons - Pack of 40 | C101: 40 | D101: 2 | G101: 45.68 | H101: 91.36
A102: ART
A103: HC1674819 | B103: Assorted Splash Mats | C103: 4 | D103: 2 | G103: 151.73 | H103: =G103*D103 -> 303.46
A104: HC1506620 | B104: Classmates Ready Mixed Paint - 1 Litre - Assorted - Pack of 12 | C104: 1 | D104: 2 | G104: 189.53 | H104: 379.06
A105: CP00052574 | B105: Round Hog Short Brush Assortment - Pack of 100 | C105: 100 | D105: 1 | G105: 285.08 | H105: 285.08
A106: HC136402 | B106: Classmates Stable Water Pots | C106: 12 | D106: 2 | G106: 138.6 | H106: 277.2
A107: HC136376 | B107: Classmates 6 Well Paint Palette - Pack of 24 | C107: 24 | D107: 1 | G107: 183.75 | H107: 183.75
A108: HC1879314 | B108: Classmates Dispenser Bottles - 4 x 250ml | C108: 4 | D108: 2 | G108: 91.35 | H108: 182.7
A109: HC209020 | B109: Classmates Newsprint - A3 - Pack of 500 | C109: 500 | D109: 1 | G109: 153.3 | H109: 153.3
A110: HC382895 | B110: Classmates Tissue Paper Square Assortment - Pack of 480 | C110: 480 | D110: 1 | G110: 72.45 | H110: 72.45
A111: HC475884 | B111: Classmates A4 Assorted Card - Pack of 200 | C111: 200 | D111: 1 | G111: 84.53 | H111: 84.53
A112: E8R07951 | B112: Classmates PVA Glue - Blue Label - 5 Litre | C112: 1 | D112: 1 | G112: 76.65 | H112: 76.65
A113: HC149896 | B113: Classmates Plastic Glue Spreaders - Double Ended | C113: 10 | D113: 4 | G113: 21.53 | H113: 86.12
A114: HC1691856 | B114: Classmates Assorted Colouring Pencils - Pack of 504 | C114: 504 | D114: 1 | G114: 314.48 | H114: 314.48
A115: CP00056244 | B115: Classmates Broad Tip Colouring Pens - Pack of 288 | C115: 288 | D115: 1 | G115: 411.6 | H115: 411.6
A116: HC1594261 | B116: Classmates Glitter Assortment | C116: 10 | D116: 1 | G116: 147 | H116: 147
A117: HC292909 | B117: Staedtler® Tradition 110 Sketching Pencils - HB - Pack of 144 | C117: 144 | D117: 1 | G117: 264.08 | H117: 264.08
A118: HC48402825 | B118: 20 Shelf Spring Loaded Floor Drying Rack with Wheels | C118: 1 | D118: 1 | G118: 1520.4 | H118: 1520.4
A119: ENGLISH
A120: HC1353913 | B120: A5 dictionaries | C120: 30 | D120: 1 | G120: 112.88 | H120: 112.88
A121: HC1564053 | B121: Oxford First Grammar, Punctuation and Spelling Dictionary | C121: EA | D121: 15 | G121: 88.73 | H121: 1330.95
A122: HC48834253 | B122: Reading comprehension box 3 | C122: 1 | D122: 1 | G122: 1855.88 | H122: 1855.88
A123: HC1536830 | B123: Creative writing directory | C123: 1 | D123: 6 | G123: 105 | H123: 630
A124: HC1775783 | B124: Diversity picture books for KS2 | C124: 8 | D124: 1 | G124: 613.2 | H124: 613.2
A125: CP00053601 | B125: LDA Pencil Grips Grippies - Pack of 10 | C125: 10 | D125: 1 | G125: 40.95 | H125: 40.95
A126: HC1677021 | B126: Talking tins and activity guide | C126: 10 | D126: 1 | G126: 725.55 | H126: 725.55
A127: HC1685160 | B127: Spelling rules directory | C127: 1 | D127: 5 | G127: 96.6 | H127: 483
A128: GEOGRAPHY
A129: HC1660162 | B129: Inflatable labelling globe | C129: 1 | D129: 1 | E129: Geography | G129: 177.45 | H129: 177.45
A130: HC1555759 | B130: Simple maps pack | C130: 3 | D130: 1 | G130: 379.05 | H130: 379.05

Sheet Year 6
G1: Basket Total | H1: =SUM(H3:H130) -> 36407.4
A2: Product Code | B2: Product Description | C2: Units of Measure | D2: Quantity | E2: Section | F2: Curriculum Area | G2: Unit Price | H2: Total Price
A3: MATHS
A4: HC169149 | B4: Htu Dice Pack Of 60 | C4: 60 | D4: 1 | E4: Maths | F4: Number and Place Value | G4: 403.2 | H4: =G4*D4 -> 403.2
A5: HC1369266 | B5: Place Value Arrows Thousands Teacher | C5: 9 | D5: 2 | F5: Number and Place Value | G5: 108.68 | H5: 217.36
A6: HC1002791 | B6: Place Value Arrow Cards Pupil PK6 | C6: 6 | D6: 3 | F6: Number and Place Value | G6: 290.33 | H6: 870.99
A7: HC1489774 | B7: Numicon Boxed Set Of 80 Shapes | C7: 80 | D7: 2 | F7: Number and Place Value | G7: 354.9 | H7: 709.8
A8: HC332676 | B8: 0-100 Table Top Number Lines Pk5 | C8: 5 | D8: 4 | F8: Number and Place Value | G8: 80.85 | H8: 323.4
A9: EFMT14690 | B9: A5 Double Sided Multiplication Grid - Pack of 35 | C9: 35 | D9: 1 | F9: Multiplication and Division | G9: 169.58 | H9: 169.58
A10: EFMT14686 | B10: Giant Magnetic Array Set | C10: 1 | D10: 1 | F10: Multiplication and Division | G10: 137.03 | H10: 137.03
A11: HC170930 | B11: Table Boards Class Pack | C11: 1 | D11: 1 | F11: Multiplication and Division | G11: 258.3 | H11: 258.3
A12: HC1535474 | B12: Addition, Subtraction, Multiplication and Division Poster Pack Pack of three | C12: 3 | D12: 1 | F12: Multiplication and Division | G12: 161.18 | H12: 161.18
A13: HC1537279 | B13: Double-Sided Division Magnets - Pack of 132 | C13: 132 | D13: 1 | F13: Multiplication and Division | G13: 403.2 | H13: 403.2
A14: EFMT14688 | B14: Double-Sided Multiplication Magnets - Pack of 132 | C14: 132 | D14: 1 | F14: Multiplication and Division | G14: 379.05 | H14: 379.05
A15: HC1782357 | B15: Maths Mastery Division Set | C15: 1 | D15: 1 | F15: Multiplication and Division | G15: 572.78 | H15: 572.78
A16: HC1782347 | B16: Maths Mastery Addition Set | C16: 1 | D16: 1 | F16: Addition and Subtraction | G16: 395.33 | H16: 395.33
A17: HC1782349 | B17: Maths Mastery Subtraction Set | C17: 1 | D17: 1 | F17: Addition and Subtraction | G17: 395.33 | H17: 395.33
A18: HC1630583 | B18: Equivalence Washing Line | C18: 1 | D18: 1 | F18: Fractions, Decimals and Percentages | G18: 274.58 | H18: =G18*D18 -> 274.58
A19: HC1290948 | B19: Fraction and Decimal Counting Cards Pack of forty | C19: 40 | D19: 1 | F19: Fractions, Decimals and Percentages | G19: 197.4 | H19: 197.4
A20: HC1782359 | B20: Maths Mastery Fraction Set 1 | C20: 1 | D20: 1 | F20: Fractions, Decimals and Percentages | G20: 427.88 | H20: 427.88
A21: HC1782361 | B21: Maths Mastery Fraction Set 2 | C21: 1 | D21: 1 | F21: Fractions, Decimals and Percentages | G21: 508.2 | H21: 508.2
A22: HC1534658 | B22: Percentages Decimals And Fractions Bingo | C22: 1 | D22: 4 | F22: Fractions, Decimals and Percentages | G22: 169.58 | H22: 678.32
A23: EFMT13242 | B23: Rainbow Fraction Tiles | C23: 1 | D23: 1 | F23: Fractions, Decimals and Percentages | G23: 117.08 | H23: 117.08
A24: HC1002641 | B24: Rainbow Fractions Circles | C24: 1 | D24: 1 | F24: Fractions, Decimals and Percentages | G24: 84.53 | H24: 84.53
A25: HC1571283 | B25: Cubes Fraction Set | C25: 1 | D25: 1 | F25: Fractions, Decimals and Percentages | G25: 108.68 | H25: 108.68
A26: HC1536364 | B26: Fraction Bag | C26: 1 | D26: 1 | F26: Fractions, Decimals and Percentages | G26: 225.75 | H26: 225.75
A27: HC1002807 | B27: Unbreakable Mirrors 90x65mm P10 | C27: 10 | D27: 2 | F27: Geometry | G27: 52.5 | H27: 105
A28: HC1002659 | B28: Geometric Large Shapes | C28: 17 | D28: 2 | F28: Geometry | G28: 217.88 | H28: 435.76
A29: HC1002639 | B29: Geometrc Plane Shapes Set 1-50mm | C29: 160 | D29: 2 | F29: Geometry | G29: 266.18 | H29: 532.36
A30: HC388771 | B30: Helix Geometry Class Pack | C30: 1 | D30: 1 | F30: Geometry | G30: 467.78 | H30: 467.78
A31: HC424404 | B31: Geoboards 6 Colours 230mm | C31: 6 | D31: 4 | F31: Geometry | G31: 169.58 | H31: 678.32
A32: HC88200579 | B32: Protractor - Pack of 10 Pack of ten | C32: 10 | D32: 4 | F32: Measurement | G32: 16.28 | H32: 65.12
A33: HC181213 | B33: Tape Measure Pack of 10 | C33: 10 | D33: 2 | F33: Measurement | G33: 78.23 | H33: 156.46
A34: E8A73842 | B34: 1m Wood Rule - Marked CM And MM | C34: 1 | D34: 5 | F34: Measurement | G34: 37.28 | H34: 186.4
A35: EFMT14433 | B35: Class Coin Set | C35: 1 | D35: 1 | F35: Measurement | G35: 246.23 | H35: 246.23
A36: E8R09487 | B36: Dual Power Timer - Pack of 5 | C36: 5 | D36: 1 | F36: Measurement | G36: 266.18 | H36: 266.18
A37: HC169526 | B37: Grocery Store Flip | C37: 1 | D37: 1 | F37: Measurement | G37: 213.68 | H37: 213.68
A38: EDMT14144 | B38: Mini Time Tracker | C38: 1 | D38: 1 | F38: Measurement | G38: 210 | H38: 210
A39: HC167485 | B39: Multi-sided Dice | C39: 5 | D39: 6 | F39: Classroom Tools | G39: 40.43 | H39: 242.58
A40: HC1820757 | B40: Number and Symbol's Spots | C40: 1 | D40: 1 | F40: Classroom Tools | G40: 508.2 | H40: 508.2
A41: CP00058301 | B41: Show-me Magnetic Numbers and Symbols | C41: 1 | D41: 1 | F41: Classroom Tools | G41: 185.33 | H41: 185.33
A42: HC167784 | B42: Coloured Dominoes Pk 168 | C42: 168 | D42: 1 | F42: Classroom Tools | G42: 145.43 | H42: 145.43
A43: HC1490618 | B43: Jumbo Number Pebbles | C43: 20 | D43: 1 | F43: Classroom Tools | G43: 234.15 | H43: 234.15
A44: HC167446 | B44: Foam Dice Blue | C44: 1 | D44: 5 | F44: Classroom Tools | G44: 64.58 | H44: 322.9
A45: HC312396 | B45: 100 Coloured Dice 4 Colours | C45: 100 | D45: 1 | F45: Classroom Tools | G45: 48.3 | H45: =G45*D45 -> 48.3
A46: CP00057911 | B46: Translucent Counters from Hope Education - Pack of 1000 | C46: 1000 | D46: 1 | F46: Classroom Tools | G46: 137.03 | H46: 137.03
A47: HC363525 | B47: Pupil Counting Stick P6 | C47: 6 | D47: 3 | F47: Classroom Tools | G47: 153.3 | H47: 459.9
A48: HC1674195 | B48: Tactile Counting Stones | C48: 1 | D48: 1 | F48: Classroom Tools | G48: 274.58 | H48: 274.58
A49: HC165405 | B49: 1000pk Counting Sticks | C49: 1000 | D49: 1 | F49: Classroom Tools | G49: 185.33 | H49: 185.33
A50: HC1770182 | B50: Sand Timer - 1 Minute | C50: 1 | D50: 1 | F50: Classroom Tools | G50: 84.53 | H50: 84.53
A51: HC1770186 | B51: Sand Timer - 5 Minute | C51: 1 | D51: 1 | F51: Classroom Tools | G51: 84.53 | H51: 84.53
A52: CP00060270 | B52: Abacus with 100 beads | C52: 1 | D52: 1 | F52: Classroom Tools | G52: 79.8 | H52: 79.8
A53: CP00059299 | B53: Base Ten Class Set 184 pieces | C53: 184 | D53: 1 | F53: Classroom Tools | G53: 403.2 | H53: 403.2
A54: EFMT14205 | B54: Giant Magnetic Base 10 Demonstration Set | C54: 1 | D54: 1 | F54: Classroom Tools | G54: 205.8 | H54: 205.8
A55: HC167121 | B55: Write-On/Wipe-Off 100 Squares - Pack of 35 | C55: 35 | D55: 1 | F55: Classroom Tools | G55: 80.85 | H55: 80.85
A56: HC1822714 | B56: Eco Friendly 20 Bead String | C56: 1 | D56: 15 | F56: Classroom Tools | G56: 56.18 | H56: 842.7
A57: HC1822716 | B57: Eco-friendly 100 Bead String | C57: 1 | D57: 1 | F57: Classroom Tools | G57: 217.88 | H57: 217.88
A58: HC373873 | B58: Jumbo Playing Cards | C58: 1 | D58: 5 | F58: Classroom Tools | G58: 38.33 | H58: 191.65
A59: HC167719 | B59: Playing Cards | C59: 1 | D59: 15 | F59: Classroom Tools | G59: 12.08 | H59: 181.2
A60: HC167576 | B60: Polyhedron Number Dice - Pack 35 | C60: 35 | D60: 1 | F60: Classroom Tools | G60: 40.43 | H60: 40.43
A61: HC167693 | B61: Plastic Spinner Set | C61: 4 | D61: 1 | F61: Classroom Tools | G61: 40.43 | H61: 40.43
A62: EFMT14097 | B62: Foam Dice with Pockets | C62: 1 | D62: 1 | F62: Classroom Tools | G62: 32.03 | H62: 32.03
A63: EFMT14179 | B63: Teacher Whiteboard Dice | C63: 4 | D63: 1 | F63: Classroom Tools | G63: 306.6 | H63: 306.6
A64: EFMT11929 | B64: Unifix® Cubes - Pack of 500 | C64: 500 | D64: 1 | F64: Classroom Tools | G64: 298.73 | H64: 298.73
A65: HC1564958 | B65: Easy Read Time Teacher - 24-Hour Classroom Wall Clock | C65: 1 | D65: 1 | F65: Display | G65: 274.58 | H65: 274.58
A66: STATIONERY
A67: HC337213 | B67: Staedtler Noris HB Pencils Pk150 | C67: 150 | D67: 1 | E67: Stationery | G67: 133.35 | H67: =G67*D67 -> 133.35
A68: HC1694632 | B68: Classmate Classroom Collection | C68: 9 | D68: 1 | G68: 129.15 | H68: =G68*D68 -> 129.15
A69: HC206745 | B69: A4 Bulky Zip Wallets Asst P100 | C69: 100 | D69: 1 | G69: 347.03 | H69: =G69*D69 -> 347.03
A70: HC255469 | B70: A5 Zip Wallets Red P25 | C70: 25 | D70: 3 | G70: 112.88 | H70: 338.64
A71: HC284654 | B71: CM Address Labels 89x36mm P250 | C71: 250 | D71: 2 | G71: 24.15 | H71: 48.3
A72: CP00053887 | B72: Classmates Sticky Notes - Assorted Neon - 75 x 75mm - Pack of 12 | C72: 1 | D72: 5 | G72: 33.6 | H72: 168
A73: HC1691792 | B73: Classmates Highlighters 5 Colours Pk 48 | C73: 48 | D73: 1 | G73: 105 | H73: 105
A74: HC1691844 | B74: CM Easy Grip Triangular Pencils P72 | C74: 72 | D74: 1 | G74: 145.43 | H74: 145.43
A75: HC316244 | B75: CM Metal Sharpeners Double Hole Pk12 | C75: 12 | D75: 2 | G75: 51.45 | H75: 102.9
A76: HC131969 | B76: Staedtler Rasoplast Eraser P30 | C76: 30 | D76: 1 | G76: 96.6 | H76: 96.6
A77: CP00052794 | B77: Classmates Shatter Resistant Ruler - Clear - 300mm/30cm - Pack of 10 | C77: 10 | D77: 3 | G77: 24.15 | H77: 72.45
A78: HC298772 | B78: Rapesco X5-30PS Medium Duty Hole Punch | C78: 1 | D78: 1 | G78: 64.58 | H78: 64.58
A79: HC397364 | B79: Rapesco Sting Ray Half Strip Stapler | C79: 1 | D79: 1 | G79: 56.18 | H79: 56.18
A80: HC194863 | B80: Rapesco 24/6 Staples P5000 | C80: 5000 | D80: 1 | G80: 32.03 | H80: 32.03
A81: HC186556 | B81: Paper Fasteners 25mm Pack 200 | C81: 200 | D81: 1 | G81: 48.3 | H81: 48.3
A82: HC179406 | B82: Treasury Tag 51mm Yellow P100 | C82: 100 | D82: 1 | G82: 33.6 | H82: 33.6
A83: HC397442 | B83: C M Easytear Tape 24mmx66m Pk6 | C83: 6 | D83: 1 | G83: 37.28 | H83: 37.28
A84: HC1699057 | B84: Classmate Tape Dispenser | C84: 1 | D84: 1 | G84: 45.68 | H84: 45.68
A85: HC322874 | B85: Classmates Dble Sided Tape 12mmx33mm Pk6 | C85: 6 | D85: 1 | G85: 80.85 | H85: 80.85
A86: HC225517 | B86: C M Masking Tape 24mmx50mx9 | C86: 9 | D86: 1 | G86: 100.8 | H86: 100.8
A87: HC1109953 | B87: Blu Tack Original 60g | C87: 12 | D87: 1 | G87: 105 | H87: 105
A88: HC479745 | B88: A4 Hardboard Clipboard P12 | C88: 12 | D88: 2 | G88: 254.1 | H88: 508.2
A89: CP053113AB | B89: CM LtWeight Lapboard A4 Lined P35 | C89: 35 | D89: 1 | G89: 459.9 | H89: 459.9
A90: HC383558 | B90: Lakeland Jumbo Pencils Classpack | C90: 144 | D90: 1 | G90: 581.7 | H90: 581.7
A91: HC1774070 | B91: Berol Colour Fine Classpack 288 | C91: 288 | D91: 1 | G91: 548.63 | H91: 548.63
A92: HC1774064 | B92: Berol Colour Broad Classpack 288 | C92: 288 | D92: 1 | G92: 548.63 | H92: 548.63
A93: HC1102952 | B93: Edding 8 All Purpose Assorted, Bullet Tip - Pack of 144 | C93: 144 | D93: 1 | G93: 625.28 | H93: 625.28
A94: HC209241 | B94: Giotto Metallic Fibre Pens P24 | C94: 24 | D94: 5 | G94: 159.6 | H94: 798
A95: HC1815185 | B95: School Scissor Set P32 inc Box | C95: 32 | D95: 1 | G95: 145.43 | H95: 145.43
A96: HC295314 | B96: Crazy Cut Scissors Pk6 | C96: 6 | D96: 2 | G96: 86.1 | H96: 172.2
A97: HC370844 | B97: Bulk Buy - 6 Collage Jars | C97: 6 | D97: 1 | G97: 201.6 | H97: 201.6
A98: HC1815197 | B98: Classmates Dual Control Scissors - Right Handed | C98: 1 | D98: 12 | G98: 28.35 | H98: 340.2
A99: HC1815195 | B99: Classmates Easy Grip Scissors - Left Handed | C99: EA | D99: 3 | G99: 48.3 | H99: 144.9
A100: HC1815193 | B100: Classmates Easy Grip Scissors - Right Handed | C100: 1 | D100: 3 | G100: 56.18 | H100: 168.54
A101: CP00058415 | B101: Classmates Chunky Crayons - Pack of 40 | C101: 40 | D101: 2 | G101: 45.68 | H101: 91.36
A102: ART
A103: HC1674819 | B103: Assorted Splash Mats | C103: 4 | D103: 2 | G103: 151.73 | H103: =G103*D103 -> 303.46
A104: HC1506620 | B104: Classmates Ready Mixed Paint - 1 Litre - Assorted - Pack of 12 | C104: 1 | D104: 2 | G104: 189.53 | H104: 379.06
A105: CP00052574 | B105: Round Hog Short Brush Assortment - Pack of 100 | C105: 100 | D105: 1 | G105: 285.08 | H105: 285.08
A106: HC136402 | B106: Classmates Stable Water Pots | C106: 12 | D106: 2 | G106: 138.6 | H106: 277.2
A107: HC136376 | B107: Classmates 6 Well Paint Palette - Pack of 24 | C107: 24 | D107: 1 | G107: 183.75 | H107: 183.75
A108: HC1879314 | B108: Classmates Dispenser Bottles - 4 x 250ml | C108: 4 | D108: 2 | G108: 91.35 | H108: 182.7
A109: HC209020 | B109: Classmates Newsprint - A3 - Pack of 500 | C109: 500 | D109: 1 | G109: 153.3 | H109: 153.3
A110: HC382895 | B110: Classmates Tissue Paper Square Assortment - Pack of 480 | C110: 480 | D110: 1 | G110: 72.45 | H110: 72.45
A111: HC475884 | B111: Classmates A4 Assorted Card - Pack of 200 | C111: 200 | D111: 1 | G111: 84.53 | H111: 84.53
A112: E8R07951 | B112: Classmates PVA Glue - Blue Label - 5 Litre | C112: 1 | D112: 1 | G112: 76.65 | H112: 76.65
A113: HC149896 | B113: Classmates Plastic Glue Spreaders - Double Ended | C113: 10 | D113: 4 | G113: 21.53 | H113: 86.12
A114: HC1691856 | B114: Classmates Assorted Colouring Pencils - Pack of 504 | C114: 504 | D114: 1 | G114: 314.48 | H114: 314.48
A115: CP00056244 | B115: Classmates Broad Tip Colouring Pens - Pack of 288 | C115: 288 | D115: 1 | G115: 411.6 | H115: 411.6
A116: HC1594261 | B116: Classmates Glitter Assortment | C116: 10 | D116: 1 | G116: 147 | H116: 147
A117: HC292909 | B117: Staedtler® Tradition 110 Sketching Pencils - HB - Pack of 144 | C117: 144 | D117: 1 | G117: 264.08 | H117: 264.08
A118: HC48402825 | B118: 20 Shelf Spring Loaded Floor Drying Rack with Wheels | C118: 1 | D118: 1 | G118: 1520.4 | H118: 1520.4
A119: ENGLISH
A120: HC1353913 | B120: A5 dictionaries | C120: 30 | D120: 1 | G120: 112.88 | H120: 112.88
A121: HC1564053 | B121: Oxford First Grammar, Punctuation and Spelling Dictionary | C121: EA | D121: 15 | G121: 88.73 | H121: 1330.95
A122: HC48834253 | B122: Reading comprehension box 3 | C122: 1 | D122: 1 | G122: 1855.88 | H122: 1855.88
A123: HC1536830 | B123: Creative writing directory | C123: 1 | D123: 6 | G123: 105 | H123: 630
A124: HC1775783 | B124: Diversity picture books for KS2 | C124: 8 | D124: 1 | G124: 613.2 | H124: 613.2
A125: CP00053601 | B125: LDA Pencil Grips Grippies - Pack of 10 | C125: 10 | D125: 1 | G125: 40.95 | H125: 40.95
A126: HC1677021 | B126: Talking tins and activity guide | C126: 10 | D126: 1 | G126: 725.55 | H126: 725.55
A127: HC1685160 | B127: Spelling rules directory | C127: 1 | D127: 5 | G127: 96.6 | H127: 483
A128: GEOGRAPHY
A129: HC1660162 | B129: Inflatable labelling globe | C129: 1 | D129: 1 | E129: Geography | G129: 177.45 | H129: 177.45
A130: HC1555759 | B130: Simple maps pack | C130: 3 | D130: 1 | G130: 379.05 | H130: 379.05

Sheet KS2 Shared
G1: Basket Total | H1: =SUM(H3:H97) -> 66932.54
A2: Product Code | B2: Product Description | C2: Units of Measure | D2: Quantity | E2: Section | F2: Curriculum Area | G2: Unit Price | H2: Total Price
A3: Maths (Shared Resources)
A4: CP00052984 | B4: Place Value Counters (ones, tens, hundreds) | C4: 300 | D4: 2 | F4: Number and place value | G4: 210 | H4: =G4*D4 -> 420
A5: HC373964 | B5: Number Tiles | C5: 24 | D5: 1 | F5: Number and place value | G5: 330.75 | H5: =G5*D5 -> 330.75
A6: HC165405 | B6: 1000pk Counting Sticks | C6: 1000 | D6: 3 | F6: Number and place value | G6: 185.33 | H6: =G6*D6 -> 555.99
A7: HC1673805 | B7: 50 Place Value Activities Pack of fifty | C7: 50 | D7: 1 | F7: Number and place value | G7: 137.03 | H7: =G7*D7 -> 137.03
A8: HC1673815 | B8: 50 Time Activities Pack of fifty | C8: 50 | D8: 1 | F8: Measurement | G8: 137.03 | H8: =G8*D8 -> 137.03
A9: HC881132 | B9: Simple Scales | C9: 1 | D9: 10 | F9: Measurement | G9: 249.9 | H9: 2499
A10: EDMT14978 | B10: Measuring Volume Kit | C10: 1 | D10: 3 | F10: Measurement | G10: 887.78 | H10: 2663.34
A11: HC169812 | B11: Front Of Class Clock Kit | C11: 1 | D11: 3 | F11: Measurement | G11: 887.78 | H11: 2663.34
A12: HC1579931 | B12: Write On Wipe Off Clock Dial (24 Hour) | C12: 5 | D12: 12 | F12: Measurement | G12: 64.58 | H12: 774.96
A13: HC172074 | B13: Closed Reel Measuring Tape 10m | C13: 1 | D13: 20 | F13: Measurement | G13: 88.73 | H13: 1774.6
A14: HC1383806 | B14: Mini Measure | C14: 1 | D14: 6 | F14: Measurement | G14: 96.6 | H14: 579.6
A15: HC181213 | B15: Tape Measures Pack Of 10 | C15: 10 | D15: 3 | F15: Measurement | G15: 78.23 | H15: 234.69
A16: HC1465747 | B16: Helix Metre Stick | C16: 1 | D16: 14 | F16: Measurement | G16: 48.3 | H16: 676.2
A17: CP059184 | B17: Teaching Clock: Class Pack of 6 | C17: 6 | D17: 10 | F17: Measurement | G17: 1169.7 | H17: =G17*D17 -> 11697
A18: IAAP10741 | B18: Trundle Wheel with Counter | C18: 1 | D18: 3 | F18: Measurement | G18: 161.18 | H18: =G18*D18 -> 483.54
A19: HC1674104 | B19: 50 Money Activities Pack of fifty | C19: 50 | D19: 1 | F19: Measurement | G19: 145.43 | H19: =G19*D19 -> 145.43
A20: HC290101 | B20: Salter Electronic Scale | C20: 1 | D20: 10 | F20: Measurement | G20: 322.88 | H20: =G20*D20 -> 3228.8
A21: HC1574046 | B21: Equivalence Crunchers - Pack of 25 | C21: 25 | D21: 2 | F21: Fractions, decimals and percentages | G21: 137.03 | H21: 274.06
A22: HC1825181 | B22: Maths Mastery Fractions, Decimals & Percentage Kit | C22: 1 | D22: 1 | F22: Fractions, decimals and percentages | G22: 3034.5 | H22: =G22*D22 -> 3034.5
A23: HC421271 | B23: First Fraction Dominoes | C23: 24 | D23: 3 | F23: Fractions, decimals and percentages | G23: 88.73 | H23: =G23*D23 -> 266.19
A24: HC1687597 | B24: Mini Relational Geosolids Pack | D24: 1 | F24: Geometry | G24: 129.15 | H24: 129.15
A25: E8A44416 | B25: Plastic Flexible Mirrors - 100 x 75mm | D25: 3 | F25: Geometry | G25: 48.3 | H25: 144.9
A26: HC1002659 | B26: Geometric Large Shapes | C26: 17 | D26: 3 | F26: Geometry | G26: 217.88 | H26: 653.64
A27: HC1002639 | B27: Geometric Plastic Shapes Small | C27: 60 | D27: 1 | F27: Geometry | G27: 266.18 | H27: 266.18
A28: HC1002807 | B28: Unbreakable Mirrors 90x65mm P10 | C28: 10 | D28: 2 | F28: Geometry | G28: 52.5 | H28: 105
A29: HC168434 | B29: 3D Geometric Shapes | C29: 1 | D29: 1 | F29: Geometry | G29: 411.6 | H29: 411.6
A30: HC168603 | B30: Polygon Allsorts | C30: 1 | D30: 1 | F30: Geometry | G30: 210 | H30: 210
A31: HC1002661 | B31: Geometric Plastic Shapes - Large - Pack of 60 | C31: 60 | D31: 1 | F31: Geometry | G31: 322.88 | H31: 322.88
A32: HC1290942 | B32: 2D Faces of 3D Shapes | C32: 1 | D32: 1 | F32: Geometry | G32: 258.3 | H32: 258.3
A33: EFMT14207 | B33: 2D Shape Bag | C33: 1 | D33: 1 | F33: Geometry | G33: 197.93 | H33: 197.93
A34: EFMT14208 | B34: 3D Shape Bag | C34: 1 | D34: 1 | F34: Geometry | G34: 234.15 | H34: 234.15
A35: EFMT11671 | B35: Geometric Shapes - Pack of 17 | C35: 17 | D35: 1 | F35: Geometry | G35: 217.88 | H35: 217.88
A36: EFMT12668 | B36: Shape Templates | C36: 5 | D36: 1 | F36: Geometry | G36: 64.58 | H36: 64.58
A37: HC1674077 | B37: 50 Graph and Chart Activities Pack of fifty | C37: 50 | D37: 1 | F37: Statistics | G37: 137.03 | H37: 137.03
A38: Year 3 & 4 Class Maths Sets
A39: HC1574044 | B39: Double-Sided Magnetic Fraction Percentage Bars - Pack 39 | D39: 1 | F39: Fractions, decimals and percentages | G39: 153.3 | H39: =G39*D39 -> 153.3
A40: CP00052982 | B40: 2 Colour Counters | C40: PK | D40: 2 | F40: Number and place value | G40: 88.73 | H40: =G40*D40 -> 177.46
A41: E8R06308 | B41: Measuring Weight Kit | D41: 1 | F41: Measurement | G41: 1178.1 | H41: 1178.1
A42: EGMT13640 | B42: Place Value Arrow Cards - Pupil | D42: 3 | F42: Number and place value | G42: 290.33 | H42: 870.99
A43: HC1002805 | B43: Magnetic Place Value Arrows - Hundreds Tens & Units | D43: 1 | F43: Number and place value | G43: 201.6 | H43: 201.6
A44: EGMT13646 | B44: Place Value Arrow Cards - Thousands - Pupil | D44: 3 | F44: Number and place value | G44: 96.6 | H44: 289.8
A45: EGMT13647 | B45: Place Value Arrow Cards - Thousands - Teacher | D45: 1 | F45: Number and place value | G45: 108.68 | H45: 108.68
A46: HC1675345 | B46: Fractions Years 3 and 4 | C46: 1 | D46: 1 | F46: Fractions, decimals and percentages | G46: 153.3 | H46: 153.3
A47: HC1571283 | B47: Cubes Fraction Set | D47: 6 | F47: Fractions, decimals and percentages | G47: 108.68 | H47: 652.08
A48: Year 5 & 6 Class Maths Sets
A49: HC170787 | B49: Maths Board Games Years 5-6 | C49: 6 | D49: 1 | E49: Year 5 & 6 Class Maths Sets | F49: Number and place value | G49: 247.8 | H49: 247.8
A50: EGMT13647 | B50: Place Value Arrow Cards - Thousands - Teacher | D50: 3 | F50: Number and place value | G50: 108.68 | H50: 326.04
A51: HC88200579 | B51: Protractor - Pack 10 | D51: 6 | F51: Measurement | G51: 16.28 | H51: 97.68
A52: EGMT13646 | B52: Place Value Arrow Cards - Thousands - Pupil | D52: 9 | F52: Number and place value | G52: 96.6 | H52: 869.4
A53: HC1571283 | B53: Cubes Fraction Set | D53: 18 | F53: Fractions, decimals and percentages | G53: 108.68 | H53: 1956.24
A54: E8R06308 | B54: Measuring Weight Kit | D54: 3 | F54: Measurement | G54: 1178.1 | H54: 3534.3
A55: HC1574044 | B55: Double-Sided Magnetic Fraction Percentage Bars - Pack 39 | D55: 3 | F55: Fractions, decimals and percentages | G55: 153.3 | H55: 459.9
A56: EGMT13640 | B56: Place Value Arrow Cards - Pupil | D56: 9 | F56: Number and place value | G56: 290.33 | H56: 2612.97
A57: HC115732 | B57: Compass - Pack 10 | D57: 6 | F57: Classroom Tools | G57: 32.03 | H57: 192.18
A58: HC1002805 | B58: Magnetic Place Value Arrows - Hundreds Tens & Units | D58: 3 | F58: Number and place value | G58: 201.6 | H58: 604.8
A59: CP00052982 | B59: 2 Colour Counters | C59: PK | D59: 6 | F59: Number and place value | G59: 88.73 | H59: 532.38
A60: E8R08153 | B60: 1kg Mechanical Scale - White | C60: 1 | D60: 6 | F60: Measurement | G60: 105 | H60: 630
A61: HC351565 | B61: Texet SL8 Pocket Calculator | C61: EA | D61: 6 | F61: Classroom Tools | G61: 47.78 | H61: 286.68
A62: KS2 English
A63: HC248917 | B63: Writer's Directory | D63: 1 | G63: 105 | H63: =G63*D63 -> 105
A64: ECMT13182 | B64: Reading Comprehension Starter Pack - Set 1 | D64: 1 | G64: 173.25 | H64: 173.25
A65: ECMT13183 | B65: Reading Comprehension Starter Pack - Set 2 | D65: 1 | G65: 173.25 | H65: 173.25
A66: EBMT14734 | B66: Write on Wipe Off Pockets | D66: 3 | G66: 225.75 | H66: 677.25
A67: EBMT13291 | B67: Coloured Blank Flash Cards - 250 large cards | D67: 1 | G67: 72.45 | H67: 72.45
A68: ECMT14449 | B68: 6 Comprehension Games | D68: 1 | G68: 173.25 | H68: 173.25
A69: EFMT11959 | B69: Magnetic Dry-wipe Boards | D69: 5 | G69: 242.03 | H69: 1210.15
A70: ECMT13095 | B70: 6 Super Spelling Rules Board Games | D70: 1 | G70: 193.73 | H70: 193.73
A71: EBMT12594 | B71: Writing Prompt Cubes - Pack of 6 | D71: 1 | G71: 100.8 | H71: 100.8
A72: EDMT14510 | B72: A2 Writing Frames Pack of 12 | D72: 1 | G72: 282.45 | H72: 282.45
A73: HC1203168 | B73: Sentence Scramblers | D73: 1 | G73: 173.25 | H73: 173.25
A74: EBMT13282 | B74: Story Spinners | D74: 1 | G74: 88.73 | H74: 88.73
A75: EBMT12538 | B75: Word For Word Phonics Game | D75: 1 | G75: 249.9 | H75: 249.9
A76: CP00060047 | B76: SMART KIDS Mighty Morphemes | D76: 1 | G76: 201.6 | H76: 201.6
A77: ECMT14133 | B77: 6 Grammar and Sentences Board Games | D77: 1 | G77: 213.68 | H77: 213.68
A78: EDMT13125 | B78: 7 Questioning Skills Board Games | D78: 1 | G78: 217.88 | H78: 217.88
A79: EGMT13774 | B79: 10 minute sentence writing intervention | D79: 2 | G79: 435.75 | H79: 871.5
A80: HC1290748 | B80: magnetic punctuation | C80: 36 | D80: 2 | G80: 117.08 | H80: 234.16
A81: HC1665056 | B81: syllables game | D81: 2 | G81: 173.25 | H81: 346.5
A82: HC1789767 | B82: Talking photograph album | D82: 2 | G82: 391.13 | H82: 782.26
A83: HC1673607 | B83: Dark red banded readers | C83: 20 | D83: 1 | G83: 1210.65 | H83: 1210.65
A84: HC1673605 | B84: Dark blue banded readers | C84: 20 | D84: 1 | G84: 1210.65 | H84: 1210.65
A85: HC1673603 | B85: Grey banded readers | C85: 25 | D85: 1 | G85: 1412.25 | H85: 1412.25
A86: HC1673601 | B86: Brown banded readers | C86: 25 | D86: 1 | G86: 1371.83 | H86: 1371.83
A87: GEOGRAPHY
A88: HC1003402 | B88: Collins primary Atlas | C88: 1 | D88: 15 | E88: Geography | G88: 76.65 | H88: 1149.75
A89: HC1535051 | B89: World and UK desk maps | C89: 30 | D89: 1 | G89: 383.25 | H89: 383.25
A90: HC1664201 | B90: Biomes Kit | C90: 1 | D90: 1 | G90: 274.58 | H90: 274.58
A91: HC1003384 | B91: Rivers photo pack | C91: 1 | D91: 1 | G91: 210 | H91: 210
A92: HC1003415 | B92: Mountains photo pack | C92: 1 | D92: 1 | G92: 234.15 | H92: =G92*D92 -> 234.15
A93: HC1350657 | B93: Points of the compass poster | C93: 1 | D93: 1 | G93: 105 | H93: 105
A94: E8A58816 | B94: Mapping compass | C94: 5 | D94: 6 | G94: 56.18 | H94: 337.08
A95: HC48754017 | B95: Mapping skills upper primary | C95: 1 | D95: 1 | G95: 137.03 | H95: 137.03
A96: HC48754004 | B96: Mapping skills lower primary | C96: 1 | D96: 1 | G96: 137.03 | H96: 137.03
A97: HC1488949 | B97: Thinking geography | C97: 20 | D97: 1 | G97: 153.3 | H97: 153.3

Sheet SENCO
E1: Basket Total | F1: =SUM(F3:F76) -> 22977.51
A2: Product Code | B2: Product Description | C2: Units of Measure | D2: Quantity | E2: Unit Price | F2: Total Price
A3: SENCO/INCLUSION
A4: Top 3 Books for Teachers
A5: EAMT12586 | B5: Target Ladders: Autistic Spectrum | C5: 1 | D5: 1 | E5: 195.83 | F5: =E5*D5 -> 195.83
A6: EGMT13773 | B6: How to Support Pupils with Autism Spectrum Condition in Primary School | C6: 1 | D6: 1 | E6: 187.43 | F6: =E6*D6 -> 187.43
A7: EDMT14158 | B7: Stories That Explain | C7: 1 | D7: 1 | E7: 162.75 | F7: =E7*D7 -> 162.75
A8: Social Communication & Social Interaction
A9: EDMT14198 | B9: Talking Tower Social Skills | C9: 1 | D9: 2 | E9: 309.75 | F9: =E9*D9 -> 619.5
A10: EBMT11922 | B10: Friendship Formula Game | C10: 1 | D10: 1 | E10: 326.03 | F10: 326.03
A11: EDMT14180 | B11: Roll - Social Skills | C11: 1 | D11: 1 | E11: 242.03 | F11: 242.03
A12: EDMT13125 | B12: 7 Questioning Skills Board Games | C12: 1 | D12: 1 | E12: 217.88 | F12: 217.88
A13: EDMT14872 | B13: All About Me Cubes | C13: 3 | D13: 3 | E13: 72.45 | F13: 217.35
A14: HC1780685 | B14: Emotion Fans | C14: P 5 | D14: 3 | E14: 162.75 | F14: 488.25
A15: HC1004354 | B15: Talking Tubes | C15: 1 | D15: 1 | E15: 153.3 | F15: 153.3
A16: EDMT13124 | B16: Language Development Games | C16: 1 | D16: 1 | E16: 217.88 | F16: 217.88
A17: HC1203168 | B17: Sentence Scramblers | C17: 1 | D17: 1 | E17: 173.25 | F17: 173.25
A18: EDMT15141 | B18: Social Skills Stickers | C18: 51 | D18: 10 | E18: 28.88 | F18: 288.8
A19: EBMT01173 | B19: Time to Talk | C19: 1 | D19: 1 | E19: 350.7 | F19: 350.7
A20: Sensory Processing
A21: EDMT14916 | B21: Light-Up Sensory Ball | C21: 1 | D21: 1 | E21: 814.8 | F21: =E21*D21 -> 814.8
A22: EEMT11364 | B22: Sensory Circuits | C22: 1 | D22: 1 | E22: 162.75 | F22: 162.75
A23: CP00051180 | B23: Infinity Mirror | C23: 1 | D23: 1 | E23: 162.75 | F23: 162.75
A24: EWMT14020 | B24: Sensory Shuffle | C24: 50 | D24: 2 | E24: 138.6 | F24: 277.2
A25: HC1000723 | B25: 6 Social Skills Board Games | C25: 1 | D25: 1 | E25: 242.03 | F25: 242.03
A26: EWMT14632 | B26: Sensory Circuit Circles | C26: 18 | D26: 1 | E26: 578.55 | F26: 578.55
A27: HC1840257 | B27: Sensory Bean Cushion | C27: 1 | D27: 3 | E27: 219.98 | F27: 659.94
A28: EWMT14586 | B28: Mini Dark Den | C28: 1 | D28: 1 | E28: 339.15 | F28: 339.15
A29: HC1571123 | B29: Teaching Touchables Tactile Squares | C29: 10 pairs | D29: 2 | E29: 269.33 | F29: 538.66
A30: Information Processing
A31: CP00059192 | B31: LDA Privacy Screen | C31: Set | D31: 3 | E31: 114.45 | F31: =E31*D31 -> 343.35
A32: EGMT14182 | B32: Magnetic Timetable EYFS | C32: Set | D32: 4 | E32: 219.98 | F32: =E32*D32 -> 879.92
A33: EDMT14627 | B33: Visual Timetable Pencil Case | C33: 1 | D33: 4 | E33: 81.38 | F33: =E33*D33 -> 325.52
A34: HC1770178 | B34: Sand Timer Class Pack 20 | C34: 7 | D34: 1 | E34: 242.03 | F34: =E34*D34 -> 242.03
A35: Behaviour Support
A36: EAMT12587 | B36: Target Ladders: Behavioural, Emotional and Social Difficulties | C36: 1 | D36: 1 | E36: 195.83 | F36: =E36*D36 -> 195.83
A37: HC1000725 | B37: Feelings And Emotions Cards | C37: 1 | D37: 1 | E37: 201.6 | F37: 201.6
A38: EDMT14923 | B38: Sensory Spiral Liquid Tubes Set | C38: 3 | D38: 2 | E38: 212.1 | F38: 424.2
A39: CP00050195 | B39: Sensory Fidget Kit | C39: Set | D39: 1 | E39: 260.4 | F39: 260.4
A40: EDMT10192 | B40: Movin’ Sit Cushions - Junior | C40: 1 | D40: 2 | E40: 309.75 | F40: 619.5
A41: CP00059160 | B41: Children's Adjustable Ear Defenders | C41: 1 | D41: 5 | E41: 106.05 | F41: 530.25
A42: CP00056642 | B42: Weighted Lap Pad | C42: 1 | D42: 2 | E42: 309.75 | F42: 619.5
A43: HC1808330 | B43: Buddi Fidget Toy | C43: EA | D43: 5 | E43: 57.23 | F43: 286.15
A44: EDMT14538 | B44: Twist & Lock Blocks | C44: Pack | D44: 10 | E44: 40.95 | F44: 409.5
A45: EDMT11637 | B45: Fidget Triangle | C45: 1 | D45: 8 | E45: 72.45 | F45: 579.6
A46: EDMT14637 | B46: Emotion Fans | C46: 5 | D46: 2 | E46: 162.75 | F46: 325.5
A47: EGMT13315 | B47: Emotion Stones | C47: 1 | D47: 1 | E47: 193.73 | F47: 193.73
A48: EBMT10697 | B48: Abilitations Chewelery Bracelet - Pack of 7 | C48: 7 | D48: 1 | E48: 448.35 | F48: 448.35
A49: HC1869024 | B49: Bangles (Pack of 2) | C49: 2 | D49: 2 | E49: 98.18 | F49: 196.36
A50: EBMT14163 | B50: Emotion Commotion | C50: Pack | D50: 2 | E50: 147 | F50: 294
A51: HC1820786 | B51: Emotion Cubes | C51: 3 | D51: 3 | E51: 105 | F51: 315
A52: EGMT14203 | B52: Calming Coins | C52: Set | D52: 1 | E52: 269.33 | F52: 269.33
A53: EDMT14856 | B53: How I Feel Wheels | C53: 5 | D53: 3 | E53: 162.75 | F53: 488.25
A54: EDMT14197 | B54: Talking Tower Self Esteem | C54: 1 | D54: 1 | E54: 317.63 | F54: 317.63
A55: HC1868351 | B55: Balance Pad | C55: 1 | D55: 1 | E55: 154.88 | F55: 154.88
A56: EDMT14911 | B56: Therapy Putty | C56: 4 | D56: 2 | E56: 162.75 | F56: 325.5
A57: Reading/Writing Support
A58: HC1005408 | B58: ACE Spelling Dictionary | C58: EA | D58: 5 | E58: 147 | F58: =E58*D58 -> 735
A59: ECMT00564 | B59: Reading Window | C59: 10 | D59: 3 | E59: 106.05 | F59: 318.15
A60: HC1005343 | B60: Coloured Reading Overlays Pk10 | C60: 10 | D60: 3 | E60: 88.73 | F60: 266.19
A61: ECMT10170 | B61: Coloured Reading Overlays Pk10 | C61: 10 | D61: 1 | E61: 88.73 | F61: 88.73
A62: CP00053601 | B62: LDA Pencil Grips Grippies - Pack of 10 | C62: 10 | D62: 5 | E62: 40.95 | F62: 204.75
A63: EDMT14870 | B63: Gross Motor Skills Cube | C63: 2 | D63: 3 | E63: 81.38 | F63: 244.14
A64: General Use
A65: HC1815193 | B65: Classmates Easy Grip Scissors - Right Handed | C65: 1 | D65: 10 | E65: 56.18 | F65: =E65*D65 -> 561.8
A66: HC1815197 | B66: Classmates Dual Control Scissors - Right Handed | C66: 1 | D66: 12 | E66: 28.35 | F66: 340.2
A67: HC1815195 | B67: Classmates Easy Grip Scissors - Left Handed | C67: EA | D67: 3 | E67: 48.3 | F67: 144.9
A68: EDMT14147 | B68: Tangle Set 3 | C68: 3 | D68: 1 | E68: 173.25 | F68: 173.25
A69: HC1579350 | B69: Hear Myself Sound Phone | C69: 1 | D69: 5 | E69: 80.85 | F69: 404.25
A70: HC1570424 | B70: Soundbank Plus-mirror Pack | C70: 1 | D70: 10 | E70: 112.88 | F70: 1128.8
A71: EWMT12707 | B71: Tactile Ball Pack | C71: 1 | D71: 1 | E71: 374.85 | F71: 374.85
A72: EFMT13219 | B72: Smart Chute | C72: 1 | D72: 1 | E72: 153.3 | F72: 153.3
A73: HC118189 | B73: Gonge Stepping Stones | C73: 1 | D73: 1 | E73: 443.63 | F73: 443.63
A74: HC1691844 | B74: CM Easy Grip Triangular Pencils P72 | C74: 72 | D74: 1 | E74: 145.43 | F74: 145.43
A75: HC342842 | B75: Easy Grip Tweezers PK12 | C75: 12 | D75: 1 | E75: 105 | F75: 105
A76: CP00053143 | B76: CM Rigid Lapboard A4 Plain Mag P10 | C76: 10 | D76: 1 | E76: 282.45 | F76: 282.45

Sheet Languages
E1: Basket Total | F1: =SUM(F3:F22) -> 5709.39
A2: Product Code | B2: Product Description | C2: Units of Measure | D2: Quantity | E2: Unit Price | F2: Total Price
A3: Languages
A4: EYFS French
A5: HC1685173 | B5: French Dice Cards - Colour-Number | C5: EA | D5: 1 | E5: 80.85 | F5: =D5*E5 -> 80.85
A6: HC1422688 | B6: Mr. Face | C6: EA | D6: 1 | E6: 210 | F6: =D6*E6 -> 210
A7: KS1 French
A8: HC336628 | B8: Key Stage 1 French Treasure Chest | C8: EA | D8: 1 | E8: 1775.55 | F8: 1775.55
A9: KS2 French
A10: HC1002127 | B10: French Dictionary for Beginners | C10: EA | D10: 3 | E10: 80.85 | F10: 242.55
A11: HC1537067 | B11: French To the Shops Game | C11: EA | D11: 1 | E11: 117.08 | F11: 117.08
A12: HC1436617 | B12: French Number Beanbags | C12: P20 | D12: 1 | E12: 161.18 | F12: 161.18
A13: EYFS Spanish
A14: HC1002295 | B14: Make a Face Puppets - Spanish | C14: EA | D14: 1 | E14: 249.9 | F14: 249.9
A15: HC1571231 | B15: Food Bag Spanish | C15: EA | D15: 1 | E15: 403.2 | F15: 403.2
A16: KS1 Spanish
A17: HC336797 | B17: Spanish Treasure Chest | C17: EA | D17: 1 | E17: 1775.55 | F17: 1775.55
A18: KS2 Spanish
A19: HC1361172 | B19: Animal Snap Spanish | C19: EA | D19: 1 | E19: 88.73 | F19: 88.73
A20: HC1002099 | B20: Spanish Dictionary for Beginners | C20: EA | D20: 1 | E20: 80.85 | F20: 80.85
A21: HC1537115 | B21: Spanish to the Shops Game | C21: EA | D21: 1 | E21: 120.75 | F21: 120.75
A22: HC1571231 | B22: Food Bag Spanish | C22: EA | D22: 1 | E22: 403.2 | F22: 403.2

Sheet Primary Science
F1: Basket Total | G1: =SUM(G3:G140) -> 90102.45
A2: Product Code | B2: Product Description | C2: Units of Measure | D2: Quantity | E2: Curriculum Area | F2: Unit Price | G2: Total Price
A3: Science
A4: HC1798425 | B4: Seasonal Change Mat | C4: 1 | D4: 1 | E4: Seasonal Changes | F4: 770.7 | G4: =D4*F4 -> 770.7
A5: HC193797 | B5: Weather Kit | C5: 1 | D5: 1 | E5: Seasonal Changes | F5: 1160.25 | G5: 1160.25
A6: HC1002915 | B6: Foldaway Flower | D6: 1 | E6: Plants | F6: 220.5 | G6: =D6*F6 -> 220.5
A7: E8R05674 | B7: See-Through Compost Containers | D7: 1 | E7: Plants | F7: 455.7 | G7: =D7*F7 -> 455.7
A8: CP00053351 | B8: Sunflower Seeds | C8: PK | D8: 5 | E8: Plants | F8: 105 | G8: =D8*F8 -> 525
A9: E8A63575 | B9: Plant Pots - 75mm | D9: 10 | E9: Plants | F9: 27.83 | G9: =D9*F9 -> 278.3
A10: CP00053350 | B10: Cress Seeds | C10: PK | D10: 5 | E10: Plants | F10: 120.75 | G10: =F10*D10 -> 603.75
A11: HC1545253 | B11: Parts of Plant and Tree Poster | D11: 1 | E11: Plants | F11: 96.6 | G11: 96.6
A12: E8R05980 | B12: Period of Gestation | D12: 1 | E12: Plants | F12: 1257.9 | G12: 1257.9
A13: HC1002916 | B13: Plant In A Pocket | D13: 1 | E13: Plants | F13: 274.58 | G13: 274.58
A14: E8A23989 | B14: Giant Flower Model | D14: 1 | E14: Plants | F14: 759.15 | G14: 759.15
A15: E8R05603 | B15: Seeds Pack | D15: 1 | E15: Plants | F15: 177.45 | G15: 177.45
A16: E8A39081 | B16: Organ Tunic | C16: 1 | D16: 1 | E16: Animals inc. Humans/Living Things and their Habitats | F16: 846.3 | G16: 846.3
A17: HC1675058 | B17: Table Top Digestive Mat | C17: 1 | D17: 1 | E17: Animals inc. Humans/Living Things and their Habitats | F17: 193.73 | G17: 193.73
A18: E8R08132 | B18: Mini Beasts Butterfly Life Cycle | D18: 1 | E18: Animals inc. Humans/Living Things and their Habitats | F18: 403.2 | G18: =F18*D18 -> 403.2
A19: E8R08133 | B19: Mini Beasts Frog Life Cycle | D19: 1 | E19: Animals inc. Humans/Living Things and their Habitats | F19: 403.2 | G19: =F19*D19 -> 403.2
A20: E8R03265 | B20: Human Torso Model 11 Parts | D20: 2 | E20: Animals inc. Humans/Living Things and their Habitats | F20: 540.75 | G20: =F20*D20 -> 1081.5
A21: E8H34974 | B21: 3D Pumping Heart | D21: 1 | E21: Animals inc. Humans/Living Things and their Habitats | F21: 120.75 | G21: =F21*D21 -> 120.75
A22: E8R06576 | B22: Dissection Value Bundle | D22: 2 | E22: Animals inc. Humans/Living Things and their Habitats | F22: 564.38 | G22: =F22*D22 -> 1128.76
A23: HC1302658 | B23: What's Inside Animals | D23: 1 | E23: Animals inc. Humans/Living Things and their Habitats | F23: 277.73 | G23: =D23*F23 -> 277.73
A24: HC1550190 | B24: Learning Resources Butterfly Magnetic Life Cycle | D24: 1 | E24: Animals inc. Humans/Living Things and their Habitats | F24: 161.18 | G24: 161.18
A25: CP00052311 | B25: Eatwell Guide Floor Mat Bundle | C25: EA | D25: 2 | E25: Animals inc. Humans/Living Things and their Habitats | F25: 185.33 | G25: =F25*D25 -> 370.66
A26: E8F60303 | B26: Dental Care Model | D26: 1 | E26: Animals inc. Humans/Living Things and their Habitats | F26: 242.03 | G26: 242.03
A27: HC190430 | B27: Bag of Bones | D27: 1 | E27: Animals inc. Humans/Living Things and their Habitats | F27: 794.85 | G27: 794.85
A28: HC1550192 | B28: Skeleton Foam Floor Puzzle | D28: 2 | E28: Animals inc. Humans/Living Things and their Habitats | F28: 322.88 | G28: 645.76
A29: E8R06633 | B29: Animal Cells Poster | D29: 1 | E29: Animals inc. Humans/Living Things and their Habitats | F29: 101.33 | G29: 101.33
A30: E8R07275 | B30: Cell Structures Poster | D30: 1 | E30: Animals inc. Humans/Living Things and their Habitats | F30: 88.2 | G30: 88.2
A31: HC1003023 | B31: Plastic Skeleton - Full Size | D31: 1 | E31: Animals inc. Humans/Living Things and their Habitats | F31: 2824.5 | G31: 2824.5
A32: E8A22869 | B32: Half Size Skeleton | D32: 1 | E32: Animals inc. Humans/Living Things and their Habitats | F32: 459.9 | G32: 459.9
A33: E8R02098 | B33: Human Skeleton With Stand | D33: 1 | E33: Animals inc. Humans/Living Things and their Habitats | F33: 2122.05 | G33: 2122.05
A34: HC1866996 | B34: Butterfly Lifecycle Sequencing Set by Hope Education | C34: 1 | D34: 1 | E34: Animals inc. Humans/Living Things and their Habitats | F34: 185.33 | G34: 185.33
A35: E8R08134 | B35: Insects And Spiders : Real Life Specimens | C35: 1 | D35: 1 | E35: Animals inc. Humans/Living Things and their Habitats | F35: 403.2 | G35: 403.2
A36: CP00050778 | B36: Nature Detective Set - 25 items | C36: 25 | D36: 1 | E36: Animals inc. Humans/Living Things and their Habitats | F36: 1936.73 | G36: 1936.73
A37: CP00050777 | B37: Plant and Bug Hunting Kit - 24 items | C37: 24 | D37: 1 | E37: Animals inc. Humans/Living Things and their Habitats | F37: 1855.88 | G37: 1855.88
A38: HC1003149 | B38: Magnetic Materials Testing Kit | D38: 5 | E38: Materials | F38: 282.45 | G38: 1412.25
A39: HC1003282 | B39: Characteristics of Materials Kit | D39: 2 | E39: Materials | F39: 403.2 | G39: 806.4
A40: E8H26266 | B40: Materials Collection Kit | D40: 5 | E40: Materials | F40: 176.93 | G40: =D40*F40 -> 884.65
A41: HC1002815 | B41: Dissolving and Changes Kit | C41: 1 | D41: 1 | E41: Materials | F41: 411.6 | G41: =F41*D41 -> 411.6
A42: HC103216 | B42: Investigating Textures Pack | C42: 1 | D42: 1 | E42: Materials | F42: 225.75 | G42: 225.75
A43: HC192471 | B43: Properties of Materials Science Kit | C43: 1 | D43: 1 | E43: Materials | F43: 1654.28 | G43: 1654.28
A44: E8A47193 | B44: Coloured Floating Ring Magnets - Pack of 5 | D44: 3 | E44: Forces | F44: 242.03 | G44: 726.09
A45: HC1002812 | B45: Forces and Energy Kit | D45: 1 | E45: Forces | F45: 1533.53 | G45: 1533.53
A46: CP00060618 | B46: Ramp Set | D46: 2 | E46: Forces | F46: 1371.83 | G46: 2743.66
A47: HC398769 | B47: The Ramp Surfaces Pack - Pack of 5 | D47: 2 | E47: Forces | F47: 403.2 | G47: 806.4
A48: HC1002892 | B48: Magnetic Attraction Kit | C48: 1 | D48: 1 | E48: Forces | F48: 175.88 | G48: 175.88
A49: HC1003318 | B49: Magnetic Wands - Pack of 6 | C49: 6 | D49: 1 | E49: Forces | F49: 80.85 | G49: 80.85
A50: E8R08109 | B50: Friction Feet - Pack of 5 Pack of five | C50: 5 | D50: 1 | E50: Forces | F50: 290.33 | G50: 290.33
A51: CP00050338 | B51: Iron Filings in a Bubble | C51: 1 | D51: 1 | E51: Forces | F51: 10.5 | G51: 10.5
A52: E8R09433 | B52: Simple Machines: Block and Tackle | C52: 1 | D52: 1 | E52: Forces | F52: 181.65 | G52: 181.65
A53: E8R09429 | B53: Simple Machines: Fulcrum Balance | C53: 1 | D53: 1 | E53: Forces | F53: 181.65 | G53: 181.65
A54: E8R09427 | B54: Simple Machines: Gear | C54: 1 | D54: 1 | E54: Forces | F54: 201.6 | G54: 201.6
A55: E8R09424 | B55: Simple Machines: Gear Train | C55: 1 | D55: 1 | E55: Forces | F55: 242.03 | G55: 242.03
A56: E8R09423 | B56: Simple Machines: Inclined Plane | C56: 1 | D56: 1 | E56: Forces | F56: 302.4 | G56: 302.4
A57: E8R09430 | B57: Simple Machines: Lever | C57: 1 | D57: 1 | E57: Forces | F57: 189.53 | G57: 189.53
A58: E8R09426 | B58: Simple Machines: Pendulum | C58: 1 | D58: 1 | E58: Forces | F58: 181.65 | G58: 181.65
A59: E8R09431 | B59: Simple Machines: Wheel and Axle | C59: 1 | D59: 1 | E59: Forces | F59: 181.65 | G59: 181.65
A60: HC192913 | B60: The Ramp™ Vehicle and Wheels Pack | C60: 1 | D60: 1 | E60: Forces | F60: 290.33 | G60: 290.33
A61: HC1810657 | B61: Sun Earth & Moon Orbitor Model with LED | D61: 1 | E61: Earth and Space | F61: 564.9 | G61: 564.9
A62: E8R09414 | B62: Solar System | D62: 1 | E62: Earth and Space | F62: 322.88 | G62: 322.88
A63: HC1003151 | B63: Giant Magnetic Solar System | D63: 1 | E63: Earth and Space | F63: 197.4 | G63: 197.4
A64: HC1003057 | B64: Basic Rock Set | D64: 3 | E64: Rocks | F64: 322.88 | G64: 968.64
A65: E8R05671 | B65: Class Fossil Pack | C65: 1 | D65: 1 | E65: Rocks | F65: 467.78 | G65: =F65*D65 -> 467.78
A66: CP051968 | B66: Key Stage 2 BeK Kit - 30 Students | C66: EA | D66: 1 | E66: Electricity | F66: 4898.78 | G66: 4898.78
A67: HC1003123 | B67: BEK Bulb Holder | C67: EA | D67: 20 | E67: Electricity | F67: 23.1 | G67: 462
A68: E8H30798 | B68: BEK Push Switch | D68: 20 | E68: Electricity | F68: 35.7 | G68: 714
A69: E8H30944 | B69: BEK Motor | D69: 20 | E69: Electricity | F69: 42.53 | G69: 850.6
A70: E8H30749 | B70: BEK Buzzer | D70: 20 | E70: Electricity | F70: 35.18 | G70: 703.6
A71: E8R07817 | B71: BEK Voltmeter | D71: 10 | E71: Electricity | F71: 132.83 | G71: 1328.3
A72: E8R07818 | B72: BEK Ammeter | D72: 10 | E72: Electricity | F72: 132.83 | G72: 1328.3
A73: E8R05627 | B73: BEK Red LED | D73: 20 | E73: Electricity | F73: 25.2 | G73: 504
A74: E8R05628 | B74: BEK Green LED | D74: 20 | E74: Electricity | F74: 25.2 | G74: 504
A75: E8A47314 | B75: Set of Metal Strips | D75: 3 | E75: Electricity | F75: 65.1 | G75: 195.3
A76: E8R07385 | B76: BEK White LED 30mA Max | D76: 20 | E76: Electricity | F76: 23.1 | G76: 462
A77: E8L19161 | B77: Metal Disc Set | D77: 3 | E77: Electricity | F77: 85.05 | G77: 255.15
A78: E8R07396 | B78: BEK Reed Switch. | D78: 10 | E78: Electricity | F78: 27.83 | G78: 278.3
A79: CP00053708 | B79: Bulbs - Round M.E.S. 2.5V 0.2A - Pack of 25 | D79: 20 | E79: Electricity | F79: 39.38 | G79: 787.6
A80: E8R06762 | B80: Stackable Leads - 250mm Black - Pack of 50 | D80: 4 | E80: Electricity | F80: 321.83 | G80: 1287.32
A81: E8R06763 | B81: Stackable Leads - 250mm Red - Pack of 50 | D81: 4 | E81: Electricity | F81: 322.88 | G81: 1291.52
A82: E8R01323 | B82: BEK Cell Holder | D82: 20 | E82: Electricity | F82: 23.1 | G82: 462
A83: E8R07069 | B83: Sound Investigation Kit | C83: 1 | D83: 1 | E83: Sound | F83: 1598.1 | G83: 1598.1
A84: E8R06173 | B84: Sound Level Meter | C84: 1 | D84: 1 | E84: Sound | F84: 774.9 | G84: 774.9
A85: EGMT14003 | B85: Boomwhackers - Pack of 25 | D85: 1 | E85: Sound | F85: 1097.25 | G85: 1097.25
A86: E8R09504 | B86: Rechargeable Rainbow Torches, brought to you by Hope Education | C86: 6 | D86: 5 | E86: Light | F86: 726.08 | G86: 3630.4
A87: HC192796 | B87: Light and Shadows Kit | C87: 1 | D87: 1 | E87: Light | F87: 443.63 | G87: 443.63
A88: HC1003072 | B88: Colour Mixing Glasses | C88: 1 | D88: 6 | E88: Light | F88: 60.38 | G88: 362.28
A89: E8R06817 | B89: Unbreakable Mirrors - 90mm x 65mm | C89: 10 | D89: 3 | E89: Light | F89: 52.5 | G89: 157.5
A90: E8R07806 | B90: RayZer Lightbox | D90: 1 | E90: Light | F90: 813.75 | G90: 813.75
A91: EGMT14011 | B91: Colour Paddles | D91: 3 | E91: Light | F91: 80.85 | G91: 242.55
A92: E8A45615 | B92: Clear Glass Prism - 35 x 25mm | D92: 12 | E92: Light | F92: 36.75 | G92: =F92*D92 -> 441
A93: E8R06342 | B93: Ray Optics Box | D93: 5 | E93: Light | F93: 101.85 | G93: 509.25
A94: E8L26955 | B94: Spare Slit Plates - Pack of 5 | D94: 5 | E94: Light | F94: 44.1 | G94: 220.5
A95: E8R07378 | B95: Periscope Kit | D95: 2 | E95: Light | F95: 217.35 | G95: 434.7
A96: CP00055519 | B96: Jumbo Magnifiers | D96: 3 | E96: Science Equipment | F96: 153.3 | G96: =D96*F96 -> 459.9
A97: CP00053924 | B97: Metal Sieve Set | D97: 6 | E97: Science Equipment | F97: 64.58 | G97: =F97*D97 -> 387.48
A98: CP00053172 | B98: Amber Glass Reagent Bottle250ml P10 | C98: PK | D98: 5 | E98: Science Equipment | F98: 336 | G98: 1680
A99: CP053402AB | B99: Initial Lab Thermometer 150mm P10 | C99: PK | D99: 5 | E99: Science Equipment | F99: 132.3 | G99: 661.5
A100: E8R06662 | B100: 150cm Tapes | D100: 10 | E100: Science Equipment | F100: 55.65 | G100: 556.5
A101: E8A55347 | B101: Bench Mats 230 x 230mm - Pack of 10 | D101: 3 | E101: Science Equipment | F101: 101.33 | G101: 303.99
A102: CP00052989 | B102: Plastic Bags Gripseal - 90 x 115mm - Pac | C102: PK | D102: 10 | E102: Science Equipment | F102: 13.65 | G102: =F102*D102 -> 136.5
A103: CP053402AC | B103: Initial Lab Thermometer 300mm P10 | C103: 3 | D103: 5 | E103: Science Equipment | F103: 133.88 | G103: 669.4
A104: E8A74068 | B104: Tape Measure - 20m | D104: 6 | E104: Science Equipment | F104: 91.88 | G104: 551.28
A105: CP00057357 | B105: Bolle Safety Spectacles Rush+ Small Clear | C105: EA | D105: 10 | E105: Science Equipment | F105: 61.95 | G105: 619.5
A106: HC1012648 | B106: Fastime 01 Stopwatch - Black | C106: 1 | D106: 18 | E106: Science Equipment | F106: 48.3 | G106: 869.4
A107: E8R07266 | B107: Disposable Pipettes - 1ml | D107: 2 | E107: Science Equipment | F107: 91.35 | G107: 182.7
A108: E8R06033 | B108: Magnifier Set | D108: 4 | E108: Science Equipment | F108: 347.03 | G108: 1388.12
A109: CP053484AB | B109: Simax® Glass Beaker Squat Form - Pack of 10 - 400ml | D109: 5 | E109: Science Equipment | F109: 124.95 | G109: 624.75
A110: CP053484AF | B110: Simax Glass Beaker Squat Form 100ml P10 | C110: PK | D110: 5 | E110: Science Equipment | F110: 90.3 | G110: 451.5
A111: CP053484AE | B111: Simax Glass Beaker Squat Form 1000ml P10 | C111: PK | D111: 5 | E111: Science Equipment | F111: 273.53 | G111: 1367.65
A112: CP00053763 | B112: Collecting Tray White - 350x250x20mm - Pack of 5 | D112: 20 | E112: Science Equipment | F112: 120.75 | G112: 2415
A113: HC1006771 | B113: Frame Quadrat | C113: EA | D113: 4 | E113: Science Equipment | F113: 122.85 | G113: 491.4
A114: CP00058487 | B114: Cylinders | D114: 5 | E114: Science Equipment | F114: 88.2 | G114: 441
A115: EAMT12101 | B115: 1 Minute Classroom Sand Timer | D115: 1 | E115: Science Equipment | F115: 84.53 | G115: 84.53
A116: EAMT10183 | B116: 3 Minute Classroom Sand Timer | D116: 1 | E116: Science Equipment | F116: 84.53 | G116: 84.53
A117: EAMT12102 | B117: 10 Minute Classroom Sand Timer | D117: 1 | E117: Science Equipment | F117: 84.53 | G117: 84.53
A118: HC1757797 | B118: Trundle Wheel with Counter | C118: EA | D118: 5 | E118: Science Equipment | F118: 161.18 | G118: 805.9
A119: E8H00277 | B119: HSE First Aid Kit | D119: 2 | E119: Science Equipment | F119: 172.73 | G119: 345.46
A120: E8R06318 | B120: 2AA Soft Touch Torch | D120: 12 | E120: Science Equipment | F120: 24.68 | G120: 296.16
A121: HC1694642 | B121: Classmates Rubber Bands 454g 152x6mm (Warning: May Contain Natural Rubber Latex) | D121: 1 | E121: Science Equipment | F121: 48.3 | G121: 48.3
A122: CP00060093 | B122: Steel Test Tube Holder - Accepts tubes up to 40mm diameter | C122: 10 | D122: 2 | E122: Lab Equipment | F122: 32.03 | G122: =F122*D122 -> 64.06
A123: CP00054271 | B123: Rubber Tubing 8mm Bore 2mm Wall - 1 Meter | D123: 30 | E123: Lab Equipment | F123: 15.23 | G123: 456.9
A124: HC1007124 | B124: Bunsen Burner Natural Gas | C124: EA | D124: 5 | E124: Lab Equipment | F124: 36.75 | G124: 183.75
A125: E8A64221 | B125: Iron Gauze 150mm - Pack of 10 | D125: 3 | E125: Lab Equipment | F125: 63.53 | G125: 190.59
A126: E8R06680 | B126: Philip Harris Matches | D126: 4 | E126: Lab Equipment | F126: 22.58 | G126: 90.32
A127: HC1007936 | B127: Triangular Flat Top Tripod Stand | C127: EA | D127: 5 | E127: Lab Equipment | F127: 48.3 | G127: 241.5
A128: E8A81930 | B128: Wood Splints - Pack of 1000 | D128: 1 | E128: Lab Equipment | F128: 38.33 | G128: 38.33
A129: E8R00163 | B129: Bench Mats 300 x 300mm - Pack of 10 | D129: 2 | E129: Lab Equipment | F129: 118.65 | G129: 237.3
A130: E8R04385 | B130: Azlon Glass Disposal Cardboard Bench Bin | D130: 2 | E130: Lab Equipment | F130: 345.45 | G130: 690.9
A131: E8R07296 | B131: Chemical Hazard Symbols Poster | D131: 1 | E131: Lab Equipment | F131: 103.43 | G131: 103.43
A132: E8R06890 | B132: Square Shape Weigh Boats - 100mL | D132: 1 | E132: Lab Equipment | F132: 181.13 | G132: 181.13
A133: E8R06648 | B133: Thermometer Stand | D133: 2 | E133: Lab Equipment | F133: 111.3 | G133: 222.6
A134: E8R03226 | B134: Eyewash Pod Station | D134: 2 | E134: Lab Equipment | F134: 172.73 | G134: 345.46
A135: E8R06131 | B135: Plastic Funnel - 90mm | D135: 20 | E135: Lab Equipment | F135: 11.03 | G135: 220.6
A136: E8H71715 | B136: Elementary Filter Papers 150mm - Pack of 100 | D136: 5 | E136: Lab Equipment | F136: 45.68 | G136: 228.4
A137: E8R07253 | B137: Polypropylene Beakers | D137: 5 | E137: Lab Equipment | F137: 147.53 | G137: 737.65
A138: E8A85558 | B138: Pyrex® Medium Wall Test Tube with Rim - 150mm -24mm | D138: 2 | E138: Lab Equipment | F138: 708.75 | G138: 1417.5
A139: HC914576 | B139: Sterile Eyewash Pods | D139: 2 | E139: Lab Equipment | F139: 84.53 | G139: 169.06
A140: E8R04649 | B140: Wire Drying Rack | D140: 2 | E140: Furniture | F140: 887.25 | G140: =D140*F140 -> 1774.5

Sheet Computing
F1: Basket Total | G1: =SUM(G3:G14) -> 33747.6
A2: Product Code | B2: Product Description | C2: Units of Measure | D2: Quantity | E2: Section | F2: Unit price | G2: Total Price
A3: Computing & I.C.T
A4: IRTP11411 | B4: Marvellous Mobiles from Hope Education Pack of six | C4: 6 | D4: 5 | E4: Computing & I.C.T | F4: 1251.08 | G4: =F4*D4 -> 6255.4
A5: HC1407724 | B5: Talking Tiles 80 Sec Pack Of 6 | C5: 6 | D5: 4 | F5: 443.63 | G5: 1774.52
A6: CP00053326 | B6: Talking Tins 40 Seconds | C6: EA | D6: 10 | F6: 76.65 | G6: 766.5
A7: HC1789767 | B7: Talking Products Photo Album Deluxe - 130 Minutes | C7: EA | D7: 5 | F7: 391.13 | G7: 1955.65
A8: CP00050030 | B8: EaRL V2 | C8: EA | D8: 18 | F8: 459.9 | G8: 8278.2
A9: HC1778406 | B9: EaRL Cross-curricular Pack from Hope Education | C9: Pack | D9: 1 | F9: 3756.9 | G9: 3756.9
A10: HC1814541 | B10: Wireless Headphones from Hope Education Pack 6 | C10: 6 | D10: 1 | F10: 1694.7 | G10: 1694.7
A11: HC1814420 | B11: Class Headphones from Hope Education | C11: P 3 | D11: 10 | F11: 516.6 | G11: 5166
A12: E8R08056 | B12: 5MP USB Visualiser from Hope Education | C12: 1 (Recommended to get 1 per class) | D12: 1 | F12: 1210.65 | G12: 1210.65
A13: IDMP11023 | B13: Portable PA System with 2 Wireless Mics | C13: 1 | D13: 1 | F13: 2420.78 | G13: 2420.78
A14: HC1437386 | B14: Talking Tins DryWipe Boards P10 | C14: 10 | D14: 2 | F14: 234.15 | G14: 468.3

Sheet Robotics
F1: Basket Total | G1: =SUM(G3:G17) -> 70818.32
A2: Product Code | B2: Product Description | C2: Units of Measure | D2: Quantity | E2: Section | F2: Unit price | G2: Total Price
A3: Computing & I.C.T
A4: HC1678200 | B4: Cubetto from Primo Toys | C4: 1 | D4: 15 | E4: EYFS/KS1 Robotics | F4: 1613.85 | G4: =F4*D4 -> 24207.75
A5: HC1758939 | B5: Cubetto Blue Ocean Adventure Map from Primo Toys | C5: 1 | D5: 15 | F5: 234.15 | G5: 3512.25
A6: HC1758931 | B6: Cubetto Logic Pack from Primo Toys | C6: 1 | D6: 15 | F6: 225.75 | G6: 3386.25
A7: CP00050030 | B7: EaRL V2 | C7: EA | D7: 18 | E7: EYFS/KS1/KS2 Robotics | F7: 459.9 | G7: =F7*D7 -> 8278.2
A8: HC1778406 | B8: EaRL Cross-curricular Pack from Hope Education | C8: Pack (Also in Computing) | D8: 1 | F8: 3756.9 | G8: =F8*D8 -> 3756.9
A9: HC1776106 | B9: EaRL Sequencing Cards from Hope Education | C9: 1 | D9: 1 | F9: 216.3 | G9: =F9*D9 -> 216.3
A10: HC1829387 | B10: EaRL 100 square mat | C10: 1 | D10: 1 | F10: 690.9 | G10: 690.9
A11: HC1767590 | B11: EaRL 3D Shapes Mat from Hope Education | C11: 1 | D11: 1 | F11: 207.38 | G11: 207.38
A12: HC1828221 | B12: EaRL Double Sided Science Mat from Hope Education | C12: 1 | D12: 1 | F12: 207.38 | G12: 207.38
A13: HC1828225 | B13: EaRL double sided maths mat from Hope Education | C13: 1 | D13: 1 | F13: 207.38 | G13: 207.38
A14: HC1829466 | B14: EaRL Jigsaw Road mat from Hope Education | C14: 1 | D14: 1 | F14: 285.08 | G14: 285.08
A15: HC1798427 | B15: EaRL Number Line from Hope Education | C15: 1 | D15: 1 | F15: 216.3 | G15: 216.3
A16: HC1825297 | B16: EaRL Plastic Pocket Mat from Hope Education | C16: 1 | D16: 1 | F16: 225.75 | G16: 225.75
A17: CP00059776 | B17: Sphero Bolt+ | C17: 1 | D17: 15 | E17: KS1/KS2 Robotics | F17: 1694.7 | G17: =F17*D17 -> 25420.5

Sheet Whole School Games
E1: Basket Total | F1: =SUM(F3:F14) -> 6101.09
A2: Product Code | B2: Product Description | C2: Units of Measure | D2: Quantity | E2: Unit Price | F2: Total Price
A3: CP Yr 1 to 6
A4: HC1003695 | B4: Jumbo Dominoes | C4: 1 | D4: 1 | E4: 193.73 | F4: =E4*D4 -> 193.73
A5: HC1674294 | B5: Chess Board Game | C5: 1 | D5: 10 | E5: 88.73 | F5: 887.3
A6: HC1550184 | B6: Jumbo Eyedroppers | C6: 6 | D6: 1 | E6: 105 | F6: 105
A7: HC1808606 | B7: Rainbow Tongs | C7: 6 | D7: 1 | E7: 80.85 | F7: 80.85
A8: HC342842 | B8: Easy Grip Tweezers PK12 | C8: 12 | D8: 1 | E8: 105 | F8: 105
A9: HC1004107 | B9: Junior Scrabble | C9: 1 | D9: 1 | E9: 201.6 | F9: 201.6
A10: HC1001668 | B10: Games Compendium | C10: 1 | D10: 2 | E10: 258.3 | F10: 516.6
A11: HC115771 | B11: Problem Solving Games - Pack of 4 | C11: 4 | D11: 1 | E11: 645.23 | F11: 645.23
A12: CP00053357 | B12: Playground Games Book | C12: EA | D12: 1 | E12: 32.55 | F12: 32.55
A13: IPEP09890 | B13: Pick & Play - Blast - Assorted | C13: Assorted | D13: 1 | E13: 3228.23 | F13: 3228.23
A14: HC342842 | B14: Easy Grip Tweezers PK12 | C14: 12 | D14: 1 | E14: 105 | F14: 105

Sheet Design Technology
F1: Basket Total | G1: =SUM(G3:G67) -> 86359.95
A2: Product Code | B2: Product Description | C2: Units of Measure | D2: Quantity | E2: Section | F2: Unit Price | G2: Total Price
A3: Design & Technology (Junior)
A4: HC1496660 | B4: Cork Tops | C4: 50 | D4: 10 | E4: Design & Technology | F4: 56.18 | G4: =F4*D4 -> 561.8
A5: HC880133 | B5: Dowel - 4mm | C5: 100 | D5: 50 | F5: 72.45 | G5: =F5*D5 -> 3622.5
A6: HC262086 | B6: Square Strip Balsa Pack | C6: 1 | D6: 10 | F6: 314.48 | G6: 3144.8
A7: HC48493510 | B7: Resource Pack For Workstations | C7: 1 | D7: 3 | F7: 2493.75 | G7: 7481.25
A8: HC304856 | B8: Bench Hook - Small | C8: 10 | D8: 2 | F8: 266.18 | G8: 532.36
A9: HC1828964 | B9: Specialist Crafts Cutting Mats - A3 (450 x 300mm) | C9: EA | D9: 20 | F9: 75.08 | G9: 1501.6
A10: HC153471 | B10: Aluminium Mesh Fine | C10: 1 | D10: 10 | F10: 138.6 | G10: 1386
A11: HC152600 | B11: Silver Aluminium Wire | C11: 1 | D11: 10 | F11: 172.73 | G11: 1727.3
A12: HC1522450 | B12: Soft Modelling Wire | C12: 1 | D12: 10 | F12: 155.93 | G12: 1559.3
A13: HC205484 | B13: Paper Sticks 300mm Pack 100 | C13: 100 | D13: 5 | F13: 69.3 | G13: 346.5
A14: CP00052502 | B14: Classmates Textile Cones - Pack of 30 | C14: PK | D14: 5 | F14: 86.1 | G14: 430.5
A15: HC176260 | B15: 1000 Plain Std Craft Sticks | C15: 1000 | D15: 10 | F15: 68.78 | G15: 687.8
A16: HC419789 | B16: 100 Plain Jumbo Craft Sticks | C16: 100 | D16: 10 | F16: 36.23 | G16: 362.3
A17: HC244211 | B17: 1000 Coloured Std Craft Sticks | C17: 1000 | D17: 10 | F17: 108.68 | G17: 1086.8
A18: HC410728 | B18: 100 Coloured Jumbo Craft Sticks | C18: 100 | D18: 10 | F18: 60.38 | G18: 603.8
A19: HC229521 | B19: Square Modelling Sticks 3X125mm Pk100 | C19: 100 | D19: 10 | F19: 72.45 | G19: 724.5
A20: HC229846 | B20: Cardboard Wheels - 40mm | C20: 100 | D20: 3 | F20: 40.43 | G20: 121.29
A21: HC229859 | B21: Cardboard Wheels - 50mm | C21: 100 | D21: 3 | F21: 48.3 | G21: 144.9
A22: HC229859 | B22: Cardboard Wheels - 50mm | C22: 100 | D22: 3 | F22: 48.3 | G22: 144.9
A23: HC1559533 | B23: Class Pulleys Pack | C23: 1 | D23: 10 | F23: 403.2 | G23: 4032
A24: HC357870 | B24: Corner Piece Joints | C24: 500 | D24: 10 | F24: 96.6 | G24: 966
A25: HC176221 | B25: 2000 Coloured Matchsticks | C25: 2000 | D25: 4 | F25: 43.58 | G25: 174.32
A26: HC176169 | B26: 2000 Plain Matchsticks | C26: 2000 | D26: 4 | F26: 43.58 | G26: 174.32
A27: HC357844 | B27: Clothes Pegs | C27: 36 | D27: 20 | F27: 43.58 | G27: 871.6
A28: HC1559569 | B28: Junior Hacksaw Bumper Pack | C28: 20 | D28: 2 | F28: 443.63 | G28: 887.26
A29: HC1559573 | B29: Mini Claw Hammer Metal Handle | C29: 1 | D29: 20 | F29: 108.68 | G29: 2173.6
A30: HC1509301 | B30: Sandpaper 225X275mm Pk15 | C30: 15 | D30: 10 | F30: 40.43 | G30: 404.3
A31: HC304856 | B31: Bench Hook - Small | C31: 10 | D31: 3 | F31: 266.18 | G31: 798.54
A32: HC230522 | B32: G Clamps 2 Sets Of 3 Clamps | C32: 6 | D32: 5 | F32: 145.43 | G32: 727.15
A33: HC1559579 | B33: Twist Drill Set | C33: 1 | D33: 10 | F33: 117.08 | G33: 1170.8
A34: HC205614 | B34: Rapesco 25 Single Hole Punch | C34: 1 | D34: 4 | F34: 40.43 | G34: 161.72
A35: HC215923 | B35: Artstraws White Jumbo X 900 | C35: 900 | D35: 2 | F35: 172.73 | G35: 345.46
A36: HC215910 | B36: Artstraws White Standard 1800 Straws | C36: 1800 | D36: 2 | F36: 189 | G36: 378
A37: HC1694648 | B37: Rubber Bands Asst 454g | C37: 1 | D37: 2 | F37: 48.3 | G37: 96.6
A38: HC1761535 | B38: 3n1 Amusement Park Building Set | C38: 1 | D38: 1 | F38: 540.75 | G38: 540.75
A39: Food Technology
A40: HC1583083 | B40: Kenwood Food Mixer | C40: 1 | D40: 4 | E40: Food Technology | F40: 2244.9 | G40: =F40*D40 -> 8979.6
A41: HC1685804 | B41: Russell Hobbs Cordless Kettle | C41: 1 | D41: 4 | F41: 351.23 | G41: 1404.92
A42: CP00058310 | B42: Digital Weighing Scales | C42: 1 | D42: 10 | F42: 161.18 | G42: 1611.8
A43: CP00051233 | B43: Mechanical Scales Blue | C43: EA | D43: 3 | F43: 88.73 | G43: 266.19
A44: HC1564043 | B44: Gaint Baking Kit | C44: 1 | D44: 5 | F44: 2420.78 | G44: 12103.9
A45: HC432711 | B45: Aluminium Baking Sheet | C45: 1 | D45: 6 | F45: 100.8 | G45: 604.8
A46: HC73261 | B46: Nonstick Baking Sheet304x300mm | C46: 1 | D46: 10 | F46: 80.85 | G46: 808.5
A47: HC73443 | B47: Non-stick Loaf Tin 0.9kg | C47: 1 | D47: 10 | F47: 64.58 | G47: 645.8
A48: HC282054 | B48: Non-stick Bun Muffin 255x265mm | C48: 1 | D48: 10 | F48: 96.6 | G48: 966
A49: HC73781 | B49: Wire Cooling Tray 430x270mm | C49: 1 | D49: 10 | F49: 64.58 | G49: 645.8
A50: HC282041 | B50: Non Stick Sandwich Tin Plain | C50: 1 | D50: 10 | F50: 52.5 | G50: 525
A51: HC289672 | B51: Citrus Juice Extractor | C51: 1 | D51: 5 | F51: 52.5 | G51: 262.5
A52: HC72468 | B52: Plastic Strainer 150 Mm | C52: 1 | D52: 10 | F52: 45.15 | G52: 451.5
A53: HC72468 | B53: Plastic Strainer 150 Mm | C53: 1 | D53: 10 | F53: 45.15 | G53: 451.5
A54: HC72377 | B54: Wooden Spoon 254mm | C54: 1 | D54: 20 | F54: 9.45 | G54: 189
A55: HC276789 | B55: Garlic Press | C55: 1 | D55: 5 | F55: 60.38 | G55: 301.9
A56: HC276802 | B56: Hand Operated Can Opener | C56: 1 | D56: 5 | F56: 69.3 | G56: 346.5
A57: HC1299168 | B57: Y-shape Potato Peeler | C57: 1 | D57: 24 | F57: 36.23 | G57: 869.52
A58: HC1211680 | B58: Oven Gloves | C58: 1 | D58: 10 | F58: 56.18 | G58: 561.8
A59: HC282119 | B59: Dredger-shaker Small Hole | C59: 1 | D59: 10 | F59: 63.53 | G59: 635.3
A60: HC282184 | B60: Box Grater | C60: 1 | D60: 10 | F60: 60.38 | G60: 603.8
A61: HC258862 | B61: Non Stick Kitchen Tools Slice | C61: 1 | D61: 10 | F61: 30.45 | G61: 304.5
A62: HC258888 | B62: Non Stick Kitchen Tools Slotted Spoon | C62: 1 | D62: 10 | F62: 30.45 | G62: 304.5
A63: HC64967 | B63: Palette Knife 203mm | C63: 1 | D63: 10 | F63: 122.85 | G63: 1228.5
A64: HC65422 | B64: Cooks Knife 152mm Green Handle | C64: 1 | D64: 20 | F64: 123.38 | G64: 2467.6
A65: HC1574520 | B65: 45cm Cling Film Refil 300m | C65: 3 | D65: 4 | F65: 330.75 | G65: 1323
A66: HC1452075 | B66: Woodwork Apron Child 55x70cm | C66: 1 | D66: 20 | F66: 198.45 | G66: 3969
A67: HC1452076 | B67: Woodwork Apron Youth 58x75cm | C67: 1 | D67: 20 | F67: 172.73 | G67: 3454.6

Sheet Art
F1: Basket Total | G1: =SUM(G3:G91) -> 92085.08
A2: Product Code | B2: Product Description | C2: Units of Measure | D2: Quantity | E2: Section | F2: Unit Price | G2: Total Price
A3: ART
A4: HC1794249 | B4: Nylon Smocks - Small | C4: EA | D4: 30 | E4: ART | F4: 42.53 | G4: =F4*D4 -> 1275.9
A5: HC1794251 | B5: Nylon Smocks - Medium | C5: EA | D5: 30 | F5: 42.53 | G5: =F5*D5 -> 1275.9
A6: HC157332 | B6: Hog Hair Round Classpack of 200 | C6: 200 | D6: 5 | F6: 500.85 | G6: 2504.25
A7: HC136025 | B7: White Sable Brush Assortment Pk50 | C7: 50 | D7: 2 | F7: 185.33 | G7: 370.66
A8: HC1828864 | B8: Specialist Crafts Charcoal Budget Pack | C8: 1 | D8: 1 | F8: 35.18 | G8: 35.18
A9: HC222150 | B9: Air Hardening Clay Stone 12.5Kg | C9: 1 | D9: 6 | F9: 84.53 | G9: 507.18
A10: HC252843 | B10: Classmates Plastic Crayons Pack 24 | C10: 24 | D10: 10 | F10: 18.38 | G10: 183.8
A11: HC215091 | B11: Sequins Mixed Pack 450g | C11: 1 | D11: 5 | F11: 233.1 | G11: 1165.5
A12: HC176104 | B12: Acrylic Gemstones 500g | C12: 1 | D12: 5 | F12: 112.88 | G12: 564.4
A13: HC1564002 | B13: Mixed Petal Sequins 100g Tub | C13: 1 | D13: 20 | F13: 78.23 | G13: 1564.6
A14: HC1317556 | B14: Bumper Pack Of Pom-Poms x1000 | C14: 1000 | D14: 10 | F14: 105 | G14: 1050
A15: HC223944 | B15: Craft Pipe Cleaners 150mm P1000 | C15: 1000 | D15: 10 | F15: 120.75 | G15: 1207.5
A16: HC176260 | B16: 1000 Plain Std Craft Sticks | C16: 1000 | D16: 20 | F16: 68.78 | G16: 1375.6
A17: HC419789 | B17: 100 Plain Jumbo Craft Sticks | C17: 100 | D17: 100 | F17: 36.23 | G17: 3623
A18: HC244211 | B18: 1000 Coloured Std Craft Sticks | C18: 1000 | D18: 20 | F18: 108.68 | G18: 2173.6
A19: HC410728 | B19: 100 Coloured Jumbo Craft Sticks | C19: 100 | D19: 100 | F19: 60.38 | G19: 6038
A20: HC176130 | B20: Wiggly Eyes Assorted Pk 1000 | C20: 1000 | D20: 10 | F20: 105 | G20: 1050
A21: HC177287 | B21: 6 X 1kg Glitter Class Pack | C21: 6 | D21: 9 | F21: 661.5 | G21: 5953.5
A22: HC1001256 | B22: Large Glitter Tubs 6 x 100g | C22: 6 | D22: 3 | F22: 112.88 | G22: 338.64
A23: HC1499754 | B23: Glitter Pony Beads | C23: 1800 | D23: 2 | F23: 112.88 | G23: 225.76
A24: HC1316948 | B24: Exotic Plastic Beads Pack 125g | C24: 1 | D24: 10 | F24: 78.23 | G24: 782.3
A25: HC226856 | B25: Bead Thonging 1mm Spool 50yds | C25: 1 | D25: 30 | F25: 147 | G25: 4410
A26: HC176039 | B26: Craft Buttons 454g | C26: 1 | D26: 4 | F26: 80.85 | G26: 323.4
A27: E8A77744 | B27: Disposable, Graduated, Pipettes - 3 x 0.5mL - 155mm | C27: 500 | D27: 1 | F27: 96.6 | G27: 96.6
A28: HC100639 | B28: Pritt Stick 43gx200-8FreeStick | C28: 200 | D28: 1 | F28: 1613.85 | G28: 1613.85
A29: HC1708095 | B29: Classmates Blue Label Pva 5l | C29: 1 | D29: 16 | F29: 76.65 | G29: 1226.4
A30: HC1552913 | B30: Pattern Rollers Pack 12 | C30: 12 | D30: 3 | F30: 164.33 | G30: 492.99
A31: HC286370 | B31: Clay Modelling Tools | C31: 10 | D31: 5 | F31: 78.23 | G31: 391.15
A32: CP00058375 | B32: Classmates Textured Modelling Rolling Pins - Pack of 3 | C32: 3 | D32: 7 | F32: 91.35 | G32: 639.45
A33: HC152574 | B33: Clay Cutter | C33: 1 | D33: 4 | F33: 47.78 | G33: 191.12
A34: HC103841 | B34: Modelling Board | C34: 1 | D34: 40 | F34: 48.3 | G34: 1932
A35: CP00056533 | B35: Modroc Individual Rolls - Pack of 30 | C35: 30 | D35: 4 | F35: 311.33 | G35: 1245.32
A36: HC1828722 | B36: Watercolour 36 Tablet Set | C36: EA | D36: 10 | F36: 42.53 | G36: 425.3
A37: CP00056677 | B37: Classmate Readymix 600ml Assorted pk20 | C37: 20 | D37: 4 | F37: 181.65 | G37: 726.6
A38: HC294079 | B38: Classmate Ready Mix Brilliant Yellow 5L | C38: 1 | D38: 4 | F38: 61.95 | G38: 247.8
A39: HC294053 | B39: Classmate Ready Mix Brilliant Red 5L | C39: 1 | D39: 4 | F39: 61.95 | G39: 247.8
A40: HC136376 | B40: 6 Well Palettes P24 | C40: 24 | D40: 3 | F40: 183.75 | G40: 551.25
A41: HC381361 | B41: Colour Mixing Trays 250x200mm P10 | C41: 10 | D41: 3 | F41: 171.68 | G41: 515.04
A42: HC381387 | B42: 10 Well Palettes P12 | C42: 12 | D42: 3 | F42: 129.68 | G42: 389.04
A43: HC1470786 | B43: Remnant Paper Pack | C43: 3000 | D43: 5 | F43: 423.68 | G43: 2118.4
A44: HC101315 | B44: Kolourfast Assorted Tissue Paper Pk480 | C44: 480 | D44: 3 | F44: 181.65 | G44: 544.95
A45: HC155096 | B45: Cellophane Assorted Rolls 508 x 4500mm - Pack of 6 | C45: 6 | D45: 20 | F45: 96.6 | G45: 1932
A46: HC375732 | B46: CM Recycled Black Card Pk A4 | C46: 100 | D46: 10 | F46: 84.53 | G46: 845.3
A47: HC155213 | B47: CM Recycled Black Card Pk A3 | C47: 100 | D47: 10 | F47: 137.03 | G47: =F47*D47 -> 1370.3
A48: CP00057054 | B48: Classmates A4 Tracing Paper Pad - 90gsm, 30 Sheets - Pack of 4 | C48: 120 | D48: 21 | F48: 68.78 | G48: 1444.38
A49: HC154030 | B49: Standard Cartridge Paper A4 100gsm Ream | C49: 500 | D49: 10 | F49: 129.15 | G49: 1291.5
A50: HC201467 | B50: Std Cartridge Paper A3 100gsm | C50: 500 | D50: 10 | F50: 205.8 | G50: 2058
A51: HC475819 | B51: Tissue Paper Tower Square | C51: 4600 | D51: 10 | F51: 112.88 | G51: 1128.8
A52: HC475832 | B52: Tissue Paper Tower Circle | C52: 4600 | D52: 10 | F52: 105 | G52: 1050
A53: HC1676675 | B53: Classmates Border Rolls P10 | C53: 10 | D53: 2 | F53: 201.6 | G53: 403.2
A54: HC1202859 | B54: CM Poster Paper Roll Asst 1 P10 | C54: 10 | D54: 3 | F54: 330.75 | G54: 992.25
A55: HC213674 | B55: Lyra Ferby Tri Col Pencils PK96 | C55: 96 | D55: 2 | F55: 420.53 | G55: 841.06
A56: HC1691854 | B56: Classmates Assorted Pencils - Pack of 288 | C56: 288 | D56: 2 | F56: 193.73 | G56: 387.46
A57: HC1774064 | B57: Berol Colour Broad Classpack 288 | C57: 288 | D57: 1 | F57: 548.63 | G57: 548.63
A58: HC1774070 | B58: Berol Colour Fine Classpack 288 | C58: 288 | D58: 1 | F58: 548.63 | G58: 548.63
A59: CP00058374 | B59: Classmates Extra Safe Non Spill Pots Pack 6 | C59: 6 | D59: 20 | F59: 99.23 | G59: 1984.6
A60: HC48514128 | B60: Mobile Paint Dryer | C60: 1 | D60: 2 | F60: 1573.43 | G60: 3146.86
A61: HC1815185 | B61: School Scissor Set P32 inc Box | C61: 32 | D61: 1 | F61: 145.43 | G61: 145.43
A62: HC295314 | B62: Crazy Cut Scissors Pack 6 | C62: 6 | D62: 8 | F62: 86.1 | G62: 688.8
A63: HC1815177 | B63: Classmates Office Scissors | C63: 12 | D63: 3 | F63: 105 | G63: 315
A64: E8R03124 | B64: Classmates All Purpose Scissors - Right Handed | C64: 1 | D64: 6 | F64: 52.5 | G64: 315
A65: HC180992 | B65: 200 Plastic Head Pins 34mm | C65: 200 | D65: 4 | F65: 34.65 | G65: 138.6
A66: HC180953 | B66: Hand Sewing Needles PK50x5 | C66: 250 | D66: 1 | F66: 60.38 | G66: 60.38
A67: HC1319641 | B67: Assorted Polyester Thread | C67: 20 | D67: 2 | F67: 131.25 | G67: 262.5
A68: HC267832 | B68: Childs Plastic Weaving Needles | C68: 25 | D68: 3 | F68: 60.38 | G68: 181.14
A69: HC1563984 | B69: Embroidery Thread 10 X 82m | C69: 10 | D69: 3 | F69: 315.53 | G69: 946.59
A70: HC181369 | B70: Assorted Binca Squares | C70: 50 | D70: 5 | F70: 246.23 | G70: 1231.15
A71: HC1499319 | B71: Double Knit | C71: 10 | D71: 6 | F71: 190.58 | G71: 1143.48
A72: HC181226 | B72: Chunky Knit Yarn 10x100g | C72: 10 | D72: 2 | F72: 212.1 | G72: 424.2
A73: HC401576 | B73: Table Cover 1x1.5m | C73: 1 | D73: 8 | F73: 40.43 | G73: 323.44
A74: HC225517 | B74: C M Masking Tape 24mmx50mx9 | C74: 9 | D74: 6 | F74: 100.8 | G74: 604.8
A75: HC346651 | B75: Classmates Plastic Modelling Tools - Pack of 14 | C75: 14 | D75: 4 | F75: 25.73 | G75: 102.92
A76: HC152626 | B76: 3d Modelling Kit | C76: 1 | D76: 4 | F76: 311.33 | G76: 1245.32
A77: HC133945 | B77: Chubbi Stumps Classpack 288 | C77: 288 | D77: 1 | F77: 185.33 | G77: 185.33
A78: HC396532 | B78: Paint Scrapers | C78: 4 | D78: 2 | F78: 56.18 | G78: 112.36
A79: CP00058380 | B79: Patterned Rollers | C79: 5 | D79: 2 | F79: 95.03 | G79: 190.06
A80: HC404319 | B80: Sharpie MetallicPerm Marker P3 | C80: 3 | D80: 12 | F80: 49.88 | G80: 598.56
A81: HC1528668 | B81: Lino Ink Roller 102mm | C81: 1 | D81: 30 | F81: 45.15 | G81: 1354.5
A82: HC152041 | B82: A4 Easy Print Sheets Pack 50 | C82: 50 | D82: 3 | F82: 337.05 | G82: 1011.15
A83: HC1528664 | B83: Lino Tool Set Pack 5 | C83: 1 | D83: 30 | F83: 52.5 | G83: 1575
A84: HC181499 | B84: Padded Felt Bugs Kit | C84: 30 | D84: 2 | F84: 276.68 | G84: 553.36
A85: HC152366 | B85: Animal Puppets | C85: 30 | D85: 4 | F85: 276.68 | G85: 1106.72
A86: CP00051607 | B86: Classmates Felt Squares - 225mm - Pack of 100 | C86: 100 | D86: 3 | F86: 193.73 | G86: 581.19
A87: HC1772833 | B87: Electric Wax Melting Pot 300ml | C87: 1 | D87: 2 | F87: 1036.35 | G87: 2072.7
A88: HC1772835 | B88: Paraffin Wax Pellets 2kg | C88: 1 | D88: 3 | F88: 164.33 | G88: 492.99
A89: HC180030 | B89: White Cotton 10m Roll 152cm Wide | C89: 1 | D89: 5 | F89: 345.45 | G89: 1727.25
A90: HC1563928 | B90: Scola Fabric Paints Standard 300ml P6 | C90: 6 | D90: 2 | F90: 172.73 | G90: 345.46
A91: HC1202066 | B91: Marbling Ink Ass Std Cols 6x25ml Bottles | C91: 6 | D91: 5 | F91: 96.6 | G91: 483

Sheet Sport
E1: Basket Total | F1: =SUM(F3:F84) -> 188154.82
A2: Product Code | B2: Product Description | C2: Units of Measure | D2: Quantity | E2: Unit Price | F2: Total Price
A3: SPORT
A4: IAAD79463 | B4: Eveque Pacesetter1/2m Hurdle Pack | D4: 1 | E4: =VLOOKUP(A4,[1]Sheet1!$A:$F,6,FALSE) -> 1613.85 | F4: =E4*D4 -> 1613.85
A5: ITNP08644 | B5: Zsig® 19in Tennis Racquet | D5: 20 | E5: =VLOOKUP(A5,[1]Sheet1!$A:$F,6,FALSE) -> 129.15 | F5: 2583
A6: CP058303AB | B6: Mitre Pro Training Bib - Green - Small Senior (M-L) | C6: EA | D6: 15 | E6: =VLOOKUP(A6,[1]Sheet1!$A:$F,6,FALSE) -> 32.03 | F6: 480.45
A7: IHKP11570 | B7: Large Dimple Balls Pack Of 4 | C7: P 4 | D7: 7 | E7: =VLOOKUP(A7,[1]Sheet1!$A:$F,6,FALSE) -> 105 | F7: 735
A8: IRGH05457 | B8: Agility Ladder - 4m | D8: 2 | E8: =VLOOKUP(A8,[1]Sheet1!$A:$F,6,FALSE) -> 137.03 | F8: 274.06
A9: IBDP07985 | B9: Slazenger™ Orange Stage Mini Tennis Balls - Pack of 60 | D9: 1 | E9: =VLOOKUP(A9,[1]Sheet1!$A:$F,6,FALSE) -> 605.33 | F9: 605.33
A10: IFBP01212 | B10: Samba Aluminium Folding Goal - 5 x 3ft | D10: 6 | E10: =VLOOKUP(A10,[1]Sheet1!$A:$F,6,FALSE) -> 1694.7 | F10: 10168.2
A11: ITNP08628 | B11: Zsig SLOcoach Big Red Stage Tennis Balls Pack of 48 | D11: 1 | E11: =VLOOKUP(A11,[1]Sheet1!$A:$F,6,FALSE) -> 564.9 | F11: 564.9
A12: ITNP08630 | B12: Zsig SLOcoach Big Orange Stage Tennis Balls Pack of 48 | D12: 1 | E12: =VLOOKUP(A12,[1]Sheet1!$A:$F,6,FALSE) -> 564.9 | F12: 564.9
A13: INBL78657 | B13: High Fives Bib Set - Blue - 8-14 Years - Pack of 8 | D13: 1 | E13: =VLOOKUP(A13,[1]Sheet1!$A:$F,6,FALSE) -> 225.75 | F13: 225.75
A14: IAAP08110 | B14: Vinex Junior Plastic Relay Batons Pack of 6 - 32mm | D14: 1 | E14: =VLOOKUP(A14,[1]Sheet1!$A:$F,6,FALSE) -> 56.18 | F14: 56.18
A15: IBBP00013 | B15: Floor Basketball | D15: 2 | E15: =VLOOKUP(A15,[1]Sheet1!$A:$F,6,FALSE) -> 322.88 | F15: 645.76
A16: CP00056791 | B16: Findel Everyday Number Spot Floor Markers - 1-100 | D16: 1 | E16: =VLOOKUP(A16,[1]Sheet1!$A:$F,6,FALSE) -> 564.9 | F16: 564.9
A17: IHKP07927 | B17: Junior Hockey Set | D17: 2 | E17: =VLOOKUP(A17,[1]Sheet1!$A:$F,6,FALSE) -> 766.5 | F17: 1533
A18: HC1216362 | B18: Slazenger Airball Junior - Pink | C18: EA | D18: 24 | E18: =VLOOKUP(A18,[1]Sheet1!$A:$F,6,FALSE) -> 24.68 | F18: 592.32
A19: IRGP07827 | B19: Centurion Junior Tackle Bag - Yellow | D19: 4 | E19: =VLOOKUP(A19,[1]Sheet1!$A:$F,6,FALSE) -> 928.2 | F19: 3712.8
A20: IPEL02124 | B20: Playground Balls 165mm - Pack of 12 | D20: 1 | E20: =VLOOKUP(A20,[1]Sheet1!$A:$F,6,FALSE) -> 322.88 | F20: 322.88
A21: EGMT14502 | B21: Airfoam Flyers - Pack of 6 | D21: 2 | E21: =VLOOKUP(A21,[1]Sheet1!$A:$F,6,FALSE) -> 120.75 | F21: 241.5
A22: IAAD77880 | B22: Harrod Regulation Glassfibre Lath 1.8kg | D22: 1 | E22: =VLOOKUP(A22,[1]Sheet1!$A:$F,6,FALSE) -> 1210.65 | F22: 1210.65
A23: IGYP04331 | B23: Activ Balance Bench Wood 2m Assorted | D23: 1 | E23: =VLOOKUP(A23,[1]Sheet1!$A:$F,6,FALSE) -> 8070.3 | F23: 8070.3
A24: ITRP11241G | B24: Plain Mesh Training Bib Age 15+ years Red | C24: EA | D24: 10 | E24: =VLOOKUP(A24,[1]Sheet1!$A:$F,6,FALSE) -> 24.15 | F24: 241.5
A25: CP057949 | B25: SHOSHIN Tag Rugby Belts | D25: 2 | E25: =VLOOKUP(A25,[1]Sheet1!$A:$F,6,FALSE) -> 564.9 | F25: 1129.8
A26: IFBP06975 | B26: Precision Pro Boundary Poles | D26: 2 | E26: =VLOOKUP(A26,[1]Sheet1!$A:$F,6,FALSE) -> 403.2 | F26: 806.4
A27: CP058306AE | B27: Mitre Netball Bib - 6-14 Years - Pack of 7 - Yellow | D27: 1 | E27: =VLOOKUP(A27,[1]Sheet1!$A:$F,6,FALSE) -> 322.88 | F27: 322.88
A28: ISSP04901 | B28: Compact Sports First Aid Kit | D28: 10 | E28: =VLOOKUP(A28,[1]Sheet1!$A:$F,6,FALSE) -> 133.35 | F28: 1333.5
A29: CP058305AA | B29: Mitre Netball Bib Youth Up to 38in - Red Pack of 7 | D29: 1 | E29: =VLOOKUP(A29,[1]Sheet1!$A:$F,6,FALSE) -> 322.88 | F29: 322.88
A30: IAAP08011 | B30: Eveque Primary Discus - 200g - Blue | D30: 1 | E30: =VLOOKUP(A30,[1]Sheet1!$A:$F,6,FALSE) -> 145.43 | F30: 145.43
A31: IRGP07823 | B31: Centurion Junior Tag Rugby Kit - 0 | D31: 1 | E31: =VLOOKUP(A31,[1]Sheet1!$A:$F,6,FALSE) -> 403.2 | F31: 403.2
A32: HC1003773 | B32: Skipping Rope Pack | C32: P 4 | D32: 8 | E32: =VLOOKUP(A32,[1]Sheet1!$A:$F,6,FALSE) -> 56.18 | F32: 449.44
A33: HC1010689 | B33: Baden SX600 Basketball - Size 6 - Pink/Black | C33: EA | D33: 10 | E33: =VLOOKUP(A33,[1]Sheet1!$A:$F,6,FALSE) -> 120.75 | F33: 1207.5
A34: HC1011602 | B34: Gymnova Beginners Soft Springboard - Red | D34: 2 | E34: =VLOOKUP(A34,[1]Sheet1!$A:$F,6,FALSE) -> 4729.2 | F34: 9458.4
A35: IAAP08124 | B35: Vinex Open Reel Measuring Tape 30m | D35: 2 | E35: =VLOOKUP(A35,[1]Sheet1!$A:$F,6,FALSE) -> 112.88 | F35: 225.76
A36: IGYP07917 | B36: Beemat Gymnastic Incline Wedge - Sky | D36: 2 | E36: =VLOOKUP(A36,[1]Sheet1!$A:$F,6,FALSE) -> 1129.8 | F36: 2259.6
A37: IGYP07921 | B37: Beemat Handspring Roller Flip Block - Red/Yellow | D37: 1 | E37: =VLOOKUP(A37,[1]Sheet1!$A:$F,6,FALSE) -> 5164.95 | F37: 5164.95
A38: ICKD72213 | B38: Slazenger Wooden Spring Return Stump - 28ins-Mens | D38: 6 | E38: =VLOOKUP(A38,[1]Sheet1!$A:$F,6,FALSE) -> 363.3 | F38: 2179.8
A39: IPED76250 | B39: Coated Foam Ball 160mm - Blue | D39: 4 | E39: =VLOOKUP(A39,[1]Sheet1!$A:$F,6,FALSE) -> 80.85 | F39: 323.4
A40: HC1010691 | B40: Baden SX300 Basketball - Size 3 - Yellow/Black | C40: EA | D40: 10 | E40: =VLOOKUP(A40,[1]Sheet1!$A:$F,6,FALSE) -> 112.88 | F40: 1128.8
A41: IAAP06430 | B41: Eveque Bull Nosed Javelin - 78cm - Pack of 8 | D41: 1 | E41: =VLOOKUP(A41,[1]Sheet1!$A:$F,6,FALSE) -> 1412.25 | F41: 1412.25
A42: IHKD73436 | B42: Mini Hockey Ball | D42: 20 | E42: =VLOOKUP(A42,[1]Sheet1!$A:$F,6,FALSE) -> 24.15 | F42: 483
A43: IRGP07835 | B43: Centurion Junior Rucking Shield - Blue | D43: 4 | E43: =VLOOKUP(A43,[1]Sheet1!$A:$F,6,FALSE) -> 371.18 | F43: 1484.72
A44: IAAD74982 | B44: Harrod Junior Practice High Jump Stands 14.0kg | D44: 1 | E44: =VLOOKUP(A44,[1]Sheet1!$A:$F,6,FALSE) -> 1493.1 | F44: 1493.1
A45: IBBP10979 | B45: Zoft Touch Basketball | C45: EA | D45: 1 | E45: =VLOOKUP(A45,[1]Sheet1!$A:$F,6,FALSE) -> 64.58 | F45: 64.58
A46: ICKP06987 | B46: Slazenger™ Academy Plastic Stumps and Bails Set | D46: 6 | E46: =VLOOKUP(A46,[1]Sheet1!$A:$F,6,FALSE) -> 161.18 | F46: 967.08
A47: IGYP07925 | B47: Beemat Lightweight Foam Springboard | D47: 3 | E47: =VLOOKUP(A47,[1]Sheet1!$A:$F,6,FALSE) -> 1718.85 | F47: 5156.55
A48: IPEL16500 | B48: Jingle Frogs | D48: 4 | E48: =VLOOKUP(A48,[1]Sheet1!$A:$F,6,FALSE) -> 153.3 | F48: 613.2
A49: ICKP11412 | B49: Powerplay Tee | D49: 4 | E49: =VLOOKUP(A49,[1]Sheet1!$A:$F,6,FALSE) -> 282.45 | F49: =E49*D49 -> 1129.8
A50: ITRG21985 | B50: Fastime 7 Stopwatch - Grey | D50: 2 | E50: =VLOOKUP(A50,[1]Sheet1!$A:$F,6,FALSE) -> 282.45 | F50: 564.9
A51: IGYD97404 | B51: Vaulting Box Without Transport Gear - 1020mm | D51: 2 | E51: =VLOOKUP(A51,[1]Sheet1!$A:$F,6,FALSE) -> 8965.95 | F51: 17931.9
A52: IPEP10255 | B52: Ultrafoam Crawlgates | D52: 2 | E52: =VLOOKUP(A52,[1]Sheet1!$A:$F,6,FALSE) -> 1008.53 | F52: 2017.06
A53: IGYP07920 | B53: Beemat Gym Target Crash Mat | D53: 1 | E53: =VLOOKUP(A53,[1]Sheet1!$A:$F,6,FALSE) -> 3389.4 | F53: 3389.4
A54: ITNP08632 | B54: Zsig Link Mini Green Stage Tennis Balls Pack of 48 | D54: 1 | E54: =VLOOKUP(A54,[1]Sheet1!$A:$F,6,FALSE) -> 564.9 | F54: 564.9
A55: IAAP10733 | B55: Flexi Bar Lath | D55: 1 | E55: =VLOOKUP(A55,[1]Sheet1!$A:$F,6,FALSE) -> 120.75 | F55: 120.75
A56: ITRP11241D | B56: Plain Mesh Training Bib Age 15+ years - Green | C56: EA | D56: 10 | E56: =VLOOKUP(A56,[1]Sheet1!$A:$F,6,FALSE) -> 24.15 | F56: 241.5
A57: IAAG38298 | B57: High Jump Landing Area With Cutouts | D57: 1 | E57: =VLOOKUP(A57,[1]Sheet1!$A:$F,6,FALSE) -> 37123.28 | F57: 37123.28
A58: INBP09285 | B58: Sure Shot Transportable Netball Post | D58: 4 | E58: =VLOOKUP(A58,[1]Sheet1!$A:$F,6,FALSE) -> 1936.73 | F58: 7746.92
A59: IRDP08668 | B59: Aresson Introductory Rounders Pack | D59: 1 | E59: =VLOOKUP(A59,[1]Sheet1!$A:$F,6,FALSE) -> 1775.55 | F59: 1775.55
A60: IPED76249 | B60: Coated Foam Ball 160mm - Green | D60: 3 | E60: =VLOOKUP(A60,[1]Sheet1!$A:$F,6,FALSE) -> 80.85 | F60: 242.55
A61: IPEP00318 | B61: Beanbag Target Set | D61: 2 | E61: =VLOOKUP(A61,[1]Sheet1!$A:$F,6,FALSE) -> 424.2 | F61: 848.4
A62: ITNE62007 | B62: Zsignet Mini 3m Tennis Net | D62: 7 | E62: =VLOOKUP(A62,[1]Sheet1!$A:$F,6,FALSE) -> 806.93 | F62: 5648.51
A63: IGYP07922 | B63: Beemat 3 Section Foam Vaulting Box | D63: 1 | E63: =VLOOKUP(A63,[1]Sheet1!$A:$F,6,FALSE) -> 3873.45 | F63: 3873.45
A64: HC1666824 | B64: 1-20 Number Beanbags | D64: 1 | E64: =VLOOKUP(A64,[1]Sheet1!$A:$F,6,FALSE) -> 120.75 | F64: 120.75
A65: IPED76262 | B65: Coated Foam Ball 160mm - Yellow | D65: 4 | E65: =VLOOKUP(A65,[1]Sheet1!$A:$F,6,FALSE) -> 80.85 | F65: 323.4
A66: HC1828501 | B66: Sticky Monster Mitts - Pair | C66: PAA | D66: 12 | E66: =VLOOKUP(A66,[1]Sheet1!$A:$F,6,FALSE) -> 72.45 | F66: 869.4
A67: HC1497237 | B67: Rounders Starter Pack - Primary | D67: 1 | E67: =VLOOKUP(A67,[1]Sheet1!$A:$F,6,FALSE) -> 887.78 | F67: 887.78
A68: IAAP06432 | B68: Eveque Primary Discus Pack of 4 - Blue Green Red Yellow - 200g | D68: 2 | E68: =VLOOKUP(A68,[1]Sheet1!$A:$F,6,FALSE) -> 564.9 | F68: 1129.8
A69: IAAP06422 | B69: Eveque Competition Hurdle 50cm - Pack of 8 | D69: 1 | E69: =VLOOKUP(A69,[1]Sheet1!$A:$F,6,FALSE) -> 1694.7 | F69: 1694.7
A70: CP058305AA | B70: Mitre Pro Netball Bib - Red - Medium - Pack of 7 | D70: 1 | E70: =VLOOKUP(A70,[1]Sheet1!$A:$F,6,FALSE) -> 322.88 | F70: 322.88
A71: IPED76237 | B71: Coated Foam Ball 160mm - Red | D71: 4 | E71: =VLOOKUP(A71,[1]Sheet1!$A:$F,6,FALSE) -> 80.85 | F71: 323.4
A72: IAAP06431 | B72: Eveque Primary Shot - 4 Pack - Assorted Colours | D72: 2 | E72: =VLOOKUP(A72,[1]Sheet1!$A:$F,6,FALSE) -> 645.75 | F72: 1291.5
A73: HC1587662 | B73: Findel Everyday PVC Ring Assorted Pack of 12 | C73: 12 | D73: 2 | E73: =VLOOKUP(A73,[1]Sheet1!$A:$F,6,FALSE) -> 210 | F73: 420
A74: IGYP10983 | B74: Alignment Safety Mattresses - 6' x 4' x 4" (1.83m x 1.22m x 100mm) | D74: 4 | E74: =VLOOKUP(A74,[1]Sheet1!$A:$F,6,FALSE) -> 1452.68 | F74: 5810.72
A75: ITNP08643 | B75: Zsig 17in Tennis Raquet - 17in | D75: 20 | E75: =VLOOKUP(A75,[1]Sheet1!$A:$F,6,FALSE) -> 129.15 | F75: 2583
A76: IRGP08733 | B76: Precision Bib Carry Bag | D76: 4 | E76: =VLOOKUP(A76,[1]Sheet1!$A:$F,6,FALSE) -> 48.3 | F76: 193.2
A77: IFBD80301 | B77: Mitre® Mesh Panelled Bag | D77: 2 | E77: =VLOOKUP(A77,[1]Sheet1!$A:$F,6,FALSE) -> 137.03 | F77: 274.06
A78: CP00056630 | B78: SHOSHIN Flexible Marker Cones | C78: P50 | D78: 4 | E78: =VLOOKUP(A78,[1]Sheet1!$A:$F,6,FALSE) -> 80.85 | F78: 323.4
A79: INBL78669 | B79: High Fives Bib Set - Yellow - 8-14 Years - Pack of 8 | D79: 1 | E79: =VLOOKUP(A79,[1]Sheet1!$A:$F,6,FALSE) -> 225.75 | F79: 225.75
A80: IFBP02414 | B80: Samba Match Football Goal 12x6ft | D80: 8 | E80: =VLOOKUP(A80,[1]Sheet1!$A:$F,6,FALSE) -> 1170.23 | F80: 9361.84
A81: ICKP07979 | B81: Slazenger Reflex Stump Set | D81: 6 | E81: =VLOOKUP(A81,[1]Sheet1!$A:$F,6,FALSE) -> 242.03 | F81: 1452.18
A82: CP057113 | B82: Beanbags Pack - Pack of 18 - Assorted | C82: P18 | D82: 4 | E82: =VLOOKUP(A82,[1]Sheet1!$A:$F,6,FALSE) -> 129.15 | F82: 516.6
A83: IGYP09611 | B83: Beemat Folding Balance Beam | D83: 2 | E83: =VLOOKUP(A83,[1]Sheet1!$A:$F,6,FALSE) -> 1371.83 | F83: 2743.66
A84: CP00056568 | B84: SHOSHIN Practice Tennis Balls - Pack of 96 | D84: 1 | E84: =VLOOKUP(A84,[1]Sheet1!$A:$F,6,FALSE) -> 524.48 | F84: 524.48

Sheet Office and Display
F1: Basket Total | G1: =SUM(G3:G33) -> 32995.09
A2: Product Code | B2: Product Description | C2: Units of Measure | D2: Quantity | E2: Section | F2: Unit Price | G2: Total Price
A3: Office & Admin Stationery
A4: HC1699057 | B4: Classmate Tape Dispenser | C4: 1 | D4: 10 | E4: Office & Admin Stationery | F4: 45.68 | G4: =F4*D4 -> 456.8
A5: HC397442 | B5: C M Easytear Tape 24mmx66m Pk6 | C5: 6 | D5: 5 | F5: 37.28 | G5: =F5*D5 -> 186.4
A6: HC1109952 | B6: Blu Tack Original 120g | C6: 12 | D6: 10 | F6: 105 | G6: 1050
A7: CP053409AC | B7: Classmates Ballpoint Pen - Pack of 50 - Black | C7: 50 | D7: 6 | F7: 30.45 | G7: 182.7
A8: CP053409AF | B8: Classmates Ballpoint Pen - Pack of 50 - Blue | C8: 50 | D8: 6 | F8: 30.45 | G8: 182.7
A9: HC1319169 | B9: Bic Crystal Fun Pen Asst P20 | C9: 20 | D9: 4 | F9: 49.88 | G9: 199.52
A10: HC1691792 | B10: Classmates Highlighters 5 Colours Pk 48 | C10: 48 | D10: 2 | F10: 105 | G10: 210
A11: CP00053893 | B11: Classmates Sticky Notes - Assorted Neon - 40 x 50mm - Pack of 12 | C11: 12 | D11: 8 | F11: 30.45 | G11: 243.6
A12: CP00053887 | B12: Classmates Sticky Notes - Assorted Neon - 75 x 75mm - Pack of 12 | C12: 12 | D12: 5 | F12: 33.6 | G12: 168
A13: HC1828980 | B13: Specialist Crafts - Large Pointed Scissors | C13: 1 | D13: 20 | F13: 28.35 | G13: 567
A14: HC298785 | B14: Rapesco 835p Heavy Duty Hole Punch | C14: 1 | D14: 10 | F14: 84.53 | G14: 845.3
A15: HC322718 | B15: CM SP100 Half Strip Stapler | C15: 1 | D15: 10 | F15: 48.3 | G15: 483
A16: HC194863 | B16: Rapesco 24/6 Staples P5000 | C16: 5000 | D16: 10 | F16: 32.03 | G16: 320.3
A17: HC1694632 | B17: Classmates Stationery Pack | C17: 6 | D17: 10 | F17: 129.15 | G17: 1291.5
A18: CP00051255 | B18: RAPESCO Germ-Savvy Marlin Long Arm Stapler - Black | C18: 1 | D18: 1 | F18: 161.18 | G18: 161.18
A19: CP00051463 | B19: Economy Pocket A4 Clear - Pack 100 | C19: PK | D19: 5 | F19: 58.8 | G19: 294
A20: HC395141 | B20: A4 Report Files Assorted PK25 | C20: 25 | D20: 5 | F20: 73.5 | G20: 367.5
A21: HC1247961 | B21: Classmates Document Wallets Assort | C21: 50 | D21: 5 | F21: 68.78 | G21: 343.9
A22: HC1251127 | B22: Classmates Box File Blue | C22: 1 | D22: 50 | F22: 81.38 | G22: 4069
A23: HC422961 | B23: A4 Subject Dividers 10 Part P25 | C23: 25 | D23: 10 | F23: 126 | G23: 1260
A24: HC1676675 | B24: Classmates Border Rolls P10 | C24: 10 | D24: 16 | F24: 201.6 | G24: 3225.6
A25: HC313046 | B25: Classmate Mini Whiteboard Eraser Pk30 | C25: 30 | D25: 1 | F25: 145.43 | G25: 145.43
A26: HC312162 | B26: Staedtler Wboard Pens Asst P36 | C26: 36 | D26: 30 | F26: 153.3 | G26: 4599
A27: HC312149 | B27: Staedtler Wboard Pens Blk P36 | C27: 36 | D27: 30 | F27: 161.18 | G27: 4835.4
A28: HC394166 | B28: CM Whiteboard Cleaner 250ml | C28: 1 | D28: 50 | F28: 24.68 | G28: 1234
A29: DISPLAY
A30: CP00058534 | B30: Colourlast Assorted Roll Stockroom Assortment - Pack of 24 | D30: 2 | F30: 992.78 | G30: =F30*D30 -> 1985.56
A31: HC157007 | B31: Fadeless® Designs Stockroom Assortment | D31: 2 | F31: 1048.95 | G31: 2097.9
A32: HC490938 | B32: Classmates A4+ Mounting Paper Black - Pack of 100 | D32: 10 | F32: 78.23 | G32: 782.3
A33: HC360457 | B33: Classmates Mounting Paper Assorted A3+ - Pack of 100 | D33: 10 | F33: 120.75 | G33: 1207.5

Sheet Whole School Resources
F1: Basket Total | G1: =SUM(G3:G51) -> 28290.98
A2: Product Code | B2: Product Description | C2: Units of Measure | D2: Quantity | E2: Section | F2: Unit Price | G2: Total Price
A3: Bulk Buy KS2
A4: HC1000440 | B4: Ancient Egypt Photopack | C4: 1 | D4: 1 | E4: Whole School Supplies | F4: 261.98 | G4: =F4*D4 -> 261.98
A5: HC1671996 | B5: Roman Archeology Pack | C5: 1 | D5: 1 | F5: 435.75 | G5: 435.75
A6: HC1247350 | B6: A4 Plain whiteboards, pens and erasers | C6: 100 | D6: 3 | F6: 1493.1 | G6: 4479.3
A7: HC1778191 | B7: Group Listening Package | C7: 1 | D7: 3 | F7: 1170.23 | G7: 3510.69
A8: HC1774082 | B8: Berol Handwriting Pen - Blue | C8: 200 | D8: 2 | F8: 492.45 | G8: 984.9
A9: HC418983 | B9: Polydron Geometry Maths Set | C9: 266 | D9: 4 | F9: 1436.4 | G9: 5745.6
A10: HC337200 | B10: Staedtler HB Graphite Noris Pencils | C10: 1500 | D10: 1 | F10: 1161.83 | G10: 1161.83
A11: HC310173 | B11: Staedtler Ballpoint Pen Red | C11: 50 | D11: 2 | F11: 88.73 | G11: 177.46
A12: HC310160 | B12: Staedtler Ballpoint Pen Green | C12: 50 | D12: 2 | F12: 88.73 | G12: 177.46
A13: HC310134 | B13: Staedtler Ballpoint Pen Black | C13: 50 | D13: 2 | F13: 88.73 | G13: 177.46
A14: HC310147 | B14: Staedtler Ballpoint Pen Blue | C14: 50 | D14: 2 | F14: 88.73 | G14: 177.46
A15: HC303023 | B15: Gloy Glue Stick - 40g - Pack of 30 | D15: 1 | F15: 371.18 | G15: 371.18
A16: HC490132 | B16: Classmates Shatter Resistant Ruler Transparent 30cm - Pack of 100 | D16: 1 | F16: 129.68 | G16: 129.68
A17: E8R04325 | B17: Classmates Mini Board Eraser - Pack of 30 | D17: 1 | F17: 145.43 | G17: 145.43
A18: HC1815185 | B18: Classmates School Scissors in Box - Right and Left Handed - Pack of 32 | D18: 1 | F18: 145.43 | G18: 145.43
A19: HC903071 | B19: Stabilo® Trio Triangular Colouring Pencils | D19: 1 | F19: 332.33 | G19: 332.33
A20: ECMT13601 | B20: Stabilo HB Graphite Learner Pencils - Pack of 48 | D20: 1 | F20: 467.78 | G20: 467.78
A21: HC1774064 | B21: Berol Colour Pens - Broad Assorted - Pack of 288 | D21: 1 | F21: 548.63 | G21: 548.63
A22: HC1097345 | B22: Classmates Eraser White - Pack of 20 | D22: 1 | F22: 24.15 | G22: 24.15
A23: HC1691792 | B23: Classmates Highlighter Assorted - Pack of 48 | D23: 1 | F23: 105 | G23: 105
A24: HC1585922 | B24: Berol Whiteboard Marker Pens Assorted Bullet Tip - Pack of 96 | D24: 1 | F24: 398.48 | G24: 398.48
A25: CP053116AA | B25: Classmates Rigid A4 Lapboards Bulk Packs - Plain | D25: 1 | F25: 532.88 | G25: 532.88
A26: HC1774070 | B26: Berol® Colour Fine Pens - Assorted pack of 288 | D26: 1 | F26: 548.63 | G26: 548.63
A27: HC316231 | B27: Classmates Single Hole Sharpener - Pack of 24 | D27: 1 | F27: 56.18 | G27: 56.18
A28: Additional Stationery
A29: HC1815181 | B29: Classmates School Scissors - Left Handed | D29: 2 | E29: Stationery | F29: 40.95 | G29: =F29*D29 -> 81.9
A30: HC1815179 | B30: Classmates School Scissors - Right Handed | D30: 4 | E30: Stationery | F30: 40.95 | G30: 163.8
A31: E8R03124 | B31: Classmates All Purpose Scissors - Right Handed | D31: 2 | E31: Stationery | F31: 52.5 | G31: 105
A32: HC1796373 | B32: Classmates HB Stripe Pencils - Pack of 150 | D32: 2 | E32: Stationery | F32: 80.85 | G32: 161.7
A33: E8R05404 | B33: Bostik Blu Tack Blue Original 120g - Pack of 12 | D33: 2 | E33: Stationery | F33: 105 | G33: 210
A34: HC1699057 | B34: Classmates Tape Dispenser Black | D34: 5 | E34: Stationery | F34: 45.68 | G34: 228.4
A35: E8R04304 | B35: Sellotape Original 24mm 66m - Pack of 6 | D35: 1 | E35: Stationery | F35: 64.58 | G35: 64.58
A36: CP00052794 | B36: Classmates Shatter Resistant Ruler - Clear - 300mm/30cm - Pack of 10 | D36: 5 | E36: Stationery | F36: 24.15 | G36: 120.75
A37: HC1694652 | B37: Classmates Barrel Single Hole Sharpener - Pack of 10 | D37: 5 | E37: Stationery | F37: 54.6 | G37: 273
A38: HC1796369 | B38: Classmates Magnetic Board Eraser | D38: 4 | E38: Stationery | F38: 37.28 | G38: 149.12
A39: HC1319211 | B39: Electric Single Hole Sharpener | D39: 1 | E39: Stationery | F39: 395.33 | G39: 395.33
A40: HC131969 | B40: Staedtler Rasoplast Eraser Small White - Pack of 30 | D40: 2 | E40: Stationery | F40: 96.6 | G40: 193.2
A41: HC324005 | B41: Show-Me® MAGIX Board Cleaner 250ml | D41: 2 | E41: Stationery | F41: 112.88 | G41: 225.76
A42: HC1565760 | B42: Twin Wire Polyprop Notebooks - A5 | D42: 10 | E42: Stationery | F42: 145.43 | G42: 1454.3
A43: HC298772 | B43: Rapesco Medium Duty Hole Punch | D43: 6 | E43: Stationery | F43: 64.58 | G43: 387.48
A44: CP00051253 | B44: RAPESCO Germ-Savvy Luna Less Effort ECO Front Loading Stapler - Soft White | D44: 6 | E44: Stationery | F44: 76.65 | G44: 459.9
A45: HC194876 | B45: Rapesco Staples26/6mm - Pack of 5000 | D45: 6 | E45: Stationery | F45: 19.43 | G45: 116.58
A46: HC354412 | B46: SuperCut® Personal Trimmers - A3 - 460mm | D46: 2 | E46: Stationery | F46: 564.9 | G46: 1129.8
A47: HC1694632 | B47: Classmates Stationery Pack - Pack of 6 | D47: 1 | E47: Stationery | F47: 129.15 | G47: 129.15
A48: CP00054560 | B48: Classmates Easel/Drawing Paper Rolls - Pack of 6 | D48: 1 | E48: Stationery | F48: 290.33 | G48: 290.33
A49: HC912912 | B49: A4 Graph Paper 2 10 and 20mm Squared 2 Hole Punched - 1 Ream | D49: 1 | E49: Stationery | F49: 129.15 | G49: 129.15
A50: HC1136125 | B50: Dymo LabelManager 160 Label Printer | D50: 1 | E50: Stationery | F50: 371.18 | G50: 371.18
A51: HC276321 | B51: D1 Standard Tape - 9mm x 7m - Black on white | D51: 2 | E51: Stationery | F51: 177.45 | G51: 354.9

Sheet Secondary Maths
G1: Basket Total | H1: =SUM(H3:H81) -> 18754.62
A2: Product Code | B2: Product Description | C2: Units of Measure | D2: Quantity | E2: Section | F2: Curriculum Area | G2: Unit Price | H2: Total Price
A3: MATHS
A4: HC1369266 | B4: Place Value Arrows Thousands Teacher | C4: 9 | D4: 2 | E4: Maths | F4: Number and Place Value | G4: 108.68 | H4: =G4*D4 -> 217.36
A5: HC1489774 | B5: Numicon Boxed Set Of 80 Shapes | C5: 80 | D5: 2 | F5: Number and Place Value | G5: 354.9 | H5: 709.8
A6: HC332676 | B6: 0-100 Table Top Number Lines Pk5 | C6: 5 | D6: 4 | F6: Number and Place Value | G6: 80.85 | H6: 323.4
A7: EFMT14690 | B7: A5 Double Sided Multiplication Grid - Pack of 35 | C7: 35 | D7: 1 | F7: Multiplication and Division | G7: 169.58 | H7: 169.58
A8: HC170930 | B8: Table Boards Class Pack | C8: 1 | D8: 1 | F8: Multiplication and Division | G8: 258.3 | H8: 258.3
A9: HC1535474 | B9: Addition, Subtraction, Multiplication and Division Poster Pack Pack of three | C9: 3 | D9: 1 | F9: Multiplication and Division | G9: 161.18 | H9: 161.18
A10: HC1290948 | B10: Fraction and Decimal Counting Cards Pack of forty | C10: 40 | D10: 1 | F10: Fractions, Decimals and Percentages | G10: 197.4 | H10: 197.4
A11: HC1002641 | B11: Rainbow Fractions Circles | C11: 1 | D11: 1 | F11: Fractions, Decimals and Percentages | G11: 84.53 | H11: 84.53
A12: EFMT12536 | B12: Fraction Formula Game | C12: 1 | D12: 1 | F12: Fractions, Decimals and Percentages | G12: 258.3 | H12: 258.3
A13: HC1574046 | B13: Equivalence Crunchers - Pack of 25 | C13: 25 | D13: 2 | F13: Fractions, Decimals and Percentages | G13: 137.03 | H13: 274.06
A14: HC1571283 | B14: Cubes Fraction Set | C14: 1 | D14: 1 | F14: Fractions, Decimals and Percentages | G14: 108.68 | H14: 108.68
A15: HC1002807 | B15: Unbreakable Mirrors 90x65mm P10 | C15: 10 | D15: 2 | F15: Geometry | G15: 52.5 | H15: 105
A16: HC1002659 | B16: Geometric Large Shapes | C16: 17 | D16: 2 | F16: Geometry | G16: 217.88 | H16: 435.76
A17: HC1002639 | B17: Geometrc Plane Shapes Set 1-50mm | C17: 160 | D17: 2 | F17: Geometry | G17: 266.18 | H17: 532.36
A18: HC388771 | B18: Helix Geometry Class Pack | C18: 1 | D18: 1 | F18: Geometry | G18: 467.78 | H18: 467.78
A19: HC424404 | B19: Geoboards 6 Colours 230mm | C19: 6 | D19: 4 | F19: Geometry | G19: 169.58 | H19: 678.32
A20: HC181213 | B20: Tape Measure Pack of 10 | C20: 10 | D20: 2 | F20: Measurement | G20: 78.23 | H20: 156.46
A21: E8A73842 | B21: 1m Wood Rule - Marked CM And MM | C21: 1 | D21: 5 | F21: Measurement | G21: 37.28 | H21: 186.4
A22: EFMT14433 | B22: Class Coin Set | C22: 1 | D22: 1 | F22: Measurement | G22: 246.23 | H22: 246.23
A23: E8R09487 | B23: Dual Power Timer - Pack of 5 | C23: 5 | D23: 1 | F23: Measurement | G23: 266.18 | H23: 266.18
A24: IAAP10741 | B24: Trundle Wheel with Counter | C24: 1 | D24: 3 | F24: Measurement | G24: 161.18 | H24: 483.54
A25: E8R08153 | B25: 1kg Mechanical Scale - White | C25: 1 | D25: 6 | F25: Measurement | G25: 105 | H25: 630
A26: HC88200579 | B26: Protractor - Pack of 10 Pack of ten | C26: 10 | D26: 4 | F26: Measurement | G26: 16.28 | H26: 65.12
A27: EDMT14144 | B27: Mini Time Tracker | C27: 1 | D27: 1 | F27: Measurement | G27: 210 | H27: 210
A28: HC1197917 | B28: Oxford Student Maths Dictionary | C28: 1 | D28: 10 | F28: Teaching Resource | G28: 112.88 | H28: 1128.8
A29: HC1201919 | B29: 50 Maths Revision Cards | C29: 1 | D29: 1 | F29: Teaching Resource | G29: 193.73 | H29: 193.73
A30: HC1866391 | B30: Algebra Links | C30: 1 | D30: 1 | F30: Algebra | G30: 193.73 | H30: 193.73
A31: HC1866395 | B31: First Algebra Links Dominoes Set 2 | C31: 1 | D31: 1 | F31: Algebra | G31: 145.43 | H31: 145.43
A32: HC167485 | B32: Multi-sided Dice | C32: 5 | D32: 6 | F32: Classroom Tools | G32: 40.43 | H32: 242.58
A33: HC167784 | B33: Coloured Dominoes Pk 168 | C33: 168 | D33: 1 | F33: Classroom Tools | G33: 145.43 | H33: 145.43
A34: HC1490618 | B34: Jumbo Number Pebbles | C34: 20 | D34: 1 | F34: Classroom Tools | G34: 234.15 | H34: 234.15
A35: HC167446 | B35: Foam Dice Blue | C35: 1 | D35: 5 | F35: Classroom Tools | G35: 64.58 | H35: 322.9
A36: HC312396 | B36: 100 Coloured Dice 4 Colours | C36: 100 | D36: 1 | F36: Classroom Tools | G36: 48.3 | H36: =G36*D36 -> 48.3
A37: CP00057911 | B37: Translucent Counters from Hope Education - Pack of 1000 | C37: 1000 | D37: 1 | F37: Classroom Tools | G37: 137.03 | H37: 137.03
A38: HC165405 | B38: 1000pk Counting Sticks | C38: 1000 | D38: 1 | F38: Classroom Tools | G38: 185.33 | H38: 185.33
A39: HC1770182 | B39: Sand Timer - 1 Minute | C39: 1 | D39: 1 | F39: Classroom Tools | G39: 84.53 | H39: 84.53
A40: HC1770186 | B40: Sand Timer - 5 Minute | C40: 1 | D40: 1 | F40: Classroom Tools | G40: 84.53 | H40: 84.53
A41: CP00060270 | B41: Abacus with 100 beads | C41: 1 | D41: 1 | F41: Classroom Tools | G41: 79.8 | H41: 79.8
A42: CP00059299 | B42: Base Ten Class Set 184 pieces | C42: 184 | D42: 1 | F42: Classroom Tools | G42: 403.2 | H42: 403.2
A43: EFMT14205 | B43: Giant Magnetic Base 10 Demonstration Set | C43: 1 | D43: 1 | F43: Classroom Tools | G43: 205.8 | H43: 205.8
A44: HC167121 | B44: Write-On/Wipe-Off 100 Squares - Pack of 35 | C44: 35 | D44: 1 | F44: Classroom Tools | G44: 80.85 | H44: 80.85
A45: HC1822714 | B45: Eco Friendly 20 Bead String | C45: 1 | D45: 15 | F45: Classroom Tools | G45: 56.18 | H45: 842.7
A46: HC1822716 | B46: Eco-friendly 100 Bead String | C46: 1 | D46: 1 | F46: Classroom Tools | G46: 217.88 | H46: 217.88
A47: HC373873 | B47: Jumbo Playing Cards | C47: 1 | D47: 5 | F47: Classroom Tools | G47: 38.33 | H47: 191.65
A48: HC167719 | B48: Playing Cards | C48: 1 | D48: 15 | F48: Classroom Tools | G48: 12.08 | H48: 181.2
A49: HC167576 | B49: Polyhedron Number Dice - Pack 35 | C49: 35 | D49: 1 | F49: Classroom Tools | G49: 40.43 | H49: 40.43
A50: EFMT14179 | B50: Teacher Whiteboard Dice | C50: 4 | D50: 1 | F50: Classroom Tools | G50: 306.6 | H50: 306.6
A51: EFMT11929 | B51: Unifix® Cubes - Pack of 500 | C51: 500 | D51: 1 | F51: Classroom Tools | G51: 298.73 | H51: 298.73
A52: HC1564958 | B52: Easy Read Time Teacher - 24-Hour Classroom Wall Clock | C52: 1 | D52: 1 | F52: Display | G52: 274.58 | H52: 274.58
A53: STATIONERY
A54: HC337213 | B54: Staedtler Noris HB Pencils Pk150 | C54: 150 | D54: 1 | E54: Stationery | G54: 133.35 | H54: =G54*D54 -> 133.35
A55: HC1694632 | B55: Classmate Classroom Collection | C55: 9 | D55: 1 | G55: 129.15 | H55: =G55*D55 -> 129.15
A56: HC206745 | B56: A4 Bulky Zip Wallets Asst P100 | C56: 100 | D56: 1 | G56: 347.03 | H56: =G56*D56 -> 347.03
A57: HC255469 | B57: A5 Zip Wallets Red P25 | C57: 25 | D57: 3 | G57: 112.88 | H57: 338.64
A58: HC284654 | B58: CM Address Labels 89x36mm P250 | C58: 250 | D58: 2 | G58: 24.15 | H58: 48.3
A59: CP00053887 | B59: Classmates Sticky Notes - Assorted Neon - 75 x 75mm - Pack of 12 | C59: 1 | D59: 5 | G59: 33.6 | H59: 168
A60: HC1691792 | B60: Classmates Highlighters 5 Colours Pk 48 | C60: 48 | D60: 1 | G60: 105 | H60: 105
A61: HC316244 | B61: CM Metal Sharpeners Double Hole Pk12 | C61: 12 | D61: 2 | G61: 51.45 | H61: 102.9
A62: HC131969 | B62: Staedtler Rasoplast Eraser P30 | C62: 30 | D62: 1 | G62: 96.6 | H62: 96.6
A63: CP00052794 | B63: Classmates Shatter Resistant Ruler - Clear - 300mm/30cm - Pack of 10 | C63: 10 | D63: 3 | G63: 24.15 | H63: 72.45
A64: HC298772 | B64: Rapesco X5-30PS Medium Duty Hole Punch | C64: 1 | D64: 1 | G64: 64.58 | H64: 64.58
A65: HC397364 | B65: Rapesco Sting Ray Half Strip Stapler | C65: 1 | D65: 1 | G65: 56.18 | H65: 56.18
A66: HC194863 | B66: Rapesco 24/6 Staples P5000 | C66: 5000 | D66: 1 | G66: 32.03 | H66: 32.03
A67: HC186556 | B67: Paper Fasteners 25mm Pack 200 | C67: 200 | D67: 1 | G67: 48.3 | H67: 48.3
A68: HC179406 | B68: Treasury Tag 51mm Yellow P100 | C68: 100 | D68: 1 | G68: 33.6 | H68: 33.6
A69: HC397442 | B69: C M Easytear Tape 24mmx66m Pk6 | C69: 6 | D69: 1 | G69: 37.28 | H69: 37.28
A70: HC1699057 | B70: Classmate Tape Dispenser | C70: 1 | D70: 1 | G70: 45.68 | H70: 45.68
A71: HC322874 | B71: Classmates Dble Sided Tape 12mmx33mm Pk6 | C71: 6 | D71: 1 | G71: 80.85 | H71: 80.85
A72: HC225517 | B72: C M Masking Tape 24mmx50mx9 | C72: 9 | D72: 1 | G72: 100.8 | H72: 100.8
A73: HC1109953 | B73: Blu Tack Original 60g | C73: 12 | D73: 1 | G73: 105 | H73: 105
A74: HC479745 | B74: A4 Hardboard Clipboard P12 | C74: 12 | D74: 2 | G74: 254.1 | H74: 508.2
A75: CP053113AB | B75: CM LtWeight Lapboard A4 Lined P35 | C75: 35 | D75: 1 | G75: 459.9 | H75: 459.9
A76: HC1102952 | B76: Edding 8 All Purpose Assorted, Bullet Tip - Pack of 144 | C76: 144 | D76: 1 | G76: 625.28 | H76: 625.28
A77: HC209241 | B77: Giotto Metallic Fibre Pens P24 | C77: 24 | D77: 5 | G77: 159.6 | H77: 798
A78: HC1815185 | B78: School Scissor Set P32 inc Box | C78: 32 | D78: 1 | G78: 145.43 | H78: 145.43
A79: HC1815197 | B79: Classmates Dual Control Scissors - Right Handed | C79: 1 | D79: 12 | G79: 28.35 | H79: 340.2
A80: HC1815195 | B80: Classmates Easy Grip Scissors - Left Handed | C80: EA | D80: 3 | G80: 48.3 | H80: 144.9
A81: CP00058415 | B81: Classmates Chunky Crayons - Pack of 40 | C81: 40 | D81: 2 | G81: 45.68 | H81: 91.36

Sheet Secondary English
F1: Basket Total | G1: =SUM(G3:G35) -> 8988.67
A2: Product Code | B2: Product Description | C2: Units of Measure | D2: Quantity | E2: Section | F2: Unit Price | G2: Total Price
A3: STATIONERY
A4: HC337213 | B4: Staedtler Noris HB Pencils Pk150 | C4: 150 | D4: 1 | E4: Stationery | F4: 133.35 | G4: =F4*D4 -> 133.35
A5: HC1694632 | B5: Classmate Classroom Collection | C5: 9 | D5: 1 | F5: 129.15 | G5: 129.15
A6: HC206745 | B6: A4 Bulky Zip Wallets Asst P100 | C6: 100 | D6: 1 | F6: 347.03 | G6: 347.03
A7: HC255469 | B7: A5 Zip Wallets Red P25 | C7: 25 | D7: 3 | F7: 112.88 | G7: 338.64
A8: HC284654 | B8: CM Address Labels 89x36mm P250 | C8: 250 | D8: 2 | F8: 24.15 | G8: 48.3
A9: CP00053887 | B9: Classmates Sticky Notes - Assorted Neon - 75 x 75mm - Pack of 12 | C9: 1 | D9: 5 | F9: 33.6 | G9: 168
A10: HC1691792 | B10: Classmates Highlighters 5 Colours Pk 48 | C10: 48 | D10: 1 | F10: 105 | G10: 105
A11: HC316244 | B11: CM Metal Sharpeners Double Hole Pk12 | C11: 12 | D11: 2 | F11: 51.45 | G11: 102.9
A12: HC131969 | B12: Staedtler Rasoplast Eraser P30 | C12: 30 | D12: 1 | F12: 96.6 | G12: 96.6
A13: CP00052794 | B13: Classmates Shatter Resistant Ruler - Clear - 300mm/30cm - Pack of 10 | C13: 10 | D13: 3 | F13: 24.15 | G13: 72.45
A14: HC298772 | B14: Rapesco X5-30PS Medium Duty Hole Punch | C14: 1 | D14: 1 | F14: 64.58 | G14: 64.58
A15: HC397364 | B15: Rapesco Sting Ray Half Strip Stapler | C15: 1 | D15: 1 | F15: 56.18 | G15: 56.18
A16: HC194863 | B16: Rapesco 24/6 Staples P5000 | C16: 5000 | D16: 1 | F16: 32.03 | G16: 32.03
A17: HC186556 | B17: Paper Fasteners 25mm Pack 200 | C17: 200 | D17: 1 | F17: 48.3 | G17: 48.3
A18: HC179406 | B18: Treasury Tag 51mm Yellow P100 | C18: 100 | D18: 1 | F18: 33.6 | G18: 33.6
A19: HC397442 | B19: C M Easytear Tape 24mmx66m Pk6 | C19: 6 | D19: 1 | F19: 37.28 | G19: 37.28
A20: HC1699057 | B20: Classmate Tape Dispenser | C20: 1 | D20: 1 | F20: 45.68 | G20: 45.68
A21: HC322874 | B21: Classmates Dble Sided Tape 12mmx33mm Pk6 | C21: 6 | D21: 1 | F21: 80.85 | G21: 80.85
A22: HC225517 | B22: C M Masking Tape 24mmx50mx9 | C22: 9 | D22: 1 | F22: 100.8 | G22: 100.8
A23: HC1109953 | B23: Blu Tack Original 60g | C23: 12 | D23: 1 | F23: 105 | G23: 105
A24: HC479745 | B24: A4 Hardboard Clipboard P12 | C24: 12 | D24: 2 | F24: 254.1 | G24: 508.2
A25: CP053113AB | B25: CM LtWeight Lapboard A4 Lined P35 | C25: 35 | D25: 1 | F25: 459.9 | G25: 459.9
A26: HC1102952 | B26: Edding 8 All Purpose Assorted, Bullet Tip - Pack of 144 | C26: 144 | D26: 1 | F26: 625.28 | G26: 625.28
A27: HC209241 | B27: Giotto Metallic Fibre Pens P24 | C27: 24 | D27: 5 | F27: 159.6 | G27: 798
A28: HC1815185 | B28: School Scissor Set P32 inc Box | C28: 32 | D28: 1 | F28: 145.43 | G28: 145.43
A29: HC1815197 | B29: Classmates Dual Control Scissors - Right Handed | C29: 1 | D29: 12 | F29: 28.35 | G29: 340.2
A30: HC1815195 | B30: Classmates Easy Grip Scissors - Left Handed | C30: EA | D30: 3 | F30: 48.3 | G30: 144.9
A31: CP00058415 | B31: Classmates Chunky Crayons - Pack of 40 | C31: 40 | D31: 2 | F31: 45.68 | G31: 91.36
A32: ENGLISH
A33: HC1813022 | B33: Oxford English Dictionary for Schools | C33: 1 | D33: 16 | E33: English | F33: 100.8 | G33: =F33*D33 -> 1612.8
A34: EBMT12291 | B34: Oxford School Thesaurus | C34: 1 | D34: 16 | F34: 92.93 | G34: =F34*D34 -> 1486.88
A35: HC1536830 | B35: Creative writing directory | C35: 1 | D35: 6 | F35: 105 | G35: =F35*D35 -> 630

Sheet Secondary Science
G1: Basket Total | H1: =SUM(H3:H172) -> 165003.93
A2: Product Code | B2: Product Description | C2: Units of Measure | D2: Quantity | E2: Section | F2: Curriculum Area | G2: Unit Price | H2: Total Price
A3: SCIENCE
A4: E8R06048 | B4: Electronic Water Bath | C4: each | D4: 1 | F4: Biology | G4: 3861.38 | H4: =G4*D4 -> 3861.38
A5: CP058255AC | B5: Test Tubes | C5: Pack of 100 | D5: 1 | F5: Biology | G5: 152.25 | H5: 152.25
A6: HC1007879 | B6: Z Pattern Test Tube Stand - 200 x 125 x 75mm | C6: EA | D6: 20 | F6: Biology | G6: 24.68 | H6: 493.6
A7: CP00060093 | B7: Steel Test Tube Holder - Accepts tubes up to 40mm diameter | C7: 10 | D7: 2 | F7: Biology | G7: 32.03 | H7: 64.06
A8: E8R07839 | B8: Polyprop Tiles | C8: P10 | D8: 2 | F8: Biology | G8: 79.8 | H8: 159.6
A9: E8B93239 | B9: Syringes (5ml) | C9: Pack of 100 | D9: 1 | F9: Biology | G9: 110.25 | H9: 110.25
A10: E8R07845 | B10: Glass stirring rods | C10: Pack of 10 | D10: 3 | F10: Biology | G10: 23.1 | H10: 69.3
A11: E8R06358 | B11: Fastime 1 Stopwatch - Assorted - Pack of 6 | C11: P 6 | D11: 3 | F11: Biology | G11: 282.45 | H11: 847.35
A12: CP00059289 | B12: Red Spirit Filled Thermometer - Partial Immersion - 10/110 x 305mm - 1 | C12: 10 | D12: 2 | F12: Biology | G12: 204.23 | H12: 408.46
A13: E8A77744 | B13: Disposable Pipettes (3ml) | C13: Pack of 500 | D13: 1 | F13: Biology | G13: 96.6 | H13: 96.6
A14: E8H71685 | B14: Filter Paper (simple) | C14: 100box | D14: 2 | F14: Biology | G14: 27.83 | H14: 55.66
A15: E8R07836 | B15: Filter Funnel - plastic | C15: Pack of 10 | D15: 3 | F15: Biology | G15: 46.73 | H15: 140.19
A16: E8R07876 | B16: 250ml conical flask | C16: Pack of 12 | D16: 3 | F16: Biology | G16: 123.9 | H16: 371.7
A17: E8R07862 | B17: 250ml beakers | C17: Pack of 12 | D17: 3 | F17: Biology | G17: 101.33 | H17: 303.99
A18: E8A57241 | B18: Bunsen Burner (if school has a Natural Gas supply) | C18: EA | D18: 20 | F18: Biology | G18: 36.75 | H18: 735
A19: E8A57253 | B19: Bunsen Burner (if school has a bottled Gas supply) | C19: EA | D19: 20 | F19: Biology | G19: 54.6 | H19: 1092
A20: E8A88997 | B20: Tripod | C20: EA | D20: 20 | F20: Biology | G20: 48.3 | H20: 966
A21: E8A55335 | B21: Heatproof Mat | C21: P10 | D21: 2 | F21: Biology | G21: 54.08 | H21: 108.16
A22: CP00054271 | B22: Rubber Tubing 8mm Bore 2mm Wall - 1 Meter | C22: Per metre | D22: 15 | F22: Biology | G22: 15.23 | H22: 228.45
A23: E8R06710 | B23: Washing up Bowl (for the class) | C23: each | D23: 10 | F23: Biology | G23: 40.43 | H23: 404.3
A24: CP057048AC | B24: Boiling Tube | C24: Pack of 50 | D24: 2 | F24: Biology | G24: 188.48 | H24: 376.96
A25: HC1007973 | B25: Visking Tubing | C25: 5M | D25: 1 | F25: Biology | G25: 257.78 | H25: 257.78
A26: E8R06703 | B26: Kettle | C26: 1 | D26: 1 | F26: Biology | G26: 169.58 | H26: 169.58
A27: E8R07346 | B27: Class Dissection Bundle | C27: Kit | D27: 1 | F27: Biology | G27: 1354.5 | H27: 1354.5
A28: CP058049AE | B28: Measuring Cylinder Polypropylene 10mlP10 | C28: PK | D28: 1 | F28: Biology | G28: 18.38 | H28: 18.38
A29: E8H64838 | B29: Petri Dishes, Disposable - 90 x 15mm | C29: P20 | D29: 20 | F29: Biology | G29: 20.48 | H29: 409.6
A30: HC1299168 | B30: Y-shape Potato Peeler | C30: each | D30: 15 | F30: Biology | G30: 36.23 | H30: 543.45
A31: CP00058531 | B31: White Tile | C31: 10 | D31: 2 | F31: Biology | G31: 188.48 | H31: =G31*D31 -> 376.96
A32: E8R05511 | B32: Balance (2.d.p) | C32: each | D32: 2 | F32: Biology | G32: 669.38 | H32: 1338.76
A33: E8R06127 | B33: Wash Bottle | C33: Pack of 5 | D33: 4 | F33: Biology | G33: 95.03 | H33: 380.12
A34: E8R08159 | B34: Crucible with lid | C34: 10 | D34: 2 | F34: Biology | G34: 463.05 | H34: 926.1
A35: E8A87269 | B35: Crucible Tongs | C35: 1 | D35: 18 | F35: Biology | G35: 13.65 | H35: 245.7
A36: E8H24920 | B36: Potometer Apparatus (on white stand) | C36: Each | D36: 5 | F36: Biology | G36: 175.35 | H36: =G36*D36 -> 876.75
A37: E8R04633 | B37: Typical flower model | C37: each | D37: 1 | F37: Biology | G37: 255.68 | H37: 255.68
A38: E8H24956 | B38: Clinostat | C38: each | D38: 1 | F38: Biology | G38: 974.4 | H38: 974.4
A39: E8R00434 | B39: Plant growth kit | C39: each | D39: 1 | F39: Biology | G39: 696.15 | H39: 696.15
A40: HC1008491 | B40: Grid Quadrat 25 Squares | C40: EA | D40: 10 | F40: Biology | G40: 152.25 | H40: 1522.5
A41: E8R06595 | B41: String | C41: 500g | D41: 2 | F41: Biology | G41: 96.6 | H41: 193.2
A42: IAAP10741 | B42: Trundle Wheel | C42: each | D42: 5 | F42: Biology | G42: 161.18 | H42: 805.9
A43: CP00054768 | B43: Bung with 1 hole | C43: Pack of 10 | D43: 3 | F43: Biology | G43: 23.1 | H43: 69.3
A44: E8A64221 | B44: Gauze | C44: Pack of 10 | D44: 2 | F44: Chemistry | G44: 63.53 | H44: =G44*D44 -> 127.06
A45: E8R06969 | B45: Conical Flask with side arm | C45: Pack of 6 | D45: 2 | F45: Chemistry | G45: 345.45 | H45: 690.9
A46: CP00054781 | B46: Conical bung with 1 holes | C46: Pack of 10 | D46: 3 | F46: Chemistry | G46: 25.2 | H46: 75.6
A47: CP058255AB | B47: Boiling tubes | C47: Pack of 50 | D47: 1 | F47: Chemistry | G47: 180.6 | H47: =G47*D47 -> 180.6
A48: E8A57964 | B48: Chromatography Paper Roll | C48: 100M roll | D48: 1 | F48: Chemistry | G48: 547.58 | H48: 547.58
A49: E8R07860 | B49: 100ml beakers | C49: Pack of 12 | D49: 2 | F49: Chemistry | G49: 81.9 | H49: 163.8
A50: E8R07877 | B50: 100ml conical flask | C50: Pack of 12 | D50: 2 | F50: Chemistry | G50: 112.35 | H50: 224.7
A51: E8H71697 | B51: Filter Paper (110mm diameter) | C51: Pack of 100 | D51: 2 | F51: Chemistry | G51: 25.2 | H51: =G51*D51 -> 50.4
A52: E8A90517 | B52: Watch Glass | C52: Pack of 10 | D52: 2 | F52: Chemistry | G52: 32.55 | H52: 65.1
A53: E8R06745 | B53: Azlon Measuring Cylinder - 100mL - Pack of 5 | C53: P 5 | D53: 5 | F53: Chemistry | G53: 253.58 | H53: 1267.9
A54: CP00056728 | B54: Evaporating Basin | C54: Pack of 10 | D54: 1 | F54: Chemistry | G54: 103.43 | H54: 103.43
A55: E8R06744 | B55: Azlon Measuring Cylinder - 50mL - Pack of 10 | C55: P10 | D55: 2 | F55: Chemistry | G55: 310.28 | H55: 620.56
A56: E8G65605 | B56: pH Indicator Paper | C56: RL | D56: 15 | F56: Chemistry | G56: 22.58 | H56: 338.7
A57: E8R06924 | B57: Emery Paper | C57: pack | D57: 5 | F57: Chemistry | G57: 40.43 | H57: 202.15
A58: HC1008189 | B58: Bench Power Unit | C58: EA | D58: 15 | F58: Chemistry | G58: 1145.55 | H58: 17183.25
A59: E8H27726 | B59: Ammeter | C59: each | D59: 15 | F59: Chemistry | G59: 327.08 | H59: 4906.2
A60: E8A49098 | B60: Variable Resistor | C60: each | D60: 15 | F60: Chemistry | G60: 295.05 | H60: 4425.75
A61: E8R05708 | B61: 4mm leads black 250mm | C61: each | D61: 30 | F61: Chemistry | G61: 32.03 | H61: 960.9
A62: E8R05709 | B62: 4mm leads red 250mm | C62: each | D62: 30 | F62: Chemistry | G62: 32.03 | H62: 960.9
A63: E8A37242 | B63: Carbon Electrodes | C63: Pack of 50 | D63: 1 | F63: Chemistry | G63: 120.75 | H63: 120.75
A64: E8R07832 | B64: Burette | C64: each | D64: 15 | F64: Chemistry | G64: 67.73 | H64: 1015.95
A65: E8R07837 | B65: Burette Stand | C65: each | D65: 15 | F65: Chemistry | G65: 74.55 | H65: 1118.25
A66: E8R06006 | B66: Small filter funnel | C66: Pack of 10 | D66: 2 | F66: Chemistry | G66: 44.1 | H66: 88.2
A67: CP053187AA | B67: Graduated Pips class B Straight 25ml P5 | C67: PK | D67: 4 | F67: Chemistry | G67: 96.08 | H67: =G67*D67 -> 384.32
A68: E8A78037 | B68: Pipette Filler | C68: each | D68: 15 | F68: Chemistry | G68: 50.93 | H68: 763.95
A69: E8A83732 | B69: Water Trough (tupperware) | C69: each | D69: 15 | F69: Chemistry | G69: 56.18 | H69: 842.7
A70: E8R06571 | B70: Retort Stand Bundle | C70: each | D70: 15 | F70: Chemistry | G70: 140.7 | H70: 2110.5
A71: E8A57409 | B71: Spirit Burners | C71: each | D71: 15 | F71: Chemistry | G71: 27.3 | H71: 409.5
A72: HC1007249 | B72: Inoculating Loop Holder | C72: EA | D72: 20 | F72: Chemistry | G72: 19.95 | H72: 399
A73: E8A42006 | B73: Dynamics Trolley | C73: each | D73: 1 | F73: Physics | G73: 384.83 | H73: 384.83
A74: E8A84773 | B74: Ramp | C74: each | D74: 1 | F74: Physics | G74: 1568.18 | H74: 1568.18
A75: E8H72446 | B75: Pulley | C75: each | D75: 1 | F75: Physics | G75: 77.18 | H75: 77.18
A76: E8A73088 | B76: Hanging Masses (100g hanger + 9x100g masses) | C76: 1kg | D76: 15 | F76: Physics | G76: 98.18 | H76: 1472.7
A77: E8R04304 | B77: Sellotape | C77: Pack of 6 | D77: 2 | F77: Physics | G77: 64.58 | H77: 129.16
A78: HC155005 | B78: Card | C78: pack | D78: 2 | F78: Physics | G78: 179.03 | H78: 358.06
A79: CP053547 | B79: Philip Harris SensorDisc and pH Electrode | C79: each | D79: 2 | F79: Physics | G79: 3792.6 | H79: 7585.2
A80: E8R08200 | B80: Light Gate Attachment for Datalogger | C80: each | D80: 2 | F80: Physics | G80: 516.6 | H80: =G80*D80 -> 1033.2
A81: E8A41397 | B81: Springs | C81: Pack of 100 | D81: 2 | F81: Physics | G81: 92.4 | H81: 184.8
A82: CP00054656 | B82: Wires for Young's Modulus | C82: Pack of 6 | D82: 1 | F82: Physics | G82: 117.08 | H82: 117.08
A83: E8R04333 | B83: Elastic Bands | C83: 75g tub | D83: 2 | F83: Physics | G83: 32.03 | H83: 64.06
A84: E8R06357 | B84: G Clamp | C84: each | D84: 1 | F84: Physics | G84: 74.55 | H84: 74.55
A85: E8R05267 | B85: Owon Oscilloscope (30MHz, dual trace) | C85: each | D85: 1 | F85: Physics | G85: 2497.95 | H85: 2497.95
A86: CP00058457 | B86: UNILAB Power Signal Generator | C86: each | D86: 1 | F86: Physics | G86: 2470.13 | H86: 2470.13
A87: CP052081 | B87: UNILAB GCSE BEK Kit - 3 Students | C87: Kit | D87: 2 | F87: Physics | G87: 998.55 | H87: 1997.1
A88: E8H28287 | B88: Light Dependent resistor unit | C88: each | D88: 4 | F88: Physics | G88: 114.45 | H88: 457.8
A89: E8H28202 | B89: Thermistor | C89: each | D89: 4 | F89: Physics | G89: 40.95 | H89: =G89*D89 -> 163.8
A90: E8R07385 | B90: BEK White LED | C90: each | D90: 4 | F90: Physics | G90: 23.1 | H90: 92.4
A91: E8R05627 | B91: BEK Red LED | C91: each | D91: 4 | F91: Physics | G91: 25.2 | H91: 100.8
A92: E8R05628 | B92: BEK Green LED | C92: each | D92: 4 | F92: Physics | G92: 25.2 | H92: 100.8
A93: E8H26655 | B93: Malvern Electrostatics Kit | C93: Kit | D93: 1 | F93: Physics | G93: 919.8 | H93: 919.8
A94: E8H26758 | B94: Van de Graaff Generator | C94: each | D94: 1 | F94: Physics | G94: 2864.4 | H94: 2864.4
A95: E8H27763 | B95: DC Voltmeter | C95: each | D95: 15 | F95: Physics | G95: 327.08 | H95: 4906.2
A96: CP00058194 | B96: UNILAB Ammeter - Dual Range | C96: each | D96: 15 | F96: Physics | G96: 450.45 | H96: 6756.75
A97: CP00058192 | B97: UNILAB Voltmeter - Dual Range | C97: each | D97: 15 | F97: Physics | G97: 408.98 | H97: 6134.7
A98: E8R05981 | B98: Doppler Ball | C98: each | D98: 1 | F98: Physics | G98: 134.4 | H98: 134.4
A99: E8R07802 | B99: Midi Ripple Tank | C99: EA | D99: 1 | F99: Physics | G99: 1976.63 | H99: 1976.63
A100: E8A43497 | B100: Wire Helix (Slinky - 110mm) | C100: each | D100: 6 | F100: Physics | G100: 51.45 | H100: 308.7
A101: E8R06826 | B101: Vibration Generator with Accessories | C101: Kit | D101: 1 | F101: Physics | G101: 752.85 | H101: 752.85
A102: E8R06342 | B102: Ray Box with slit | C102: each | D102: 15 | F102: Physics | G102: 101.85 | H102: 1527.75
A103: E8A45457 | B103: Rectangular Perspex Block | C103: each | D103: 15 | F103: Physics | G103: 53.03 | H103: 795.45
A104: E8A45470 | B104: Semi Circular Perspex Block | C104: each | D104: 15 | F104: Physics | G104: 35.18 | H104: 527.7
A105: E8A45639 | B105: Perspex Triangular Prism | C105: each | D105: 15 | F105: Physics | G105: 36.75 | H105: 551.25
A106: HC88200579 | B106: Protractor | C106: Pack of 10 | D106: 2 | F106: Physics | G106: 16.28 | H106: 32.56
A107: E8A45445 | B107: Glass Block | C107: each | D107: 15 | F107: Physics | G107: 40.95 | H107: 614.25
A108: E8R05153 | B108: Tuning forks | C108: Octave Set | D108: 1 | F108: Physics | G108: 395.33 | H108: 395.33
A109: E8R09545 | B109: Microphone to use with Oscilloscope | C109: each | D109: 1 | F109: Physics | G109: 362.78 | H109: 362.78
A110: E8G86207 | B110: Conductivity Star | C110: each | D110: 15 | F110: Physics | G110: 61.95 | H110: 929.25
A111: CP00055760 | B111: Night Lights Pack of 100 | C111: Pack of 100 | D111: 1 | F111: Physics | G111: 150.68 | H111: 150.68
A112: E8A42754 | B112: Convection in Water Apparatus | C112: each | D112: 1 | F112: Physics | G112: 233.1 | H112: 233.1
A113: E8L26899 | B113: Leslie's Cube | C113: each | D113: 15 | F113: Physics | G113: 155.93 | H113: =G113*D113 -> 2338.95
A114: E8R02933 | B114: Infrared Thermometer | C114: each | D114: 15 | F114: Physics | G114: 281.4 | H114: 4221
A115: E8L78141 | B115: Cubes for Density Investigation | C115: 7 materials | D115: 2 | F115: Physics | G115: 571.73 | H115: 1143.46
A116: E8H25201 | B116: Metal Blocks | C116: Set of 12 | D116: 2 | F116: Physics | G116: 254.63 | H116: 509.26
A117: E8L35816 | B117: Displacement Vessel | C117: each | D117: 15 | F117: Physics | G117: 17.85 | H117: 267.75
A118: CP00052913 | B118: Azlon Measuring Cylinder Squat 100ml P5 | C118: PK | D118: 3 | F118: Physics | G118: 286.65 | H118: 859.95
A119: E8R07063 | B119: Electronic Balance (2000g, 0.01g) | C119: each | D119: 2 | F119: Physics | G119: 1412.78 | H119: 2825.56
A120: E8R06830 | B120: Metal Block Calorimeter Bundle (1 x Copper, Aluminium, Brass, Steel) | C120: each | D120: 4 | F120: Physics | G120: 614.78 | H120: 2459.12
A121: E8R07701 | B121: Insulation Jackets for Aluminium Calorimeter | C121: Pack of 5 | D121: 1 | F121: Physics | G121: 214.73 | H121: 214.73
A122: E8R07700 | B122: Insulation Jacket for Brass, Copper, Steel Calorimeters | C122: Pack of 5 | D122: 2 | F122: Physics | G122: 214.73 | H122: 429.46
A123: E8A42584 | B123: Immersion Heater | C123: each | D123: 15 | F123: Physics | G123: 163.28 | H123: 2449.2
A124: CP00057817 | B124: UNILAB Joulemeter And Wattmeter | C124: each | D124: 15 | F124: Physics | G124: 981.75 | H124: 14726.25
A125: E8A46954 | B125: Bar Magnets | C125: Pair | D125: 15 | F125: Physics | G125: 77.7 | H125: 1165.5
A126: CP00060100 | B126: Plotting Compass | C126: 15 | D126: 2 | F126: Physics | G126: 56.18 | H126: 112.36
A127: CP00059231 | B127: Iron Filings in Sprinkler Pot - Pack of 5 | C127: Pack of 5 | D127: 3 | F127: Physics | G127: 112.35 | H127: 337.05
A128: E8A47569 | B128: Magnetic Field Demonstrator | C128: each | D128: 3 | F128: Physics | G128: 212.63 | H128: 637.89
A129: E8H26321 | B129: Electromagnet | C129: each | D129: 15 | F129: Physics | G129: 80.85 | H129: 1212.75
A130: E8H26629 | B130: Force on a Conductor Apparatus | C130: each | D130: 1 | F130: Physics | G130: 585.38 | H130: 585.38
A131: E8R03099 | B131: Solenoid superior | C131: each | D131: 1 | F131: Physics | G131: 945.53 | H131: 945.53
A132: E8R07405 | B132: Dual Range Ammeter | C132: each | D132: 1 | F132: Physics | G132: 467.78 | H132: 467.78
A133: E8R07403 | B133: Dual Range Voltmeter | C133: each | D133: 1 | F133: Physics | G133: 408.98 | H133: 408.98
A134: E8H26564 | B134: Dissectable Transformer Kit | C134: Kit | D134: 1 | F134: Physics | G134: 2832.38 | H134: 2832.38
A135: E8R08129 | B135: Mains Coil for Dissectable Transformer Kit | C135: each | D135: 1 | F135: Physics | G135: 343.88 | H135: 343.88
A136: E8R07210 | B136: National Grid Model | C136: each | D136: 1 | F136: Physics | G136: 1815.45 | H136: 1815.45
A137: E8G85951 | B137: Half Life Analogue Kit | C137: Kit | D137: 1 | F137: Physics | G137: 532.35 | H137: 532.35
A138: E8H27179 | B138: Alpha Scattering Apparatus | C138: Kit | D138: 1 | F138: Physics | G138: 492.45 | H138: 492.45
A139: STATIONERY
A140: HC1691746 | B140: Felt Tipped Pens | C140: Pack of 40 | D140: 1 | E140: Stationery | G140: 71.93 | H140: =G140*D140 -> 71.93
A141: HC337213 | B141: Staedtler Noris HB Pencils Pk150 | C141: 150 | D141: 1 | G141: 133.35 | H141: =G141*D141 -> 133.35
A142: E8R05225 | B142: Desk Lamp | C142: 1 | D142: 1 | G142: 139.13 | H142: 139.13
A143: E8A73830 | B143: Metre Ruler | C143: 1 | D143: 10 | G143: 40.43 | H143: 404.3
A144: E8R07452 | B144: Permanent Markers, assorted | C144: 200 | D144: 1 | G144: 69.3 | H144: 69.3
A145: E8R05809 | B145: 15cm Ruler | C145: 100 | D145: 1 | G145: 112.88 | H145: 112.88
A146: HC1694632 | B146: Classmate Classroom Collection | C146: 9 | D146: 1 | G146: 129.15 | H146: =G146*D146 -> 129.15
A147: HC206745 | B147: A4 Bulky Zip Wallets Asst P100 | C147: 100 | D147: 1 | G147: 347.03 | H147: =G147*D147 -> 347.03
A148: HC255469 | B148: A5 Zip Wallets Red P25 | C148: 25 | D148: 3 | G148: 112.88 | H148: 338.64
A149: HC284654 | B149: CM Address Labels 89x36mm P250 | C149: 250 | D149: 2 | G149: 24.15 | H149: 48.3
A150: CP00053887 | B150: Classmates Sticky Notes - Assorted Neon - 75 x 75mm - Pack of 12 | C150: 1 | D150: 5 | G150: 33.6 | H150: 168
A151: HC1691792 | B151: Classmates Highlighters 5 Colours Pk 48 | C151: 48 | D151: 1 | G151: 105 | H151: 105
A152: HC316244 | B152: CM Metal Sharpeners Double Hole Pk12 | C152: 12 | D152: 2 | G152: 51.45 | H152: 102.9
A153: HC131969 | B153: Staedtler Rasoplast Eraser P30 | C153: 30 | D153: 1 | G153: 96.6 | H153: 96.6
A154: CP00052794 | B154: Classmates Shatter Resistant Ruler - Clear - 300mm/30cm - Pack of 10 | C154: 10 | D154: 3 | G154: 24.15 | H154: 72.45
A155: HC298772 | B155: Rapesco X5-30PS Medium Duty Hole Punch | C155: 1 | D155: 1 | G155: 64.58 | H155: 64.58
A156: HC397364 | B156: Rapesco Sting Ray Half Strip Stapler | C156: 1 | D156: 1 | G156: 56.18 | H156: 56.18
A157: HC194863 | B157: Rapesco 24/6 Staples P5000 | C157: 5000 | D157: 1 | G157: 32.03 | H157: 32.03
A158: HC186556 | B158: Paper Fasteners 25mm Pack 200 | C158: 200 | D158: 1 | G158: 48.3 | H158: 48.3
A159: HC179406 | B159: Treasury Tag 51mm Yellow P100 | C159: 100 | D159: 1 | G159: 33.6 | H159: 33.6
A160: HC397442 | B160: C M Easytear Tape 24mmx66m Pk6 | C160: 6 | D160: 1 | G160: 37.28 | H160: 37.28
A161: HC1699057 | B161: Classmate Tape Dispenser | C161: 1 | D161: 1 | G161: 45.68 | H161: 45.68
A162: HC322874 | B162: Classmates Dble Sided Tape 12mmx33mm Pk6 | C162: 6 | D162: 1 | G162: 80.85 | H162: 80.85
A163: HC225517 | B163: C M Masking Tape 24mmx50mx9 | C163: 9 | D163: 1 | G163: 100.8 | H163: 100.8
A164: HC1109953 | B164: Blu Tack Original 60g | C164: 12 | D164: 1 | G164: 105 | H164: 105
A165: HC479745 | B165: A4 Hardboard Clipboard P12 | C165: 12 | D165: 2 | G165: 254.1 | H165: 508.2
A166: CP053113AB | B166: CM LtWeight Lapboard A4 Lined P35 | C166: 35 | D166: 1 | G166: 459.9 | H166: 459.9
A167: HC1102952 | B167: Edding 8 All Purpose Assorted, Bullet Tip - Pack of 144 | C167: 144 | D167: 1 | G167: 625.28 | H167: 625.28
A168: HC209241 | B168: Giotto Metallic Fibre Pens P24 | C168: 24 | D168: 5 | G168: 159.6 | H168: 798
A169: HC1815185 | B169: School Scissor Set P32 inc Box | C169: 32 | D169: 1 | G169: 145.43 | H169: 145.43
A170: HC1815197 | B170: Classmates Dual Control Scissors - Right Handed | C170: 1 | D170: 12 | G170: 28.35 | H170: 340.2
A171: HC1815195 | B171: Classmates Easy Grip Scissors - Left Handed | C171: EA | D171: 3 | G171: 48.3 | H171: 144.9
A172: CP00058415 | B172: Classmates Chunky Crayons - Pack of 40 | C172: 40 | D172: 2 | G172: 45.68 | H172: 91.36

Sheet Science Prep
F1: Basket Total | G1: =SUM(G3:G96) -> 135255.93
A2: Product Code | B2: Product Description | C2: Units of Measure | D2: Quantity | E2: Section | F2: Unit Price | G2: Total Price
A3: SCIENCE
A4: E8R05184 | B4: Equipment Trolley (Single Column) | C4: each | D4: 1 | E4: Science Prep | F4: 1694.7 | G4: =F4*D4 -> 1694.7
A5: E8R05180 | B5: Equipment Trolley (Double Column) | C5: each | D5: 1 | F5: 2178.75 | G5: 2178.75
A6: E8R05178 | B6: Equipment Trolley (Three tier) | C6: each | D6: 1 | F6: 2622.9 | G6: 2622.9
A7: E8R05100 | B7: Gratnells Trays (shallow) | C7: Pack of 10 | D7: 2 | F7: 315 | G7: 630
A8: E8A88808 | B8: Gratnells Trays (deep) | C8: each | D8: 10 | F8: 44.1 | G8: 441
A9: E8R05921 | B9: Treble Column Tall Frame (for tray storage) | C9: each | D9: 1 | F9: 3204.08 | G9: 3204.08
A10: E8A84177 | B10: Radioactive Source Storage Cabinet | C10: each | D10: 1 | F10: 1627.5 | G10: 1627.5
A11: E8R05356 | B11: Safety Spectacle Holder | C11: each | D11: 1 | F11: 160.65 | G11: 160.65
A12: CP00057351 | B12: Face Shield | C12: each | D12: 2 | F12: 86.63 | G12: 173.26
A13: E8A80020 | B13: Safety Screen | C13: each | D13: 2 | F13: 195.83 | G13: 391.66
A14: E8R03304 | B14: Base for Safety Screen | C14: each | D14: 4 | F14: 60.38 | G14: 241.52
A15: CP00055228 | B15: HypaClens Economy Eyewash Cabinet | C15: each | D15: 2 | F15: 103.95 | G15: 207.9
A16: CP00054426 | B16: BS8599-1 School Trip Kit in Green Rucksack | C16: each | D16: 2 | F16: 589.05 | G16: 1178.1
A17: E8R04385 | B17: Glass Disposal Bin | C17: Pack of 6 | D17: 1 | F17: 345.45 | G17: 345.45
A18: E8R05275 | B18: Nitrile Gloves (small) | C18: Pack of 100 | D18: 1 | F18: 77.18 | G18: 77.18
A19: E8R06571 | B19: Retort Stand Bundle | C19: each | D19: 2 | F19: 140.7 | G19: 281.4
A20: E8R08063 | B20: Steel Ring Clamp for Retort Stand | C20: each | D20: 2 | F20: 30.98 | G20: 61.96
A21: E8R06574 | B21: Basic Chemistry Bundle | C21: each | D21: 1 | F21: 880.95 | G21: 880.95
A22: CP00054271 | B22: Rubber Tubing 8mm Bore 2mm Wall - 1 Meter | C22: per metre | D22: 20 | F22: 15.23 | G22: 304.6
A23: E8A81930 | B23: Wooden Spills | C23: Bundle of 1000 | D23: 1 | F23: 38.33 | G23: 38.33
A24: E8R06680 | B24: Matches | C24: Pack of 400 | D24: 1 | F24: 22.58 | G24: 22.58
A25: E8A85879 | B25: Test Tube Racks | C25: each | D25: 2 | F25: 24.68 | G25: 49.36
A26: CP00060093 | B26: Steel Test Tube Holder - Accepts tubes up to 40mm diameter | C26: 10 | D26: 1 | F26: 32.03 | G26: 32.03
A27: E8A87269 | B27: Tongs - Bowed | C27: each | D27: 2 | F27: 13.65 | G27: 27.3
A28: CP00060106 | B28: Tongs - Straight | C28: 10 | D28: 1 | F28: 126 | G28: 126
A29: E8R06710 | B29: Washing Up Bowl | C29: each | D29: 2 | F29: 40.43 | G29: 80.86
A30: E8L75814 | B30: Autoclave | C30: each | D30: 1 | F30: 10764.6 | G30: 10764.6
A31: CP00053865 | B31: Autoclave Bags - Pack of 200 | C31: Pack of 200 | D31: 1 | F31: 404.25 | G31: 404.25
A32: E8H64838 | B32: Petri Dishes, Disposable - 90 x 15mm | C32: P20 | D32: 20 | F32: 20.48 | G32: =F32*D32 -> 409.6
A33: E8A90797 | B33: Merit Water Still | C33: each | D33: 1 | F33: 9530.85 | G33: 9530.85
A34: E8R06049 | B34: Water Bath 12L | C34: each | D34: 1 | F34: 4402.65 | G34: 4402.65
A35: E8R04378 | B35: Hotplate Stirrer | C35: each | D35: 1 | F35: 3437.7 | G35: 3437.7
A36: E8A64476 | B36: Incubator/Oven | C36: each | D36: 1 | F36: 9727.73 | G36: 9727.73
A37: E8R07978 | B37: Analytical Balance (420g, 0.001g) | C37: each | D37: 1 | F37: 5124 | G37: 5124
A38: E8R06916 | B38: Weighing Boats | C38: Pack of 500 | D38: 1 | F38: 91.88 | G38: 91.88
A39: E8R09549 | B39: Mini Centrifuge | C39: each | D39: 1 | F39: 2976.75 | G39: 2976.75
A40: E8R05667 | B40: Mini Centrifuge Tubes | C40: Pack of 500 | D40: 1 | F40: 152.78 | G40: 152.78
A41: E8R06703 | B41: Kettle | C41: each | D41: 1 | F41: 169.58 | G41: 169.58
A42: E8L75383 | B42: Fume Cupboard | C42: each | D42: 1 | F42: 55926.68 | G42: 55926.68
A43: E8R07860 | B43: 100ml Glass Beakers | C43: 12pack | D43: 1 | F43: 81.9 | G43: 81.9
A44: E8R07862 | B44: 250ml Glass Beakers | C44: 12pack | D44: 1 | F44: 101.33 | G44: 101.33
A45: E8R07863 | B45: 400ml Glass Beakers | C45: Pack of 6 | D45: 1 | F45: 66.68 | G45: 66.68
A46: E8R07864 | B46: 600ml glass beakers | C46: Pack of 6 | D46: 1 | F46: 105 | G46: 105
A47: E8R07866 | B47: 1000ml Glass Beakers | C47: Pack of 6 | D47: 1 | F47: 147.53 | G47: 147.53
A48: E8A54367 | B48: 2000ml Glass Beaker | C48: each | D48: 2 | F48: 42.53 | G48: 85.06
A49: E8R03191 | B49: 100ml Azlon Plastic Beaker | C49: Pack of 10 | D49: 1 | F49: 191.1 | G49: 191.1
A50: E8R03192 | B50: 250ml Azlon Plastic Beaker | C50: Pack of 10 | D50: 1 | F50: 279.83 | G50: 279.83
A51: E8R03193 | B51: 500ml Azlon Plastic Beaker | C51: Pack of 10 | D51: 1 | F51: 312.9 | G51: 312.9
A52: E8R03231 | B52: 1000ml Azlon Plastic Beaker | C52: Pack of 5 | D52: 1 | F52: 232.58 | G52: 232.58
A53: E8R07874 | B53: 100ml Glass Conical Flask | C53: Pack of 12 | D53: 1 | F53: 172.2 | G53: 172.2
A54: E8R07876 | B54: 250ml Glass Conical Flask | C54: Pack of 12 | D54: 1 | F54: 123.9 | G54: 123.9
A55: E8R07875 | B55: 500ml Glass Conical Flask | C55: Pack of 6 | D55: 1 | F55: 108.68 | G55: 108.68
A56: HC1694690 | B56: Academy Flat Bottom Glass Evaporating Basin - 60mm/45ml - Pack of 10 | C56: Pack of 10 | D56: 1 | F56: 182.18 | G56: 182.18
A57: CP00056728 | B57: Evaporating Dish | C57: Pack of 10 | D57: 5 | F57: 103.43 | G57: 517.15
A58: E8R06289 | B58: Clear Soda Lime Bottles - 100mL | C58: P10 | D58: 2 | F58: 339.15 | G58: 678.3
A59: E8R06292 | B59: Clear Soda Lime Bottles - 250mL | C59: P10 | D59: 2 | F59: 371.18 | G59: 742.36
A60: CP00053172 | B60: Amber Glass Reagent Bottle250ml P10 | C60: PK | D60: 2 | F60: 336 | G60: 672
A61: E8A56340 | B61: Winchester Bottle - Amber glass, 2.5L | C61: each | D61: 5 | F61: 65.1 | G61: 325.5
A62: E8A77744 | B62: Disposable Pipettes | C62: Pack of 500 | D62: 2 | F62: 96.6 | G62: 193.2
A63: E8R07833 | B63: 60ml Glass Dropping Bottle | C63: Pack of 6 | D63: 5 | F63: 123.38 | G63: =F63*D63 -> 616.9
A64: E8R06307 | B64: McCartney Bottles | C64: Pack of 12 | D64: 5 | F64: 100.28 | G64: 501.4
A65: CP053487AC | B65: Academy Measuring Cylinder - 10ml - Pack of 10 | C65: Pack of 10 | D65: 1 | F65: 92.4 | G65: 92.4
A66: CP053487AA | B66: Academy Measuring Cylinder - 25ml - Pack of 10 | C66: Pack of 10 | D66: 1 | F66: 116.55 | G66: 116.55
A67: CP053487AE | B67: Academy Measuring Cylinder - 50ml - Pack of 10 | C67: Pack of 10 | D67: 1 | F67: 128.1 | G67: 128.1
A68: CP053487AD | B68: Academy Measuring Cylinder - 100ml - Pack of 10 | C68: Pack of 10 | D68: 1 | F68: 181.13 | G68: 181.13
A69: CP00053488 | B69: Academy Measuring Cylinder - 1000ml | C69: EA | D69: 2 | F69: 68.25 | G69: 136.5
A70: E8R06742 | B70: 10ml Plastic Measuring Cylinders | C70: Pack of 10 | D70: 1 | F70: 286.13 | G70: 286.13
A71: E8R06743 | B71: 25ml Plastic Measuring Cylinders | C71: Pack of 10 | D71: 1 | F71: 296.1 | G71: 296.1
A72: E8R06744 | B72: 50ml Plastic Measuring Cylinders | C72: Pack of 10 | D72: 1 | F72: 310.28 | G72: 310.28
A73: E8R06745 | B73: 100ml Plastic Measuring Cylinders | C73: Pack of 5 | D73: 1 | F73: 253.58 | G73: 253.58
A74: E8R06746 | B74: 250ml Plastic Measuring Cylinders | C74: each | D74: 2 | F74: 65.1 | G74: 130.2
A75: CP057048AD | B75: Test Tubes | C75: Pack of 100 | D75: 1 | F75: 155.93 | G75: 155.93
A76: CP00054765 | B76: Rubber Stoppers One Hole - Bottom Diameter: 13mm - Pack of 10 | C76: Pack of 10 | D76: 2 | F76: 10.5 | G76: 21
A77: CP058255AB | B77: Boiling Tubes | C77: Pack of 50 | D77: 1 | F77: 180.6 | G77: 180.6
A78: E8R05681 | B78: Soldering Iron Kit | C78: each | D78: 1 | F78: 274.05 | G78: 274.05
A79: E8R05689 | B79: Lead free Solder | C79: reel | D79: 1 | F79: 379.05 | G79: 379.05
A80: E8R06092 | B80: Screwdriver Set | C80: Set | D80: 1 | F80: 59.33 | G80: 59.33
A81: E8A88109 | B81: Wire Stripper | C81: each | D81: 1 | F81: 49.35 | G81: 49.35
A82: E8R06663 | B82: Digital Vernier Caliper | C82: each | D82: 1 | F82: 322.88 | G82: 322.88
A83: E8R07346 | B83: Dissection Kit | C83: Kit | D83: 1 | F83: 1354.5 | G83: 1354.5
A84: E8R06889 | B84: G-Clamp | C84: each | D84: 2 | F84: 123.38 | G84: 246.76
A85: E8R05604 | B85: Adjustable Pipette | C85: each | D85: 1 | F85: 768.6 | G85: 768.6
A86: E8R06924 | B86: Sand Paper | C86: each | D86: 1 | F86: 40.43 | G86: 40.43
A87: E8R05409 | B87: AA Batteries | C87: Pack of 4 | D87: 5 | F87: 16.28 | G87: 81.4
A88: E8R05400 | B88: AAA Batteries | C88: Pack of 4 | D88: 5 | F88: 16.28 | G88: 81.4
A89: E8R05412 | B89: D Batteries | C89: Pack of 2 | D89: 10 | F89: 24.15 | G89: 241.5
A90: E8R05410 | B90: PP3 Batteries | C90: each | D90: 10 | F90: 24.15 | G90: =F90*D90 -> 241.5
A91: CP00053708 | B91: Bulbs - Round M.E.S. 2.5V 0.2A - Pack of 25 | C91: Pack of 25 | D91: 4 | F91: 39.38 | G91: 157.52
A92: CP00053714 | B92: Bulbs - Round M.E.S. 6.5V 0.3A - Pack of 25 | C92: Pack of 25 | D92: 4 | F92: 39.38 | G92: 157.52
A93: CP00053715 | B93: Bulbs - Round M.E.S. 12V 0.5A - Pack of 25 | C93: Pack of 25 | D93: 20 | F93: 39.38 | G93: 787.6
A94: E8R06551 | B94: Mixed Resistors | C94: Pack of 50 | D94: 1 | F94: 225.23 | G94: 225.23
A95: HC1009766 | B95: Lipsol Glass Cleaner | C95: 2 x 5L | D95: 2 | F95: 306.08 | G95: 612.16
A96: HC1790317 | B96: Washing Up Liquid | C96: 2 x 5L | D96: 1 | F96: 249.9 | G96: 249.9

Sheet Secondary Humanities
F1: Basket Total | G1: =SUM(G3:G34) -> 7339.65
A2: Product Code | B2: Product Description | C2: Units of Measure | D2: Quantity | E2: Section | F2: Unit Price | G2: Total Price
A3: STATIONERY
A4: HC337213 | B4: Staedtler Noris HB Pencils Pk150 | C4: 150 | D4: 1 | E4: Stationery | F4: 133.35 | G4: =F4*D4 -> 133.35
A5: HC1694632 | B5: Classmate Classroom Collection | C5: 9 | D5: 1 | F5: 129.15 | G5: 129.15
A6: HC206745 | B6: A4 Bulky Zip Wallets Asst P100 | C6: 100 | D6: 1 | F6: 347.03 | G6: 347.03
A7: HC255469 | B7: A5 Zip Wallets Red P25 | C7: 25 | D7: 3 | F7: 112.88 | G7: 338.64
A8: HC284654 | B8: CM Address Labels 89x36mm P250 | C8: 250 | D8: 2 | F8: 24.15 | G8: 48.3
A9: CP00053887 | B9: Classmates Sticky Notes - Assorted Neon - 75 x 75mm - Pack of 12 | C9: 1 | D9: 5 | F9: 33.6 | G9: 168
A10: HC1691792 | B10: Classmates Highlighters 5 Colours Pk 48 | C10: 48 | D10: 1 | F10: 105 | G10: 105
A11: HC316244 | B11: CM Metal Sharpeners Double Hole Pk12 | C11: 12 | D11: 2 | F11: 51.45 | G11: 102.9
A12: HC131969 | B12: Staedtler Rasoplast Eraser P30 | C12: 30 | D12: 1 | F12: 96.6 | G12: 96.6
A13: CP00052794 | B13: Classmates Shatter Resistant Ruler - Clear - 300mm/30cm - Pack of 10 | C13: 10 | D13: 3 | F13: 24.15 | G13: 72.45
A14: HC298772 | B14: Rapesco X5-30PS Medium Duty Hole Punch | C14: 1 | D14: 1 | F14: 64.58 | G14: 64.58
A15: HC397364 | B15: Rapesco Sting Ray Half Strip Stapler | C15: 1 | D15: 1 | F15: 56.18 | G15: 56.18
A16: HC194863 | B16: Rapesco 24/6 Staples P5000 | C16: 5000 | D16: 1 | F16: 32.03 | G16: 32.03
A17: HC186556 | B17: Paper Fasteners 25mm Pack 200 | C17: 200 | D17: 1 | F17: 48.3 | G17: 48.3
A18: HC179406 | B18: Treasury Tag 51mm Yellow P100 | C18: 100 | D18: 1 | F18: 33.6 | G18: 33.6
A19: HC397442 | B19: C M Easytear Tape 24mmx66m Pk6 | C19: 6 | D19: 1 | F19: 37.28 | G19: 37.28
A20: HC1699057 | B20: Classmate Tape Dispenser | C20: 1 | D20: 1 | F20: 45.68 | G20: 45.68
A21: HC322874 | B21: Classmates Dble Sided Tape 12mmx33mm Pk6 | C21: 6 | D21: 1 | F21: 80.85 | G21: 80.85
A22: HC225517 | B22: C M Masking Tape 24mmx50mx9 | C22: 9 | D22: 1 | F22: 100.8 | G22: 100.8
A23: HC1109953 | B23: Blu Tack Original 60g | C23: 12 | D23: 1 | F23: 105 | G23: 105
A24: HC479745 | B24: A4 Hardboard Clipboard P12 | C24: 12 | D24: 2 | F24: 254.1 | G24: 508.2
A25: CP053113AB | B25: CM LtWeight Lapboard A4 Lined P35 | C25: 35 | D25: 1 | F25: 459.9 | G25: 459.9
A26: HC1102952 | B26: Edding 8 All Purpose Assorted, Bullet Tip - Pack of 144 | C26: 144 | D26: 1 | F26: 625.28 | G26: 625.28
A27: HC209241 | B27: Giotto Metallic Fibre Pens P24 | C27: 24 | D27: 5 | F27: 159.6 | G27: 798
A28: HC1815185 | B28: School Scissor Set P32 inc Box | C28: 32 | D28: 1 | F28: 145.43 | G28: 145.43
A29: HC1815197 | B29: Classmates Dual Control Scissors - Right Handed | C29: 1 | D29: 12 | F29: 28.35 | G29: 340.2
A30: HC1815195 | B30: Classmates Easy Grip Scissors - Left Handed | C30: EA | D30: 3 | F30: 48.3 | G30: 144.9
A31: CP00058415 | B31: Classmates Chunky Crayons - Pack of 40 | C31: 40 | D31: 2 | F31: 45.68 | G31: 91.36
A32: GEOGRAPHY
A33: HC1003345 | B33: Discovery Globe 230mm | C33: 1 | D33: 1 | E33: GEOGRAPHY | F33: 274.58 | G33: =F33*D33 -> 274.58
A34: E8R06196 | B34: Philip's Modern School Atlas | C34: 1 | D34: 16 | F34: 112.88 | G34: =F34*D34 -> 1806.08
